{"text_format":"1","workbook":"xlsx","n_sheets":1,"sheets":["WORKSHEET"],"not_rendered":{"charts":0,"images":0,"macros":1,"external_links":0,"defined_names":0,"comments":0,"pivot_tables":0},"unopened":[],"bounds":{"document_bytes":16777216,"sheet_cells":100000,"rows_first":2000,"rows_last":500,"rows_between":2000,"halvings":0,"cell_chars":16384,"cell_head_chars":4096},"cells_cut":0,"cells_raw":0,"read":"whole","date_system":"1900"}

{"sheet":"WORKSHEET","index":0,"n_rows":70133,"n_cols":56,"rows_kept":1125,"cut":true,"hidden":false,"merged":[],"bounds":{"rows_first":500,"rows_last":125,"rows_between":500,"halvings":2}}
[{"$f":"COUNTIF(AU6:AU35069,A4)","v":0},null,null,"value pasted","value calc'd"]
[null,null,2018,{"$f":"COUNTIF(D6:D8765,\"OOPS\")","v":0},{"$f":"COUNTIF(E6:E8765,\"OOPS\")","v":8687}]
[null,null,2019,{"$f":"COUNTIF(D8766:D17525,\"OOPS\")","v":0},{"$f":"COUNTIF(E8766:E17525,\"OOPS\")","v":7617},"date","hour","date","hour"]
["RF",null,2020,{"$f":"COUNTIF(D17526:D26309,\"OOPS\")","v":0},{"$f":"COUNTIF(E17526:E26309,\"OOPS\")","v":8556},"pasted","pasted","calc'd","calc'd"]
[null,2021,"OLD DATA",{"$f":"COUNTIF(D26310:D35069,\"OOPS\")","v":0},{"$f":"COUNTIF(E26310:E35069,\"OOPS\")","v":733},{"$f":"COUNTIF(F6:F35069,\"OOPS\")","v":35064},{"$f":"COUNTIF(G6:G35069,\"OOPS\")","v":33603},{"$f":"COUNTIF(H6:H35069,\"OOPS\")","v":0},{"$f":"COUNTIF(I6:I35069,\"OOPS\")","v":0},"# RD","Action Code","State Code","County Code","Site ID","Parameter","POC","Sample Duration","Unit","Method","Date","Start Time","Sample Value","Null Data Code","Sampling Frequency","Monitor Protocol (MP) ID","Qualifier - 1","Qualifier - 2","Qualifier - 3","Qualifier - 4","Qualifier - 5","Qualifier - 6",null,"# RD","Action Code","State Code","County Code","Site ID","Parameter","POC","Sample Duration","Unit","Method","Date","Start Time","Sample Value","Null Data Code","Sampling Frequency","Monitor Protocol (MP) ID","Qualifier - 1","Qualifier - 2","Qualifier - 3","Qualifier - 4","Qualifier - 5","Qualifier - 6","FORMULA","FORMULA"]
[20180101,"00:00:00",null,{"$f":"IF(C6=\"\",IF(V6=\"\",\"\",\"OOPS\"),IF(C6=V6,\"\",\"OOPS\"))","v":""},{"$f":"IF(C6=\"\",IF(AS6=\"\",\"\",\"OOPS\"),IF(C6=AS6,\"\",\"OOPS\"))","v":"OOPS"},{"$f":"IF(A6=T6,\"\",\"OOPS\")","v":"OOPS"},{"$f":"IF(B6=U6,\"\",\"OOPS\")","v":""},{"$f":"IF(A6=AQ6,\"\",\"OOPS\")","v":""},{"$f":"IF(B6=AR6,\"\",\"OOPS\")","v":""},"paste here",null,null,null,null,null,null,null,null,null,null,null,null,null,null,null,null,null,null,null,null,null,null,"RD","I",23,5,2003,42600,2,1,8,674,20180101,"00:00:00",3.04,null,"",null,null,null,null,null,null,null,"X","X"]
[20180101,"01:00:00",null,"","OOPS",{"$f":"IF(A7=T7,\"\",\"OOPS\")","v":"OOPS"},{"$f":"IF(B7=U7,\"\",\"OOPS\")","v":"OOPS"},{"$f":"IF(A7=AQ7,\"\",\"OOPS\")","v":""},{"$f":"IF(B7=AR7,\"\",\"OOPS\")","v":""},null,null,null,null,null,null,null,null,null,null,null,null,null,null,null,null,null,null,null,null,null,null,null,"RD","I",23,5,2003,42600,2,1,8,674,20180101,"01:00:00",4.9400000000000004,null,"",null,null,null,null,null,null,null,"X",{"$f":"IF(AR7=\"\",\"\",IF(AR7=AR6,IF(AS7=AS6,\"\",\"X\"),\"X\"))","v":"X"}]
[20180101,"02:00:00",null,"","OOPS","OOPS","OOPS","","",null,null,null,null,null,null,null,null,null,null,null,null,null,null,null,null,null,null,null,null,null,null,null,"RD","I",23,5,2003,42600,2,1,8,674,20180101,"02:00:00",7.92,null,"",null,null,null,null,null,null,null,"X",{"$f":"IF(AR8=\"\",\"\",IF(AR8=AR7,IF(AS8=AS7,\"\",\"X\"),\"X\"))","v":"X"}]
[20180101,"03:00:00",null,"","OOPS","OOPS","OOPS","","",null,null,null,null,null,null,null,null,null,null,null,null,null,null,null,null,null,null,null,null,null,null,null,"RD","I",23,5,2003,42600,2,1,8,674,20180101,"03:00:00",3.94,null,"",null,null,null,null,null,null,null,"X","X"]
[20180101,"04:00:00",null,"","OOPS","OOPS","OOPS","","",null,null,null,null,null,null,null,null,null,null,null,null,null,null,null,null,null,null,null,null,null,null,null,"RD","I",23,5,2003,42600,2,1,8,674,20180101,"04:00:00",7.62,null,"",null,null,null,null,null,null,null,"X","X"]
[20180101,"05:00:00",null,"","OOPS","OOPS","OOPS","","",null,null,null,null,null,null,null,null,null,null,null,null,null,null,null,null,null,null,null,null,null,null,null,"RD","I",23,5,2003,42600,2,1,8,674,20180101,"05:00:00",13.28,null,"",null,null,null,null,null,null,null,"X","X"]
[20180101,"06:00:00",null,"","OOPS","OOPS","OOPS","","",null,null,null,null,null,null,null,null,null,null,null,null,null,null,null,null,null,null,null,null,null,null,null,"RD","I",23,5,2003,42600,2,1,8,674,20180101,"06:00:00",15.99,null,"",null,null,null,null,null,null,null,"X","X"]
[20180101,"07:00:00",null,"","OOPS","OOPS","OOPS","","",null,null,null,null,null,null,null,null,null,null,null,null,null,null,null,null,null,null,null,null,null,null,null,"RD","I",23,5,2003,42600,2,1,8,674,20180101,"07:00:00",12.82,null,"",null,null,null,null,null,null,null,"X","X"]
[20180101,"08:00:00",null,"","OOPS","OOPS","OOPS","","",null,null,null,null,null,null,null,null,null,null,null,null,null,null,null,null,null,null,null,null,null,null,null,"RD","I",23,5,2003,42600,2,1,8,674,20180101,"08:00:00",9.2200000000000006,null,"",null,null,null,null,null,null,null,"X","X"]
[20180101,"09:00:00",null,"","OOPS","OOPS","OOPS","","",null,null,null,null,null,null,null,null,null,null,null,null,null,null,null,null,null,null,null,null,null,null,null,"RD","I",23,5,2003,42600,2,1,8,674,20180101,"09:00:00",8.02,null,"",null,null,null,null,null,null,null,"X","X"]
[20180101,"10:00:00",null,"","OOPS","OOPS","OOPS","","",null,null,null,null,null,null,null,null,null,null,null,null,null,null,null,null,null,null,null,null,null,null,null,"RD","I",23,5,2003,42600,2,1,8,674,20180101,"10:00:00",4.55,null,"",null,null,null,null,null,null,null,"X","X"]
[20180101,"11:00:00",null,"","OOPS","OOPS","OOPS","","",null,null,null,null,null,null,null,null,null,null,null,null,null,null,null,null,null,null,null,null,null,null,null,"RD","I",23,5,2003,42600,2,1,8,674,20180101,"11:00:00",3.1,null,"",null,null,null,null,null,null,null,"X","X"]
[20180101,"12:00:00",null,"","OOPS","OOPS","OOPS","","",null,null,null,null,null,null,null,null,null,null,null,null,null,null,null,null,null,null,null,null,null,null,null,"RD","I",23,5,2003,42600,2,1,8,674,20180101,"12:00:00",3.2,null,"",null,null,null,null,null,null,null,"X","X"]
[20180101,"13:00:00",null,"","OOPS","OOPS","OOPS","","",null,null,null,null,null,null,null,null,null,null,null,null,null,null,null,null,null,null,null,null,null,null,null,"RD","I",23,5,2003,42600,2,1,8,674,20180101,"13:00:00",2.2999999999999998,null,"",null,null,null,null,null,null,null,"X","X"]
[20180101,"14:00:00",null,"","OOPS","OOPS","OOPS","","",null,null,null,null,null,null,null,null,null,null,null,null,null,null,null,null,null,null,null,null,null,null,null,"RD","I",23,5,2003,42600,2,1,8,674,20180101,"14:00:00",1.44,null,"",null,null,null,null,null,null,null,"X","X"]
[20180101,"15:00:00",null,"","OOPS","OOPS","OOPS","","",null,null,null,null,null,null,null,null,null,null,null,null,null,null,null,null,null,null,null,null,null,null,null,"RD","I",23,5,2003,42600,2,1,8,674,20180101,"15:00:00",1.68,null,"",null,null,null,null,null,null,null,"X","X"]
[20180101,"16:00:00",null,"","OOPS","OOPS","OOPS","","",null,null,null,null,null,null,null,null,null,null,null,null,null,null,null,null,null,null,null,null,null,null,null,"RD","I",23,5,2003,42600,2,1,8,674,20180101,"16:00:00",2.56,null,"",null,null,null,null,null,null,null,"X","X"]
[20180101,"17:00:00",null,"","OOPS","OOPS","OOPS","","",null,null,null,null,null,null,null,null,null,null,null,null,null,null,null,null,null,null,null,null,null,null,null,"RD","I",23,5,2003,42600,2,1,8,674,20180101,"17:00:00",4.63,null,"",null,null,null,null,null,null,null,"X","X"]
[20180101,"18:00:00",null,"","OOPS","OOPS","OOPS","","",null,null,null,null,null,null,null,null,null,null,null,null,null,null,null,null,null,null,null,null,null,null,null,"RD","I",23,5,2003,42600,2,1,8,674,20180101,"18:00:00",8.42,null,"",null,null,null,null,null,null,null,"X","X"]
[20180101,"19:00:00",null,"","OOPS","OOPS","OOPS","","",null,null,null,null,null,null,null,null,null,null,null,null,null,null,null,null,null,null,null,null,null,null,null,"RD","I",23,5,2003,42600,2,1,8,674,20180101,"19:00:00",9.4,null,"",null,null,null,null,null,null,null,"X","X"]
[20180101,"20:00:00",null,"","OOPS","OOPS","OOPS","","",null,null,null,null,null,null,null,null,null,null,null,null,null,null,null,null,null,null,null,null,null,null,null,"RD","I",23,5,2003,42600,2,1,8,674,20180101,"20:00:00",5.5,null,"",null,null,null,null,null,null,null,"X","X"]
[20180101,"21:00:00",null,"","OOPS","OOPS","OOPS","","",null,null,null,null,null,null,null,null,null,null,null,null,null,null,null,null,null,null,null,null,null,null,null,"RD","I",23,5,2003,42600,2,1,8,674,20180101,"21:00:00",3.98,null,"",null,null,null,null,null,null,null,"X","X"]
[20180101,"22:00:00",null,"","OOPS","OOPS","OOPS","","",null,null,null,null,null,null,null,null,null,null,null,null,null,null,null,null,null,null,null,null,null,null,null,"RD","I",23,5,2003,42600,2,1,8,674,20180101,"22:00:00",5.0199999999999996,null,"",null,null,null,null,null,null,null,"X","X"]
[20180101,"23:00:00",null,"","OOPS","OOPS","OOPS","","",null,null,null,null,null,null,null,null,null,null,null,null,null,null,null,null,null,null,null,null,null,null,null,"RD","I",23,5,2003,42600,2,1,8,674,20180101,"23:00:00",4.34,null,"",null,null,null,null,null,null,null,"X","X"]
[20180102,"00:00:00",null,"","OOPS","OOPS","","","",null,null,null,null,null,null,null,null,null,null,null,null,null,null,null,null,null,null,null,null,null,null,null,"RD","I",23,5,2003,42600,2,1,8,674,20180102,"00:00:00",3.72,null,"",null,null,null,null,null,null,null,"X","X"]
[20180102,"01:00:00",null,"","OOPS","OOPS","OOPS","","",null,null,null,null,null,null,null,null,null,null,null,null,null,null,null,null,null,null,null,null,null,null,null,"RD","I",23,5,2003,42600,2,1,8,674,20180102,"01:00:00",5.0199999999999996,null,"",null,null,null,null,null,null,null,"X","X"]
[20180102,"02:00:00",null,"","OOPS","OOPS","OOPS","","",null,null,null,null,null,null,null,null,null,null,null,null,null,null,null,null,null,null,null,null,null,null,null,"RD","I",23,5,2003,42600,2,1,8,674,20180102,"02:00:00",4.63,null,"",null,null,null,null,null,null,null,"X","X"]
[20180102,"03:00:00",null,"","OOPS","OOPS","OOPS","","",null,null,null,null,null,null,null,null,null,null,null,null,null,null,null,null,null,null,null,null,null,null,null,"RD","I",23,5,2003,42600,2,1,8,674,20180102,"03:00:00",6.05,null,"",null,null,null,null,null,null,null,"X","X"]
[20180102,"04:00:00",null,"","OOPS","OOPS","OOPS","","",null,null,null,null,null,null,null,null,null,null,null,null,null,null,null,null,null,null,null,null,null,null,null,"RD","I",23,5,2003,42600,2,1,8,674,20180102,"04:00:00",4.4800000000000004,null,"",null,null,null,null,null,null,null,"X","X"]
[20180102,"05:00:00",null,"","OOPS","OOPS","OOPS","","",null,null,null,null,null,null,null,null,null,null,null,null,null,null,null,null,null,null,null,null,null,null,null,"RD","I",23,5,2003,42600,2,1,8,674,20180102,"05:00:00",7.11,null,"",null,null,null,null,null,null,null,"X","X"]
[20180102,"06:00:00",null,"","OOPS","OOPS","OOPS","","",null,null,null,null,null,null,null,null,null,null,null,null,null,null,null,null,null,null,null,null,null,null,null,"RD","I",23,5,2003,42600,2,1,8,674,20180102,"06:00:00",8.6999999999999993,null,"",null,null,null,null,null,null,null,"X","X"]
[20180102,"07:00:00",null,"","OOPS","OOPS","OOPS","","",null,null,null,null,null,null,null,null,null,null,null,null,null,null,null,null,null,null,null,null,null,null,null,"RD","I",23,5,2003,42600,2,1,8,674,20180102,"07:00:00",20.260000000000002,null,"",null,null,null,null,null,null,null,"X","X"]
[20180102,"08:00:00",null,"","OOPS","OOPS","OOPS","","",null,null,null,null,null,null,null,null,null,null,null,null,null,null,null,null,null,null,null,null,null,null,null,"RD","I",23,5,2003,42600,2,1,8,674,20180102,"08:00:00",20.9,null,"",null,null,null,null,null,null,null,"X","X"]
[20180102,"09:00:00",null,"","OOPS","OOPS","OOPS","","",null,null,null,null,null,null,null,null,null,null,null,null,null,null,null,null,null,null,null,null,null,null,null,"RD","I",23,5,2003,42600,2,1,8,674,20180102,"09:00:00",40.380000000000003,null,"",null,null,null,null,null,null,null,"X","X"]
[20180102,"10:00:00",null,"","OOPS","OOPS","OOPS","","",null,null,null,null,null,null,null,null,null,null,null,null,null,null,null,null,null,null,null,null,null,null,null,"RD","I",23,5,2003,42600,2,1,8,674,20180102,"10:00:00",18.059999999999999,null,"",null,null,null,null,null,null,null,"X","X"]
[20180102,"11:00:00",null,"","OOPS","OOPS","OOPS","","",null,null,null,null,null,null,null,null,null,null,null,null,null,null,null,null,null,null,null,null,null,null,null,"RD","I",23,5,2003,42600,2,1,8,674,20180102,"11:00:00",6.18,null,"",null,null,null,null,null,null,null,"X","X"]
[20180102,"12:00:00",null,"","OOPS","OOPS","OOPS","","",null,null,null,null,null,null,null,null,null,null,null,null,null,null,null,null,null,null,null,null,null,null,null,"RD","I",23,5,2003,42600,2,1,8,674,20180102,"12:00:00",3.27,null,"",null,null,null,null,null,null,null,"X","X"]
[20180102,"13:00:00",null,"","OOPS","OOPS","OOPS","","",null,null,null,null,null,null,null,null,null,null,null,null,null,null,null,null,null,null,null,null,null,null,null,"RD","I",23,5,2003,42600,2,1,8,674,20180102,"13:00:00",1.72,null,"",null,null,null,null,null,null,null,"X","X"]
[20180102,"14:00:00",null,"","OOPS","OOPS","OOPS","","",null,null,null,null,null,null,null,null,null,null,null,null,null,null,null,null,null,null,null,null,null,null,null,"RD","I",23,5,2003,42600,2,1,8,674,20180102,"14:00:00",1.3,null,"",null,null,null,null,null,null,null,"X","X"]
[20180102,"15:00:00",null,"","OOPS","OOPS","OOPS","","",null,null,null,null,null,null,null,null,null,null,null,null,null,null,null,null,null,null,null,null,null,null,null,"RD","I",23,5,2003,42600,2,1,8,674,20180102,"15:00:00",0.94,null,"",null,null,null,null,null,null,null,"X","X"]
[20180102,"16:00:00",null,"","OOPS","OOPS","OOPS","","",null,null,null,null,null,null,null,null,null,null,null,null,null,null,null,null,null,null,null,null,null,null,null,"RD","I",23,5,2003,42600,2,1,8,674,20180102,"16:00:00",1.46,null,"",null,null,null,null,null,null,null,"X","X"]
[20180102,"17:00:00",null,"","OOPS","OOPS","OOPS","","",null,null,null,null,null,null,null,null,null,null,null,null,null,null,null,null,null,null,null,null,null,null,null,"RD","I",23,5,2003,42600,2,1,8,674,20180102,"17:00:00",1.93,null,"",null,null,null,null,null,null,null,"X","X"]
[20180102,"18:00:00",null,"","OOPS","OOPS","OOPS","","",null,null,null,null,null,null,null,null,null,null,null,null,null,null,null,null,null,null,null,null,null,null,null,"RD","I",23,5,2003,42600,2,1,8,674,20180102,"18:00:00",2.5499999999999998,null,"",null,null,null,null,null,null,null,"X","X"]
[20180102,"19:00:00",null,"","OOPS","OOPS","OOPS","","",null,null,null,null,null,null,null,null,null,null,null,null,null,null,null,null,null,null,null,null,null,null,null,"RD","I",23,5,2003,42600,2,1,8,674,20180102,"19:00:00",2.65,null,"",null,null,null,null,null,null,null,"X","X"]
[20180102,"20:00:00",null,"","OOPS","OOPS","OOPS","","",null,null,null,null,null,null,null,null,null,null,null,null,null,null,null,null,null,null,null,null,null,null,null,"RD","I",23,5,2003,42600,2,1,8,674,20180102,"20:00:00",4.84,null,"",null,null,null,null,null,null,null,"X","X"]
[20180102,"21:00:00",null,"","OOPS","OOPS","OOPS","","",null,null,null,null,null,null,null,null,null,null,null,null,null,null,null,null,null,null,null,null,null,null,null,"RD","I",23,5,2003,42600,2,1,8,674,20180102,"21:00:00",5.84,null,"",null,null,null,null,null,null,null,"X","X"]
[20180102,"22:00:00",null,"","OOPS","OOPS","OOPS","","",null,null,null,null,null,null,null,null,null,null,null,null,null,null,null,null,null,null,null,null,null,null,null,"RD","I",23,5,2003,42600,2,1,8,674,20180102,"22:00:00",5.5,null,"",null,null,null,null,null,null,null,"X","X"]
[20180102,"23:00:00",null,"","OOPS","OOPS","OOPS","","",null,null,null,null,null,null,null,null,null,null,null,null,null,null,null,null,null,null,null,null,null,null,null,"RD","I",23,5,2003,42600,2,1,8,674,20180102,"23:00:00",5.72,null,"",null,null,null,null,null,null,null,"X","X"]
[20180103,"00:00:00",null,"","OOPS","OOPS","","","",null,null,null,null,null,null,null,null,null,null,null,null,null,null,null,null,null,null,null,null,null,null,null,"RD","I",23,5,2003,42600,2,1,8,674,20180103,"00:00:00",4.7,null,"",null,null,null,null,null,null,null,"X","X"]
[20180103,"01:00:00",null,"","OOPS","OOPS","OOPS","","",null,null,null,null,null,null,null,null,null,null,null,null,null,null,null,null,null,null,null,null,null,null,null,"RD","I",23,5,2003,42600,2,1,8,674,20180103,"01:00:00",4.58,null,"",null,null,null,null,null,null,null,"X","X"]
[20180103,"02:00:00",null,"","OOPS","OOPS","OOPS","","",null,null,null,null,null,null,null,null,null,null,null,null,null,null,null,null,null,null,null,null,null,null,null,"RD","I",23,5,2003,42600,2,1,8,674,20180103,"02:00:00",7.36,null,"",null,null,null,null,null,null,null,"X","X"]
[20180103,"03:00:00",null,"","OOPS","OOPS","OOPS","","",null,null,null,null,null,null,null,null,null,null,null,null,null,null,null,null,null,null,null,null,null,null,null,"RD","I",23,5,2003,42600,2,1,8,674,20180103,"03:00:00",7.51,null,"",null,null,null,null,null,null,null,"X","X"]
[20180103,"04:00:00",null,"","OOPS","OOPS","OOPS","","",null,null,null,null,null,null,null,null,null,null,null,null,null,null,null,null,null,null,null,null,null,null,null,"RD","I",23,5,2003,42600,2,1,8,674,20180103,"04:00:00",4.8899999999999997,null,"",null,null,null,null,null,null,null,"X","X"]
[20180103,"05:00:00",null,"","OOPS","OOPS","OOPS","","",null,null,null,null,null,null,null,null,null,null,null,null,null,null,null,null,null,null,null,null,null,null,null,"RD","I",23,5,2003,42600,2,1,8,674,20180103,"05:00:00",6.54,null,"",null,null,null,null,null,null,null,"X","X"]
[20180103,"06:00:00",null,"","OOPS","OOPS","OOPS","","",null,null,null,null,null,null,null,null,null,null,null,null,null,null,null,null,null,null,null,null,null,null,null,"RD","I",23,5,2003,42600,2,1,8,674,20180103,"06:00:00",9.83,null,"",null,null,null,null,null,null,null,"X","X"]
[20180103,"07:00:00",null,"","OOPS","OOPS","OOPS","","",null,null,null,null,null,null,null,null,null,null,null,null,null,null,null,null,null,null,null,null,null,null,null,"RD","I",23,5,2003,42600,2,1,8,674,20180103,"07:00:00",10.82,null,"",null,null,null,null,null,null,null,"X","X"]
[20180103,"08:00:00",null,"","OOPS","OOPS","OOPS","","",null,null,null,null,null,null,null,null,null,null,null,null,null,null,null,null,null,null,null,null,null,null,null,"RD","I",23,5,2003,42600,2,1,8,674,20180103,"08:00:00",6.87,null,"",null,null,null,null,null,null,null,"X","X"]
[20180103,"09:00:00",null,"","OOPS","OOPS","OOPS","","",null,null,null,null,null,null,null,null,null,null,null,null,null,null,null,null,null,null,null,null,null,null,null,"RD","I",23,5,2003,42600,2,1,8,674,20180103,"09:00:00",7,null,"",null,null,null,null,null,null,null,"X","X"]
[20180103,"10:00:00",null,"","OOPS","OOPS","OOPS","","",null,null,null,null,null,null,null,null,null,null,null,null,null,null,null,null,null,null,null,null,null,null,null,"RD","I",23,5,2003,42600,2,1,8,674,20180103,"10:00:00",6.32,null,"",null,null,null,null,null,null,null,"X","X"]
[20180103,"11:00:00",null,"","OOPS","OOPS","OOPS","","",null,null,null,null,null,null,null,null,null,null,null,null,null,null,null,null,null,null,null,null,null,null,null,"RD","I",23,5,2003,42600,2,1,8,674,20180103,"11:00:00",8.44,null,"",null,null,null,null,null,null,null,"X","X"]
[20180103,"12:00:00",null,"","OOPS","OOPS","OOPS","","",null,null,null,null,null,null,null,null,null,null,null,null,null,null,null,null,null,null,null,null,null,null,null,"RD","I",23,5,2003,42600,2,1,8,674,20180103,"12:00:00",6.54,null,"",null,null,null,null,null,null,null,"X","X"]
[20180103,"13:00:00",null,"","OOPS","OOPS","OOPS","","",null,null,null,null,null,null,null,null,null,null,null,null,null,null,null,null,null,null,null,null,null,null,null,"RD","I",23,5,2003,42600,2,1,8,674,20180103,"13:00:00",4.5,null,"",null,null,null,null,null,null,null,"X","X"]
[20180103,"14:00:00",null,"","OOPS","OOPS","OOPS","","",null,null,null,null,null,null,null,null,null,null,null,null,null,null,null,null,null,null,null,null,null,null,null,"RD","I",23,5,2003,42600,2,1,8,674,20180103,"14:00:00",5.9,null,"",null,null,null,null,null,null,null,"X","X"]
[20180103,"15:00:00",null,"","OOPS","OOPS","OOPS","","",null,null,null,null,null,null,null,null,null,null,null,null,null,null,null,null,null,null,null,null,null,null,null,"RD","I",23,5,2003,42600,2,1,8,674,20180103,"15:00:00",6.15,null,"",null,null,null,null,null,null,null,"X","X"]
[20180103,"16:00:00",null,{"$f":"IF(C70=\"\",IF(V70=\"\",\"\",\"OOPS\"),IF(C70=V70,\"\",\"OOPS\"))","v":""},{"$f":"IF(C70=\"\",IF(AS70=\"\",\"\",\"OOPS\"),IF(C70=AS70,\"\",\"OOPS\"))","v":"OOPS"},"OOPS","OOPS","","",null,null,null,null,null,null,null,null,null,null,null,null,null,null,null,null,null,null,null,null,null,null,null,"RD","I",23,5,2003,42600,2,1,8,674,20180103,"16:00:00",11.41,null,"",null,null,null,null,null,null,null,"X","X"]
[20180103,"17:00:00",null,"","OOPS",{"$f":"IF(A71=T71,\"\",\"OOPS\")","v":"OOPS"},{"$f":"IF(B71=U71,\"\",\"OOPS\")","v":"OOPS"},{"$f":"IF(A71=AQ71,\"\",\"OOPS\")","v":""},{"$f":"IF(B71=AR71,\"\",\"OOPS\")","v":""},null,null,null,null,null,null,null,null,null,null,null,null,null,null,null,null,null,null,null,null,null,null,null,"RD","I",23,5,2003,42600,2,1,8,674,20180103,"17:00:00",11.48,null,"",null,null,null,null,null,null,null,"X","X"]
[20180103,"18:00:00",null,"","OOPS","OOPS","OOPS","","",null,null,null,null,null,null,null,null,null,null,null,null,null,null,null,null,null,null,null,null,null,null,null,"RD","I",23,5,2003,42600,2,1,8,674,20180103,"18:00:00",12.39,null,"",null,null,null,null,null,null,null,"X",{"$f":"IF(AR72=\"\",\"\",IF(AR72=AR71,IF(AS72=AS71,\"\",\"X\"),\"X\"))","v":"X"}]
[20180103,"19:00:00",null,"","OOPS","OOPS","OOPS","","",null,null,null,null,null,null,null,null,null,null,null,null,null,null,null,null,null,null,null,null,null,null,null,"RD","I",23,5,2003,42600,2,1,8,674,20180103,"19:00:00",10.73,null,"",null,null,null,null,null,null,null,"X","X"]
[20180103,"20:00:00",null,"","OOPS","OOPS","OOPS","","",null,null,null,null,null,null,null,null,null,null,null,null,null,null,null,null,null,null,null,null,null,null,null,"RD","I",23,5,2003,42600,2,1,8,674,20180103,"20:00:00",12.2,null,"",null,null,null,null,null,null,null,"X","X"]
[20180103,"21:00:00",null,"","OOPS","OOPS","OOPS","","",null,null,null,null,null,null,null,null,null,null,null,null,null,null,null,null,null,null,null,null,null,null,null,"RD","I",23,5,2003,42600,2,1,8,674,20180103,"21:00:00",12.79,null,"",null,null,null,null,null,null,null,"X","X"]
[20180103,"22:00:00",null,"","OOPS","OOPS","OOPS","","",null,null,null,null,null,null,null,null,null,null,null,null,null,null,null,null,null,null,null,null,null,null,null,"RD","I",23,5,2003,42600,2,1,8,674,20180103,"22:00:00",12.1,null,"",null,null,null,null,null,null,null,"X","X"]
[20180103,"23:00:00",null,"","OOPS","OOPS","OOPS","","",null,null,null,null,null,null,null,null,null,null,null,null,null,null,null,null,null,null,null,null,null,null,null,"RD","I",23,5,2003,42600,2,1,8,674,20180103,"23:00:00",14.96,null,"",null,null,null,null,null,null,null,"X","X"]
[20180104,"00:00:00",null,"","OOPS","OOPS","","","",null,null,null,null,null,null,null,null,null,null,null,null,null,null,null,null,null,null,null,null,null,null,null,"RD","I",23,5,2003,42600,2,1,8,674,20180104,"00:00:00",16.59,null,"",null,null,null,null,null,null,null,"X","X"]
[20180104,"01:00:00",null,"","OOPS","OOPS","OOPS","","",null,null,null,null,null,null,null,null,null,null,null,null,null,null,null,null,null,null,null,null,null,null,null,"RD","I",23,5,2003,42600,2,1,8,674,20180104,"01:00:00",11.69,null,"",null,null,null,null,null,null,null,"X","X"]
[20180104,"02:00:00",null,"","OOPS","OOPS","OOPS","","",null,null,null,null,null,null,null,null,null,null,null,null,null,null,null,null,null,null,null,null,null,null,null,"RD","I",23,5,2003,42600,2,1,8,674,20180104,"02:00:00",20.71,null,"",null,null,null,null,null,null,null,"X","X"]
[20180104,"03:00:00",null,"","OOPS","OOPS","OOPS","","",null,null,null,null,null,null,null,null,null,null,null,null,null,null,null,null,null,null,null,null,null,null,null,"RD","I",23,5,2003,42600,2,1,8,674,20180104,"03:00:00",19.84,null,"",null,null,null,null,null,null,null,"X","X"]
[20180104,"04:00:00",null,"","OOPS","OOPS","OOPS","","",null,null,null,null,null,null,null,null,null,null,null,null,null,null,null,null,null,null,null,null,null,null,null,"RD","I",23,5,2003,42600,2,1,8,674,20180104,"04:00:00",12.05,null,"",null,null,null,null,null,null,null,"X","X"]
[20180104,"05:00:00",null,"","OOPS","OOPS","OOPS","","",null,null,null,null,null,null,null,null,null,null,null,null,null,null,null,null,null,null,null,null,null,null,null,"RD","I",23,5,2003,42600,2,1,8,674,20180104,"05:00:00",13.06,null,"",null,null,null,null,null,null,null,"X","X"]
[20180104,"06:00:00",null,"","OOPS","OOPS","OOPS","","",null,null,null,null,null,null,null,null,null,null,null,null,null,null,null,null,null,null,null,null,null,null,null,"RD","I",23,5,2003,42600,2,1,8,674,20180104,"06:00:00",11.53,null,"",null,null,null,null,null,null,null,"X","X"]
[20180104,"07:00:00",null,"","OOPS","OOPS","OOPS","","",null,null,null,null,null,null,null,null,null,null,null,null,null,null,null,null,null,null,null,null,null,null,null,"RD","I",23,5,2003,42600,2,1,8,674,20180104,"07:00:00",9.4700000000000006,null,"",null,null,null,null,null,null,null,"X","X"]
[20180104,"08:00:00",null,"","OOPS","OOPS","OOPS","","",null,null,null,null,null,null,null,null,null,null,null,null,null,null,null,null,null,null,null,null,null,null,null,"RD","I",23,5,2003,42600,2,1,8,674,20180104,"08:00:00",7.32,null,"",null,null,null,null,null,null,null,"X","X"]
[20180104,"09:00:00",null,"","OOPS","OOPS","OOPS","","",null,null,null,null,null,null,null,null,null,null,null,null,null,null,null,null,null,null,null,null,null,null,null,"RD","I",23,5,2003,42600,2,1,8,674,20180104,"09:00:00",7.11,null,"",null,null,null,null,null,null,null,"X","X"]
[20180104,"10:00:00",null,"","OOPS","OOPS","OOPS","","",null,null,null,null,null,null,null,null,null,null,null,null,null,null,null,null,null,null,null,null,null,null,null,"RD","I",23,5,2003,42600,2,1,8,674,20180104,"10:00:00",6.2,null,"",null,null,null,null,null,null,null,"X","X"]
[20180104,"11:00:00",null,"","OOPS","OOPS","OOPS","","",null,null,null,null,null,null,null,null,null,null,null,null,null,null,null,null,null,null,null,null,null,null,null,"RD","I",23,5,2003,42600,2,1,8,674,20180104,"11:00:00",4.34,null,"",null,null,null,null,null,null,null,"X","X"]
[20180104,"12:00:00",null,"","OOPS","OOPS","OOPS","","",null,null,null,null,null,null,null,null,null,null,null,null,null,null,null,null,null,null,null,null,null,null,null,"RD","I",23,5,2003,42600,2,1,8,674,20180104,"12:00:00",3.22,null,"",null,null,null,null,null,null,null,"X","X"]
[20180104,"13:00:00",null,"","OOPS","OOPS","OOPS","","",null,null,null,null,null,null,null,null,null,null,null,null,null,null,null,null,null,null,null,null,null,null,null,"RD","I",23,5,2003,42600,2,1,8,674,20180104,"13:00:00",2.34,null,"",null,null,null,null,null,null,null,"X","X"]
[20180104,"14:00:00",null,"","OOPS","OOPS","OOPS","","",null,null,null,null,null,null,null,null,null,null,null,null,null,null,null,null,null,null,null,null,null,null,null,"RD","I",23,5,2003,42600,2,1,8,674,20180104,"14:00:00",1.49,null,"",null,null,null,null,null,null,null,"X","X"]
[20180104,"15:00:00",null,"","OOPS","OOPS","OOPS","","",null,null,null,null,null,null,null,null,null,null,null,null,null,null,null,null,null,null,null,null,null,null,null,"RD","I",23,5,2003,42600,2,1,8,674,20180104,"15:00:00",1.0900000000000001,null,"",null,null,null,null,null,null,null,"X","X"]
[20180104,"16:00:00",null,"","OOPS","OOPS","OOPS","","",null,null,null,null,null,null,null,null,null,null,null,null,null,null,null,null,null,null,null,null,null,null,null,"RD","I",23,5,2003,42600,2,1,8,674,20180104,"16:00:00",0.96,null,"",null,null,null,null,null,null,null,"X","X"]
[20180104,"17:00:00",null,"","OOPS","OOPS","OOPS","","",null,null,null,null,null,null,null,null,null,null,null,null,null,null,null,null,null,null,null,null,null,null,null,"RD","I",23,5,2003,42600,2,1,8,674,20180104,"17:00:00",0.92,null,"",null,null,null,null,null,null,null,"X","X"]
[20180104,"18:00:00",null,"","OOPS","OOPS","OOPS","","",null,null,null,null,null,null,null,null,null,null,null,null,null,null,null,null,null,null,null,null,null,null,null,"RD","I",23,5,2003,42600,2,1,8,674,20180104,"18:00:00",2.08,null,"",null,null,null,null,null,null,null,"X","X"]
[20180104,"19:00:00",null,"","OOPS","OOPS","OOPS","","",null,null,null,null,null,null,null,null,null,null,null,null,null,null,null,null,null,null,null,null,null,null,null,"RD","I",23,5,2003,42600,2,1,8,674,20180104,"19:00:00",1.52,null,"",null,null,null,null,null,null,null,"X","X"]
[20180104,"20:00:00",null,"","OOPS","OOPS","OOPS","","",null,null,null,null,null,null,null,null,null,null,null,null,null,null,null,null,null,null,null,null,null,null,null,"RD","I",23,5,2003,42600,2,1,8,674,20180104,"20:00:00",2.17,null,"",null,null,null,null,null,null,null,"X","X"]
[20180104,"21:00:00",null,"","OOPS","OOPS","OOPS","","",null,null,null,null,null,null,null,null,null,null,null,null,null,null,null,null,null,null,null,null,null,null,null,"RD","I",23,5,2003,42600,2,1,8,674,20180104,"21:00:00",2.21,null,"",null,null,null,null,null,null,null,"X","X"]
[20180104,"22:00:00",null,"","OOPS","OOPS","OOPS","","",null,null,null,null,null,null,null,null,null,null,null,null,null,null,null,null,null,null,null,null,null,null,null,"RD","I",23,5,2003,42600,2,1,8,674,20180104,"22:00:00",1.82,null,"",null,null,null,null,null,null,null,"X","X"]
[20180104,"23:00:00",null,"","OOPS","OOPS","OOPS","","",null,null,null,null,null,null,null,null,null,null,null,null,null,null,null,null,null,null,null,null,null,null,null,"RD","I",23,5,2003,42600,2,1,8,674,20180104,"23:00:00",2.02,null,"",null,null,null,null,null,null,null,"X","X"]
[20180105,"00:00:00",null,"","OOPS","OOPS","","","",null,null,null,null,null,null,null,null,null,null,null,null,null,null,null,null,null,null,null,null,null,null,null,"RD","I",23,5,2003,42600,2,1,8,674,20180105,"00:00:00",1.95,null,"",null,null,null,null,null,null,null,"X","X"]
[20180105,"01:00:00",null,"","OOPS","OOPS","OOPS","","",null,null,null,null,null,null,null,null,null,null,null,null,null,null,null,null,null,null,null,null,null,null,null,"RD","I",23,5,2003,42600,2,1,8,674,20180105,"01:00:00",1.07,null,"",null,null,null,null,null,null,null,"X","X"]
[20180105,"02:00:00",null,"","OOPS","OOPS","OOPS","","",null,null,null,null,null,null,null,null,null,null,null,null,null,null,null,null,null,null,null,null,null,null,null,"RD","I",23,5,2003,42600,2,1,8,674,20180105,"02:00:00",1.5,null,"",null,null,null,null,null,null,null,"X","X"]
[20180105,"03:00:00",null,"","OOPS","OOPS","OOPS","","",null,null,null,null,null,null,null,null,null,null,null,null,null,null,null,null,null,null,null,null,null,null,null,"RD","I",23,5,2003,42600,2,1,8,674,20180105,"03:00:00",1.73,null,"",null,null,null,null,null,null,null,"X","X"]
[20180105,"04:00:00",null,"","OOPS","OOPS","OOPS","","",null,null,null,null,null,null,null,null,null,null,null,null,null,null,null,null,null,null,null,null,null,null,null,"RD","I",23,5,2003,42600,2,1,8,674,20180105,"04:00:00",1.51,null,"",null,null,null,null,null,null,null,"X","X"]
[20180105,"05:00:00",null,"","OOPS","OOPS","OOPS","","",null,null,null,null,null,null,null,null,null,null,null,null,null,null,null,null,null,null,null,null,null,null,null,"RD","I",23,5,2003,42600,2,1,8,674,20180105,"05:00:00",1.75,null,"",null,null,null,null,null,null,null,"X","X"]
[20180105,"06:00:00",null,"","OOPS","OOPS","OOPS","","",null,null,null,null,null,null,null,null,null,null,null,null,null,null,null,null,null,null,null,null,null,null,null,"RD","I",23,5,2003,42600,2,1,8,674,20180105,"06:00:00",1.62,null,"",null,null,null,null,null,null,null,"X","X"]
[20180105,"07:00:00",null,"","OOPS","OOPS","OOPS","","",null,null,null,null,null,null,null,null,null,null,null,null,null,null,null,null,null,null,null,null,null,null,null,"RD","I",23,5,2003,42600,2,1,8,674,20180105,"07:00:00",1.76,null,"",null,null,null,null,null,null,null,"X","X"]
[20180105,"08:00:00",null,"","OOPS","OOPS","OOPS","","",null,null,null,null,null,null,null,null,null,null,null,null,null,null,null,null,null,null,null,null,null,null,null,"RD","I",23,5,2003,42600,2,1,8,674,20180105,"08:00:00",1.96,null,"",null,null,null,null,null,null,null,"X","X"]
[20180105,"09:00:00",null,"","OOPS","OOPS","OOPS","","",null,null,null,null,null,null,null,null,null,null,null,null,null,null,null,null,null,null,null,null,null,null,null,"RD","I",23,5,2003,42600,2,1,8,674,20180105,"09:00:00",1.62,null,"",null,null,null,null,null,null,null,"X","X"]
[20180105,"10:00:00",null,"","OOPS","OOPS","OOPS","","",null,null,null,null,null,null,null,null,null,null,null,null,null,null,null,null,null,null,null,null,null,null,null,"RD","I",23,5,2003,42600,2,1,8,674,20180105,"10:00:00",1.44,null,"",null,null,null,null,null,null,null,"X","X"]
[20180105,"11:00:00",null,"","OOPS","OOPS","OOPS","","",null,null,null,null,null,null,null,null,null,null,null,null,null,null,null,null,null,null,null,null,null,null,null,"RD","I",23,5,2003,42600,2,1,8,674,20180105,"11:00:00",1.68,null,"",null,null,null,null,null,null,null,"X","X"]
[20180105,"12:00:00",null,"","OOPS","OOPS","OOPS","","",null,null,null,null,null,null,null,null,null,null,null,null,null,null,null,null,null,null,null,null,null,null,null,"RD","I",23,5,2003,42600,2,1,8,674,20180105,"12:00:00",1.63,null,"",null,null,null,null,null,null,null,"X","X"]
[20180105,"13:00:00",null,"","OOPS","OOPS","OOPS","","",null,null,null,null,null,null,null,null,null,null,null,null,null,null,null,null,null,null,null,null,null,null,null,"RD","I",23,5,2003,42600,2,1,8,674,20180105,"13:00:00",1.57,null,"",null,null,null,null,null,null,null,"X","X"]
[20180105,"14:00:00",null,"","OOPS","OOPS","OOPS","","",null,null,null,null,null,null,null,null,null,null,null,null,null,null,null,null,null,null,null,null,null,null,null,"RD","I",23,5,2003,42600,2,1,8,674,20180105,"14:00:00",1.94,null,"",null,null,null,null,null,null,null,"X","X"]
[20180105,"15:00:00",null,"","OOPS","OOPS","OOPS","","",null,null,null,null,null,null,null,null,null,null,null,null,null,null,null,null,null,null,null,null,null,null,null,"RD","I",23,5,2003,42600,2,1,8,674,20180105,"15:00:00",1.59,null,"",null,null,null,null,null,null,null,"X","X"]
[20180105,"16:00:00",null,"","OOPS","OOPS","OOPS","","",null,null,null,null,null,null,null,null,null,null,null,null,null,null,null,null,null,null,null,null,null,null,null,"RD","I",23,5,2003,42600,2,1,8,674,20180105,"16:00:00",1.6,null,"",null,null,null,null,null,null,null,"X","X"]
[20180105,"17:00:00",null,"","OOPS","OOPS","OOPS","","",null,null,null,null,null,null,null,null,null,null,null,null,null,null,null,null,null,null,null,null,null,null,null,"RD","I",23,5,2003,42600,2,1,8,674,20180105,"17:00:00",1.05,null,"",null,null,null,null,null,null,null,"X","X"]
[20180105,"18:00:00",null,"","OOPS","OOPS","OOPS","","",null,null,null,null,null,null,null,null,null,null,null,null,null,null,null,null,null,null,null,null,null,null,null,"RD","I",23,5,2003,42600,2,1,8,674,20180105,"18:00:00",0.9,null,"",null,null,null,null,null,null,null,"X","X"]
[20180105,"19:00:00",null,"","OOPS","OOPS","OOPS","","",null,null,null,null,null,null,null,null,null,null,null,null,null,null,null,null,null,null,null,null,null,null,null,"RD","I",23,5,2003,42600,2,1,8,674,20180105,"19:00:00",0.89,null,"",null,null,null,null,null,null,null,"X","X"]
[20180105,"20:00:00",null,"","OOPS","OOPS","OOPS","","",null,null,null,null,null,null,null,null,null,null,null,null,null,null,null,null,null,null,null,null,null,null,null,"RD","I",23,5,2003,42600,2,1,8,674,20180105,"20:00:00",0.72,null,"",null,null,null,null,null,null,null,"X","X"]
[20180105,"21:00:00",null,"","OOPS","OOPS","OOPS","","",null,null,null,null,null,null,null,null,null,null,null,null,null,null,null,null,null,null,null,null,null,null,null,"RD","I",23,5,2003,42600,2,1,8,674,20180105,"21:00:00",0.65,null,"",null,null,null,null,null,null,null,"X","X"]
[20180105,"22:00:00",null,"","OOPS","OOPS","OOPS","","",null,null,null,null,null,null,null,null,null,null,null,null,null,null,null,null,null,null,null,null,null,null,null,"RD","I",23,5,2003,42600,2,1,8,674,20180105,"22:00:00",0.62,null,"",null,null,null,null,null,null,null,"X","X"]
[20180105,"23:00:00",null,"","OOPS","OOPS","OOPS","","",null,null,null,null,null,null,null,null,null,null,null,null,null,null,null,null,null,null,null,null,null,null,null,"RD","I",23,5,2003,42600,2,1,8,674,20180105,"23:00:00",0.4,null,"",null,null,null,null,null,null,null,"X","X"]
[20180106,"00:00:00",null,"","OOPS","OOPS","","","",null,null,null,null,null,null,null,null,null,null,null,null,null,null,null,null,null,null,null,null,null,null,null,"RD","I",23,5,2003,42600,2,1,8,674,20180106,"00:00:00",0.39,null,"",null,null,null,null,null,null,null,"X","X"]
[20180106,"01:00:00",null,"","OOPS","OOPS","OOPS","","",null,null,null,null,null,null,null,null,null,null,null,null,null,null,null,null,null,null,null,null,null,null,null,"RD","I",23,5,2003,42600,2,1,8,674,20180106,"01:00:00",0.33,null,"",null,null,null,null,null,null,null,"X","X"]
[20180106,"02:00:00",null,"","OOPS","OOPS","OOPS","","",null,null,null,null,null,null,null,null,null,null,null,null,null,null,null,null,null,null,null,null,null,null,null,"RD","I",23,5,2003,42600,2,1,8,674,20180106,"02:00:00",0.49,null,"",null,null,null,null,null,null,null,"X","X"]
[20180106,"03:00:00",null,"","OOPS","OOPS","OOPS","","",null,null,null,null,null,null,null,null,null,null,null,null,null,null,null,null,null,null,null,null,null,null,null,"RD","I",23,5,2003,42600,2,1,8,674,20180106,"03:00:00",0.81,null,"",null,null,null,null,null,null,null,"X","X"]
[20180106,"04:00:00",null,"","OOPS","OOPS","OOPS","","",null,null,null,null,null,null,null,null,null,null,null,null,null,null,null,null,null,null,null,null,null,null,null,"RD","I",23,5,2003,42600,2,1,8,674,20180106,"04:00:00",0.31,null,"",null,null,null,null,null,null,null,"X","X"]
[20180106,"05:00:00",null,"","OOPS","OOPS","OOPS","","",null,null,null,null,null,null,null,null,null,null,null,null,null,null,null,null,null,null,null,null,null,null,null,"RD","I",23,5,2003,42600,2,1,8,674,20180106,"05:00:00",0.33,null,"",null,null,null,null,null,null,null,"X","X"]
[20180106,"06:00:00",null,"","OOPS","OOPS","OOPS","","",null,null,null,null,null,null,null,null,null,null,null,null,null,null,null,null,null,null,null,null,null,null,null,"RD","I",23,5,2003,42600,2,1,8,674,20180106,"06:00:00",0.37,null,"",null,null,null,null,null,null,null,"X","X"]
[20180106,"07:00:00",null,"","OOPS","OOPS","OOPS","","",null,null,null,null,null,null,null,null,null,null,null,null,null,null,null,null,null,null,null,null,null,null,null,"RD","I",23,5,2003,42600,2,1,8,674,20180106,"07:00:00",0.6,null,"",null,null,null,null,null,null,null,"X","X"]
[20180106,"08:00:00",null,{"$f":"IF(C134=\"\",IF(V134=\"\",\"\",\"OOPS\"),IF(C134=V134,\"\",\"OOPS\"))","v":""},{"$f":"IF(C134=\"\",IF(AS134=\"\",\"\",\"OOPS\"),IF(C134=AS134,\"\",\"OOPS\"))","v":"OOPS"},"OOPS","OOPS","","",null,null,null,null,null,null,null,null,null,null,null,null,null,null,null,null,null,null,null,null,null,null,null,"RD","I",23,5,2003,42600,2,1,8,674,20180106,"08:00:00",0.72,null,"",null,null,null,null,null,null,null,"X","X"]
[20180106,"09:00:00",null,"","OOPS",{"$f":"IF(A135=T135,\"\",\"OOPS\")","v":"OOPS"},{"$f":"IF(B135=U135,\"\",\"OOPS\")","v":"OOPS"},{"$f":"IF(A135=AQ135,\"\",\"OOPS\")","v":""},{"$f":"IF(B135=AR135,\"\",\"OOPS\")","v":""},null,null,null,null,null,null,null,null,null,null,null,null,null,null,null,null,null,null,null,null,null,null,null,"RD","I",23,5,2003,42600,2,1,8,674,20180106,"09:00:00",0.56999999999999995,null,"",null,null,null,null,null,null,null,"X","X"]
[20180106,"10:00:00",null,"","OOPS","OOPS","OOPS","","",null,null,null,null,null,null,null,null,null,null,null,null,null,null,null,null,null,null,null,null,null,null,null,"RD","I",23,5,2003,42600,2,1,8,674,20180106,"10:00:00",0.48,null,"",null,null,null,null,null,null,null,"X",{"$f":"IF(AR136=\"\",\"\",IF(AR136=AR135,IF(AS136=AS135,\"\",\"X\"),\"X\"))","v":"X"}]
[20180106,"11:00:00",null,"","OOPS","OOPS","OOPS","","",null,null,null,null,null,null,null,null,null,null,null,null,null,null,null,null,null,null,null,null,null,null,null,"RD","I",23,5,2003,42600,2,1,8,674,20180106,"11:00:00",0.25,null,"",null,null,null,null,null,null,null,"X","X"]
[20180106,"12:00:00",null,"","OOPS","OOPS","OOPS","","",null,null,null,null,null,null,null,null,null,null,null,null,null,null,null,null,null,null,null,null,null,null,null,"RD","I",23,5,2003,42600,2,1,8,674,20180106,"12:00:00",0.39,null,"",null,null,null,null,null,null,null,"X","X"]
[20180106,"13:00:00",null,"","OOPS","OOPS","OOPS","","",null,null,null,null,null,null,null,null,null,null,null,null,null,null,null,null,null,null,null,null,null,null,null,"RD","I",23,5,2003,42600,2,1,8,674,20180106,"13:00:00",0.37,null,"",null,null,null,null,null,null,null,"X","X"]
[20180106,"14:00:00",null,"","OOPS","OOPS","OOPS","","",null,null,null,null,null,null,null,null,null,null,null,null,null,null,null,null,null,null,null,null,null,null,null,"RD","I",23,5,2003,42600,2,1,8,674,20180106,"14:00:00",0.5,null,"",null,null,null,null,null,null,null,"X","X"]
[20180106,"15:00:00",null,"","OOPS","OOPS","OOPS","","",null,null,null,null,null,null,null,null,null,null,null,null,null,null,null,null,null,null,null,null,null,null,null,"RD","I",23,5,2003,42600,2,1,8,674,20180106,"15:00:00",0.47,null,"",null,null,null,null,null,null,null,"X","X"]
[20180106,"16:00:00",null,"","OOPS","OOPS","OOPS","","",null,null,null,null,null,null,null,null,null,null,null,null,null,null,null,null,null,null,null,null,null,null,null,"RD","I",23,5,2003,42600,2,1,8,674,20180106,"16:00:00",0.75,null,"",null,null,null,null,null,null,null,"X","X"]
[20180106,"17:00:00",null,"","OOPS","OOPS","OOPS","","",null,null,null,null,null,null,null,null,null,null,null,null,null,null,null,null,null,null,null,null,null,null,null,"RD","I",23,5,2003,42600,2,1,8,674,20180106,"17:00:00",0.82,null,"",null,null,null,null,null,null,null,"X","X"]
[20180106,"18:00:00",null,"","OOPS","OOPS","OOPS","","",null,null,null,null,null,null,null,null,null,null,null,null,null,null,null,null,null,null,null,null,null,null,null,"RD","I",23,5,2003,42600,2,1,8,674,20180106,"18:00:00",0.83,null,"",null,null,null,null,null,null,null,"X","X"]
[20180106,"19:00:00",null,"","OOPS","OOPS","OOPS","","",null,null,null,null,null,null,null,null,null,null,null,null,null,null,null,null,null,null,null,null,null,null,null,"RD","I",23,5,2003,42600,2,1,8,674,20180106,"19:00:00",1.61,null,"",null,null,null,null,null,null,null,"X","X"]
[20180106,"20:00:00",null,"","OOPS","OOPS","OOPS","","",null,null,null,null,null,null,null,null,null,null,null,null,null,null,null,null,null,null,null,null,null,null,null,"RD","I",23,5,2003,42600,2,1,8,674,20180106,"20:00:00",4.09,null,"",null,null,null,null,null,null,null,"X","X"]
[20180106,"21:00:00",null,"","OOPS","OOPS","OOPS","","",null,null,null,null,null,null,null,null,null,null,null,null,null,null,null,null,null,null,null,null,null,null,null,"RD","I",23,5,2003,42600,2,1,8,674,20180106,"21:00:00",2.5,null,"",null,null,null,null,null,null,null,"X","X"]
[20180106,"22:00:00",null,"","OOPS","OOPS","OOPS","","",null,null,null,null,null,null,null,null,null,null,null,null,null,null,null,null,null,null,null,null,null,null,null,"RD","I",23,5,2003,42600,2,1,8,674,20180106,"22:00:00",2.0699999999999998,null,"",null,null,null,null,null,null,null,"X","X"]
[20180106,"23:00:00",null,"","OOPS","OOPS","OOPS","","",null,null,null,null,null,null,null,null,null,null,null,null,null,null,null,null,null,null,null,null,null,null,null,"RD","I",23,5,2003,42600,2,1,8,674,20180106,"23:00:00",2.42,null,"",null,null,null,null,null,null,null,"X","X"]
[20180107,"00:00:00",null,"","OOPS","OOPS","","","",null,null,null,null,null,null,null,null,null,null,null,null,null,null,null,null,null,null,null,null,null,null,null,"RD","I",23,5,2003,42600,2,1,8,674,20180107,"00:00:00",5.38,null,"",null,null,null,null,null,null,null,"X","X"]
[20180107,"01:00:00",null,"","OOPS","OOPS","OOPS","","",null,null,null,null,null,null,null,null,null,null,null,null,null,null,null,null,null,null,null,null,null,null,null,"RD","I",23,5,2003,42600,2,1,8,674,20180107,"01:00:00",6,null,"",null,null,null,null,null,null,null,"X","X"]
[20180107,"02:00:00",null,"","OOPS","OOPS","OOPS","","",null,null,null,null,null,null,null,null,null,null,null,null,null,null,null,null,null,null,null,null,null,null,null,"RD","I",23,5,2003,42600,2,1,8,674,20180107,"02:00:00",3.11,null,"",null,null,null,null,null,null,null,"X","X"]
[20180107,"03:00:00",null,"","OOPS","OOPS","OOPS","","",null,null,null,null,null,null,null,null,null,null,null,null,null,null,null,null,null,null,null,null,null,null,null,"RD","I",23,5,2003,42600,2,1,8,674,20180107,"03:00:00",1.99,null,"",null,null,null,null,null,null,null,"X","X"]
[20180107,"04:00:00",null,"","OOPS","OOPS","OOPS","","",null,null,null,null,null,null,null,null,null,null,null,null,null,null,null,null,null,null,null,null,null,null,null,"RD","I",23,5,2003,42600,2,1,8,674,20180107,"04:00:00",2.04,null,"",null,null,null,null,null,null,null,"X","X"]
[20180107,"05:00:00",null,"","OOPS","OOPS","OOPS","","",null,null,null,null,null,null,null,null,null,null,null,null,null,null,null,null,null,null,null,null,null,null,null,"RD","I",23,5,2003,42600,2,1,8,674,20180107,"05:00:00",1.89,null,"",null,null,null,null,null,null,null,"X","X"]
[20180107,"06:00:00",null,"","OOPS","OOPS","OOPS","","",null,null,null,null,null,null,null,null,null,null,null,null,null,null,null,null,null,null,null,null,null,null,null,"RD","I",23,5,2003,42600,2,1,8,674,20180107,"06:00:00",2.66,null,"",null,null,null,null,null,null,null,"X","X"]
[20180107,"07:00:00",null,"","OOPS","OOPS","OOPS","","",null,null,null,null,null,null,null,null,null,null,null,null,null,null,null,null,null,null,null,null,null,null,null,"RD","I",23,5,2003,42600,2,1,8,674,20180107,"07:00:00",2.8,null,"",null,null,null,null,null,null,null,"X","X"]
[20180107,"08:00:00",null,"","OOPS","OOPS","OOPS","","",null,null,null,null,null,null,null,null,null,null,null,null,null,null,null,null,null,null,null,null,null,null,null,"RD","I",23,5,2003,42600,2,1,8,674,20180107,"08:00:00",1.89,null,"",null,null,null,null,null,null,null,"X","X"]
[20180107,"09:00:00",null,"","OOPS","OOPS","OOPS","","",null,null,null,null,null,null,null,null,null,null,null,null,null,null,null,null,null,null,null,null,null,null,null,"RD","I",23,5,2003,42600,2,1,8,674,20180107,"09:00:00",3.17,null,"",null,null,null,null,null,null,null,"X","X"]
[20180107,"10:00:00",null,"","OOPS","OOPS","OOPS","","",null,null,null,null,null,null,null,null,null,null,null,null,null,null,null,null,null,null,null,null,null,null,null,"RD","I",23,5,2003,42600,2,1,8,674,20180107,"10:00:00",3,null,"",null,null,null,null,null,null,null,"X","X"]
[20180107,"11:00:00",null,"","OOPS","OOPS","OOPS","","",null,null,null,null,null,null,null,null,null,null,null,null,null,null,null,null,null,null,null,null,null,null,null,"RD","I",23,5,2003,42600,2,1,8,674,20180107,"11:00:00",3.55,null,"",null,null,null,null,null,null,null,"X","X"]
[20180107,"12:00:00",null,"","OOPS","OOPS","OOPS","","",null,null,null,null,null,null,null,null,null,null,null,null,null,null,null,null,null,null,null,null,null,null,null,"RD","I",23,5,2003,42600,2,1,8,674,20180107,"12:00:00",3.76,null,"",null,null,null,null,null,null,null,"X","X"]
[20180107,"13:00:00",null,"","OOPS","OOPS","OOPS","","",null,null,null,null,null,null,null,null,null,null,null,null,null,null,null,null,null,null,null,null,null,null,null,"RD","I",23,5,2003,42600,2,1,8,674,20180107,"13:00:00",2.14,null,"",null,null,null,null,null,null,null,"X","X"]
[20180107,"14:00:00",null,"","OOPS","OOPS","OOPS","","",null,null,null,null,null,null,null,null,null,null,null,null,null,null,null,null,null,null,null,null,null,null,null,"RD","I",23,5,2003,42600,2,1,8,674,20180107,"14:00:00",0.99,null,"",null,null,null,null,null,null,null,"X","X"]
[20180107,"15:00:00",null,"","OOPS","OOPS","OOPS","","",null,null,null,null,null,null,null,null,null,null,null,null,null,null,null,null,null,null,null,null,null,null,null,"RD","I",23,5,2003,42600,2,1,8,674,20180107,"15:00:00",0.68,null,"",null,null,null,null,null,null,null,"X","X"]
[20180107,"16:00:00",null,"","OOPS","OOPS","OOPS","","",null,null,null,null,null,null,null,null,null,null,null,null,null,null,null,null,null,null,null,null,null,null,null,"RD","I",23,5,2003,42600,2,1,8,674,20180107,"16:00:00",0.74,null,"",null,null,null,null,null,null,null,"X","X"]
[20180107,"17:00:00",null,"","OOPS","OOPS","OOPS","","",null,null,null,null,null,null,null,null,null,null,null,null,null,null,null,null,null,null,null,null,null,null,null,"RD","I",23,5,2003,42600,2,1,8,674,20180107,"17:00:00",0.77,null,"",null,null,null,null,null,null,null,"X","X"]
[20180107,"18:00:00",null,"","OOPS","OOPS","OOPS","","",null,null,null,null,null,null,null,null,null,null,null,null,null,null,null,null,null,null,null,null,null,null,null,"RD","I",23,5,2003,42600,2,1,8,674,20180107,"18:00:00",1.66,null,"",null,null,null,null,null,null,null,"X","X"]
[20180107,"19:00:00",null,"","OOPS","OOPS","OOPS","","",null,null,null,null,null,null,null,null,null,null,null,null,null,null,null,null,null,null,null,null,null,null,null,"RD","I",23,5,2003,42600,2,1,8,674,20180107,"19:00:00",1.53,null,"",null,null,null,null,null,null,null,"X","X"]
[20180107,"20:00:00",null,"","OOPS","OOPS","OOPS","","",null,null,null,null,null,null,null,null,null,null,null,null,null,null,null,null,null,null,null,null,null,null,null,"RD","I",23,5,2003,42600,2,1,8,674,20180107,"20:00:00",2.37,null,"",null,null,null,null,null,null,null,"X","X"]
[20180107,"21:00:00",null,"","OOPS","OOPS","OOPS","","",null,null,null,null,null,null,null,null,null,null,null,null,null,null,null,null,null,null,null,null,null,null,null,"RD","I",23,5,2003,42600,2,1,8,674,20180107,"21:00:00",2.88,null,"",null,null,null,null,null,null,null,"X","X"]
[20180107,"22:00:00",null,"","OOPS","OOPS","OOPS","","",null,null,null,null,null,null,null,null,null,null,null,null,null,null,null,null,null,null,null,null,null,null,null,"RD","I",23,5,2003,42600,2,1,8,674,20180107,"22:00:00",2.93,null,"",null,null,null,null,null,null,null,"X","X"]
[20180107,"23:00:00",null,"","OOPS","OOPS","OOPS","","",null,null,null,null,null,null,null,null,null,null,null,null,null,null,null,null,null,null,null,null,null,null,null,"RD","I",23,5,2003,42600,2,1,8,674,20180107,"23:00:00",3.23,null,"",null,null,null,null,null,null,null,"X","X"]
[20180108,"00:00:00",null,"","OOPS","OOPS","","","",null,null,null,null,null,null,null,null,null,null,null,null,null,null,null,null,null,null,null,null,null,null,null,"RD","I",23,5,2003,42600,2,1,8,674,20180108,"00:00:00",4.21,null,"",null,null,null,null,null,null,null,"X","X"]
[20180108,"01:00:00",null,"","OOPS","OOPS","OOPS","","",null,null,null,null,null,null,null,null,null,null,null,null,null,null,null,null,null,null,null,null,null,null,null,"RD","I",23,5,2003,42600,2,1,8,674,20180108,"01:00:00",4.45,null,"",null,null,null,null,null,null,null,"X","X"]
[20180108,"02:00:00",null,"","OOPS","OOPS","OOPS","","",null,null,null,null,null,null,null,null,null,null,null,null,null,null,null,null,null,null,null,null,null,null,null,"RD","I",23,5,2003,42600,2,1,8,674,20180108,"02:00:00",4.87,null,"",null,null,null,null,null,null,null,"X","X"]
[20180108,"03:00:00",null,"","OOPS","OOPS","OOPS","","",null,null,null,null,null,null,null,null,null,null,null,null,null,null,null,null,null,null,null,null,null,null,null,"RD","I",23,5,2003,42600,2,1,8,674,20180108,"03:00:00",5.72,null,"",null,null,null,null,null,null,null,"X","X"]
[20180108,"04:00:00",null,"","OOPS","OOPS","OOPS","","",null,null,null,null,null,null,null,null,null,null,null,null,null,null,null,null,null,null,null,null,null,null,null,"RD","I",23,5,2003,42600,2,1,8,674,20180108,"04:00:00",6.35,null,"",null,null,null,null,null,null,null,"X","X"]
[20180108,"05:00:00",null,"","OOPS","OOPS","OOPS","","",null,null,null,null,null,null,null,null,null,null,null,null,null,null,null,null,null,null,null,null,null,null,null,"RD","I",23,5,2003,42600,2,1,8,674,20180108,"05:00:00",6.88,null,"",null,null,null,null,null,null,null,"X","X"]
[20180108,"06:00:00",null,"","OOPS","OOPS","OOPS","","",null,null,null,null,null,null,null,null,null,null,null,null,null,null,null,null,null,null,null,null,null,null,null,"RD","I",23,5,2003,42600,2,1,8,674,20180108,"06:00:00",8.8699999999999992,null,"",null,null,null,null,null,null,null,"X","X"]
[20180108,"07:00:00",null,"","OOPS","OOPS","OOPS","","",null,null,null,null,null,null,null,null,null,null,null,null,null,null,null,null,null,null,null,null,null,null,null,"RD","I",23,5,2003,42600,2,1,8,674,20180108,"07:00:00",11.07,null,"",null,null,null,null,null,null,null,"X","X"]
[20180108,"08:00:00",null,"","OOPS","OOPS","OOPS","","",null,null,null,null,null,null,null,null,null,null,null,null,null,null,null,null,null,null,null,null,null,null,null,"RD","I",23,5,2003,42600,2,1,8,674,20180108,"08:00:00",11.97,null,"",null,null,null,null,null,null,null,"X","X"]
[20180108,"09:00:00",null,"","OOPS","OOPS","OOPS","","",null,null,null,null,null,null,null,null,null,null,null,null,null,null,null,null,null,null,null,null,null,null,null,"RD","I",23,5,2003,42600,2,1,8,674,20180108,"09:00:00",16.510000000000002,null,"",null,null,null,null,null,null,null,"X","X"]
[20180108,"10:00:00",null,"","OOPS","OOPS","OOPS","","",null,null,null,null,null,null,null,null,null,null,null,null,null,null,null,null,null,null,null,null,null,null,null,"RD","I",23,5,2003,42600,2,1,8,674,20180108,"10:00:00",11.96,null,"",null,null,null,null,null,null,null,"X","X"]
[20180108,"11:00:00",null,"","OOPS","OOPS","OOPS","","",null,null,null,null,null,null,null,null,null,null,null,null,null,null,null,null,null,null,null,null,null,null,null,"RD","I",23,5,2003,42600,2,1,8,674,20180108,"11:00:00",12.06,null,"",null,null,null,null,null,null,null,"X","X"]
[20180108,"12:00:00",null,"","OOPS","OOPS","OOPS","","",null,null,null,null,null,null,null,null,null,null,null,null,null,null,null,null,null,null,null,null,null,null,null,"RD","I",23,5,2003,42600,2,1,8,674,20180108,"12:00:00",12.73,null,"",null,null,null,null,null,null,null,"X","X"]
[20180108,"13:00:00",null,"","OOPS","OOPS","OOPS","","",null,null,null,null,null,null,null,null,null,null,null,null,null,null,null,null,null,null,null,null,null,null,null,"RD","I",23,5,2003,42600,2,1,8,674,20180108,"13:00:00",14.57,null,"",null,null,null,null,null,null,null,"X","X"]
[20180108,"14:00:00",null,"","OOPS","OOPS","OOPS","","",null,null,null,null,null,null,null,null,null,null,null,null,null,null,null,null,null,null,null,null,null,null,null,"RD","I",23,5,2003,42600,2,1,8,674,20180108,"14:00:00",18.64,null,"",null,null,null,null,null,null,null,"X","X"]
[20180108,"15:00:00",null,"","OOPS","OOPS","OOPS","","",null,null,null,null,null,null,null,null,null,null,null,null,null,null,null,null,null,null,null,null,null,null,null,"RD","I",23,5,2003,42600,2,1,8,674,20180108,"15:00:00",14.29,null,"",null,null,null,null,null,null,null,"X","X"]
[20180108,"16:00:00",null,"","OOPS","OOPS","OOPS","","",null,null,null,null,null,null,null,null,null,null,null,null,null,null,null,null,null,null,null,null,null,null,null,"RD","I",23,5,2003,42600,2,1,8,674,20180108,"16:00:00",10.85,null,"",null,null,null,null,null,null,null,"X","X"]
[20180108,"17:00:00",null,"","OOPS","OOPS","OOPS","","",null,null,null,null,null,null,null,null,null,null,null,null,null,null,null,null,null,null,null,null,null,null,null,"RD","I",23,5,2003,42600,2,1,8,674,20180108,"17:00:00",11.72,null,"",null,null,null,null,null,null,null,"X","X"]
[20180108,"18:00:00",null,"","OOPS","OOPS","OOPS","","",null,null,null,null,null,null,null,null,null,null,null,null,null,null,null,null,null,null,null,null,null,null,null,"RD","I",23,5,2003,42600,2,1,8,674,20180108,"18:00:00",12.59,null,"",null,null,null,null,null,null,null,"X","X"]
[20180108,"19:00:00",null,"","OOPS","OOPS","OOPS","","",null,null,null,null,null,null,null,null,null,null,null,null,null,null,null,null,null,null,null,null,null,null,null,"RD","I",23,5,2003,42600,2,1,8,674,20180108,"19:00:00",12.34,null,"",null,null,null,null,null,null,null,"X","X"]
[20180108,"20:00:00",null,"","OOPS","OOPS","OOPS","","",null,null,null,null,null,null,null,null,null,null,null,null,null,null,null,null,null,null,null,null,null,null,null,"RD","I",23,5,2003,42600,2,1,8,674,20180108,"20:00:00",12.58,null,"",null,null,null,null,null,null,null,"X","X"]
[20180108,"21:00:00",null,"","OOPS","OOPS","OOPS","","",null,null,null,null,null,null,null,null,null,null,null,null,null,null,null,null,null,null,null,null,null,null,null,"RD","I",23,5,2003,42600,2,1,8,674,20180108,"21:00:00",12.82,null,"",null,null,null,null,null,null,null,"X","X"]
[20180108,"22:00:00",null,"","OOPS","OOPS","OOPS","","",null,null,null,null,null,null,null,null,null,null,null,null,null,null,null,null,null,null,null,null,null,null,null,"RD","I",23,5,2003,42600,2,1,8,674,20180108,"22:00:00",12.76,null,"",null,null,null,null,null,null,null,"X","X"]
[20180108,"23:00:00",null,"","OOPS","OOPS","OOPS","","",null,null,null,null,null,null,null,null,null,null,null,null,null,null,null,null,null,null,null,null,null,null,null,"RD","I",23,5,2003,42600,2,1,8,674,20180108,"23:00:00",13.04,null,"",null,null,null,null,null,null,null,"X","X"]
[20180109,"00:00:00",null,{"$f":"IF(C198=\"\",IF(V198=\"\",\"\",\"OOPS\"),IF(C198=V198,\"\",\"OOPS\"))","v":""},{"$f":"IF(C198=\"\",IF(AS198=\"\",\"\",\"OOPS\"),IF(C198=AS198,\"\",\"OOPS\"))","v":"OOPS"},"OOPS","","","",null,null,null,null,null,null,null,null,null,null,null,null,null,null,null,null,null,null,null,null,null,null,null,"RD","I",23,5,2003,42600,2,1,8,674,20180109,"00:00:00",12.73,null,"",null,null,null,null,null,null,null,"X","X"]
[20180109,"01:00:00",null,"","OOPS",{"$f":"IF(A199=T199,\"\",\"OOPS\")","v":"OOPS"},{"$f":"IF(B199=U199,\"\",\"OOPS\")","v":"OOPS"},{"$f":"IF(A199=AQ199,\"\",\"OOPS\")","v":""},{"$f":"IF(B199=AR199,\"\",\"OOPS\")","v":""},null,null,null,null,null,null,null,null,null,null,null,null,null,null,null,null,null,null,null,null,null,null,null,"RD","I",23,5,2003,42600,2,1,8,674,20180109,"01:00:00",12.97,null,"",null,null,null,null,null,null,null,"X","X"]
[20180109,"02:00:00",null,"","OOPS","OOPS","OOPS","","",null,null,null,null,null,null,null,null,null,null,null,null,null,null,null,null,null,null,null,null,null,null,null,"RD","I",23,5,2003,42600,2,1,8,674,20180109,"02:00:00",12.46,null,"",null,null,null,null,null,null,null,"X",{"$f":"IF(AR200=\"\",\"\",IF(AR200=AR199,IF(AS200=AS199,\"\",\"X\"),\"X\"))","v":"X"}]
[20180109,"03:00:00",null,"","OOPS","OOPS","OOPS","","",null,null,null,null,null,null,null,null,null,null,null,null,null,null,null,null,null,null,null,null,null,null,null,"RD","I",23,5,2003,42600,2,1,8,674,20180109,"03:00:00",10.6,null,"",null,null,null,null,null,null,null,"X","X"]
[20180109,"04:00:00",null,"","OOPS","OOPS","OOPS","","",null,null,null,null,null,null,null,null,null,null,null,null,null,null,null,null,null,null,null,null,null,null,null,"RD","I",23,5,2003,42600,2,1,8,674,20180109,"04:00:00",10.48,null,"",null,null,null,null,null,null,null,"X","X"]
[20180109,"05:00:00",null,"","OOPS","OOPS","OOPS","","",null,null,null,null,null,null,null,null,null,null,null,null,null,null,null,null,null,null,null,null,null,null,null,"RD","I",23,5,2003,42600,2,1,8,674,20180109,"05:00:00",10.54,null,"",null,null,null,null,null,null,null,"X","X"]
[20180109,"06:00:00",null,"","OOPS","OOPS","OOPS","","",null,null,null,null,null,null,null,null,null,null,null,null,null,null,null,null,null,null,null,null,null,null,null,"RD","I",23,5,2003,42600,2,1,8,674,20180109,"06:00:00",11.98,null,"",null,null,null,null,null,null,null,"X","X"]
[20180109,"07:00:00",null,"","OOPS","OOPS","OOPS","","",null,null,null,null,null,null,null,null,null,null,null,null,null,null,null,null,null,null,null,null,null,null,null,"RD","I",23,5,2003,42600,2,1,8,674,20180109,"07:00:00",9.4,null,"",null,null,null,null,null,null,null,"X","X"]
[20180109,"08:00:00",null,"","OOPS","OOPS","OOPS","","",null,null,null,null,null,null,null,null,null,null,null,null,null,null,null,null,null,null,null,null,null,null,null,"RD","I",23,5,2003,42600,2,1,8,674,20180109,"08:00:00",9.15,null,"",null,null,null,null,null,null,null,"X","X"]
[20180109,"09:00:00",null,"","OOPS","OOPS","OOPS","","",null,null,null,null,null,null,null,null,null,null,null,null,null,null,null,null,null,null,null,null,null,null,null,"RD","I",23,5,2003,42600,2,1,8,674,20180109,"09:00:00",7.08,null,"",null,null,null,null,null,null,null,"X","X"]
[20180109,"10:00:00",null,"","OOPS","OOPS","OOPS","","",null,null,null,null,null,null,null,null,null,null,null,null,null,null,null,null,null,null,null,null,null,null,null,"RD","I",23,5,2003,42600,2,1,8,674,20180109,"10:00:00",4.18,null,"",null,null,null,null,null,null,null,"X","X"]
[20180109,"11:00:00",null,"","OOPS","OOPS","OOPS","","",null,null,null,null,null,null,null,null,null,null,null,null,null,null,null,null,null,null,null,null,null,null,null,"RD","I",23,5,2003,42600,2,1,8,674,20180109,"11:00:00",2.21,null,"",null,null,null,null,null,null,null,"X","X"]
[20180109,"12:00:00",null,"","OOPS","OOPS","OOPS","","",null,null,null,null,null,null,null,null,null,null,null,null,null,null,null,null,null,null,null,null,null,null,null,"RD","I",23,5,2003,42600,2,1,8,674,20180109,"12:00:00",1.66,null,"",null,null,null,null,null,null,null,"X","X"]
[20180109,"13:00:00",null,"","OOPS","OOPS","OOPS","","",null,null,null,null,null,null,null,null,null,null,null,null,null,null,null,null,null,null,null,null,null,null,null,"RD","I",23,5,2003,42600,2,1,8,674,20180109,"13:00:00",1.04,null,"",null,null,null,null,null,null,null,"X","X"]
[20180109,"14:00:00",null,"","OOPS","OOPS","OOPS","","",null,null,null,null,null,null,null,null,null,null,null,null,null,null,null,null,null,null,null,null,null,null,null,"RD","I",23,5,2003,42600,2,1,8,674,20180109,"14:00:00",1.1100000000000001,null,"",null,null,null,null,null,null,null,"X","X"]
[20180109,"15:00:00",null,"","OOPS","OOPS","OOPS","","",null,null,null,null,null,null,null,null,null,null,null,null,null,null,null,null,null,null,null,null,null,null,null,"RD","I",23,5,2003,42600,2,1,8,674,20180109,"15:00:00",2.12,null,"",null,null,null,null,null,null,null,"X","X"]
[20180109,"16:00:00",null,"","OOPS","OOPS","OOPS","","",null,null,null,null,null,null,null,null,null,null,null,null,null,null,null,null,null,null,null,null,null,null,null,"RD","I",23,5,2003,42600,2,1,8,674,20180109,"16:00:00",1.88,null,"",null,null,null,null,null,null,null,"X","X"]
[20180109,"17:00:00",null,"","OOPS","OOPS","OOPS","","",null,null,null,null,null,null,null,null,null,null,null,null,null,null,null,null,null,null,null,null,null,null,null,"RD","I",23,5,2003,42600,2,1,8,674,20180109,"17:00:00",3.4,null,"",null,null,null,null,null,null,null,"X","X"]
[20180109,"18:00:00",null,"","OOPS","OOPS","OOPS","","",null,null,null,null,null,null,null,null,null,null,null,null,null,null,null,null,null,null,null,null,null,null,null,"RD","I",23,5,2003,42600,2,1,8,674,20180109,"18:00:00",4.79,null,"",null,null,null,null,null,null,null,"X","X"]
[20180109,"19:00:00",null,"","OOPS","OOPS","OOPS","","",null,null,null,null,null,null,null,null,null,null,null,null,null,null,null,null,null,null,null,null,null,null,null,"RD","I",23,5,2003,42600,2,1,8,674,20180109,"19:00:00",5.27,null,"",null,null,null,null,null,null,null,"X","X"]
[20180109,"20:00:00",null,"","OOPS","OOPS","OOPS","","",null,null,null,null,null,null,null,null,null,null,null,null,null,null,null,null,null,null,null,null,null,null,null,"RD","I",23,5,2003,42600,2,1,8,674,20180109,"20:00:00",4.76,null,"",null,null,null,null,null,null,null,"X","X"]
[20180109,"21:00:00",null,"","OOPS","OOPS","OOPS","","",null,null,null,null,null,null,null,null,null,null,null,null,null,null,null,null,null,null,null,null,null,null,null,"RD","I",23,5,2003,42600,2,1,8,674,20180109,"21:00:00",3.83,null,"",null,null,null,null,null,null,null,"X","X"]
[20180109,"22:00:00",null,"","OOPS","OOPS","OOPS","","",null,null,null,null,null,null,null,null,null,null,null,null,null,null,null,null,null,null,null,null,null,null,null,"RD","I",23,5,2003,42600,2,1,8,674,20180109,"22:00:00",2.11,null,"",null,null,null,null,null,null,null,"X","X"]
[20180109,"23:00:00",null,"","OOPS","OOPS","OOPS","","",null,null,null,null,null,null,null,null,null,null,null,null,null,null,null,null,null,null,null,null,null,null,null,"RD","I",23,5,2003,42600,2,1,8,674,20180109,"23:00:00",2.29,null,"",null,null,null,null,null,null,null,"X","X"]
[20180110,"00:00:00",null,"","OOPS","OOPS","","","",null,null,null,null,null,null,null,null,null,null,null,null,null,null,null,null,null,null,null,null,null,null,null,"RD","I",23,5,2003,42600,2,1,8,674,20180110,"00:00:00",2.57,null,"",null,null,null,null,null,null,null,"X","X"]
[20180110,"01:00:00",null,"","OOPS","OOPS","OOPS","","",null,null,null,null,null,null,null,null,null,null,null,null,null,null,null,null,null,null,null,null,null,null,null,"RD","I",23,5,2003,42600,2,1,8,674,20180110,"01:00:00",2.23,null,"",null,null,null,null,null,null,null,"X","X"]
[20180110,"02:00:00",null,"","OOPS","OOPS","OOPS","","",null,null,null,null,null,null,null,null,null,null,null,null,null,null,null,null,null,null,null,null,null,null,null,"RD","I",23,5,2003,42600,2,1,8,674,20180110,"02:00:00",2.54,null,"",null,null,null,null,null,null,null,"X","X"]
[20180110,"03:00:00",null,"","OOPS","OOPS","OOPS","","",null,null,null,null,null,null,null,null,null,null,null,null,null,null,null,null,null,null,null,null,null,null,null,"RD","I",23,5,2003,42600,2,1,8,674,20180110,"03:00:00",3.42,null,"",null,null,null,null,null,null,null,"X","X"]
[20180110,"04:00:00",null,"","OOPS","OOPS","OOPS","","",null,null,null,null,null,null,null,null,null,null,null,null,null,null,null,null,null,null,null,null,null,null,null,"RD","I",23,5,2003,42600,2,1,8,674,20180110,"04:00:00",5.61,null,"",null,null,null,null,null,null,null,"X","X"]
[20180110,"05:00:00",null,"","OOPS","OOPS","OOPS","","",null,null,null,null,null,null,null,null,null,null,null,null,null,null,null,null,null,null,null,null,null,null,null,"RD","I",23,5,2003,42600,2,1,8,674,20180110,"05:00:00",10.52,null,"",null,null,null,null,null,null,null,"X","X"]
[20180110,"06:00:00",null,"","OOPS","OOPS","OOPS","","",null,null,null,null,null,null,null,null,null,null,null,null,null,null,null,null,null,null,null,null,null,null,null,"RD","I",23,5,2003,42600,2,1,8,674,20180110,"06:00:00",11.43,null,"",null,null,null,null,null,null,null,"X","X"]
[20180110,"07:00:00",null,"","OOPS","OOPS","OOPS","","",null,null,null,null,null,null,null,null,null,null,null,null,null,null,null,null,null,null,null,null,null,null,null,"RD","I",23,5,2003,42600,2,1,8,674,20180110,"07:00:00",14.59,null,"",null,null,null,null,null,null,null,"X","X"]
[20180110,"08:00:00",null,"","OOPS","OOPS","OOPS","","",null,null,null,null,null,null,null,null,null,null,null,null,null,null,null,null,null,null,null,null,null,null,null,"RD","I",23,5,2003,42600,2,1,8,674,20180110,"08:00:00",9.99,null,"",null,null,null,null,null,null,null,"X","X"]
[20180110,"09:00:00",null,"","OOPS","OOPS","OOPS","","",null,null,null,null,null,null,null,null,null,null,null,null,null,null,null,null,null,null,null,null,null,null,null,"RD","I",23,5,2003,42600,2,1,8,674,20180110,"09:00:00",4.88,null,"",null,null,null,null,null,null,null,"X","X"]
[20180110,"10:00:00",null,"","OOPS","OOPS","OOPS","","",null,null,null,null,null,null,null,null,null,null,null,null,null,null,null,null,null,null,null,null,null,null,null,"RD","I",23,5,2003,42600,2,1,8,674,20180110,"10:00:00",3.48,null,"",null,null,null,null,null,null,null,"X","X"]
[20180110,"11:00:00",null,"","","OOPS","OOPS","","",null,null,null,null,null,null,null,null,null,null,null,null,null,null,null,null,null,null,null,null,null,null,null,"RD","I",23,5,2003,42600,2,1,8,674,20180110,"11:00:00",null,"BF","",null,null,null,null,null,null,null,"X","X"]
[20180110,"12:00:00",null,"","","OOPS","OOPS","","",null,null,null,null,null,null,null,null,null,null,null,null,null,null,null,null,null,null,null,null,null,null,null,"RD","I",23,5,2003,42600,2,1,8,674,20180110,"12:00:00",null,"BF","",null,null,null,null,null,null,null,"X","X"]
[20180110,"13:00:00",null,"","OOPS","OOPS","OOPS","","",null,null,null,null,null,null,null,null,null,null,null,null,null,null,null,null,null,null,null,null,null,null,null,"RD","I",23,5,2003,42600,2,1,8,674,20180110,"13:00:00",2.27,null,"",null,null,null,null,null,null,null,"X","X"]
[20180110,"14:00:00",null,"","OOPS","OOPS","OOPS","","",null,null,null,null,null,null,null,null,null,null,null,null,null,null,null,null,null,null,null,null,null,null,null,"RD","I",23,5,2003,42600,2,1,8,674,20180110,"14:00:00",2.4,null,"",null,null,null,null,null,null,null,"X","X"]
[20180110,"15:00:00",null,"","OOPS","OOPS","OOPS","","",null,null,null,null,null,null,null,null,null,null,null,null,null,null,null,null,null,null,null,null,null,null,null,"RD","I",23,5,2003,42600,2,1,8,674,20180110,"15:00:00",2.3199999999999998,null,"",null,null,null,null,null,null,null,"X","X"]
[20180110,"16:00:00",null,"","OOPS","OOPS","OOPS","","",null,null,null,null,null,null,null,null,null,null,null,null,null,null,null,null,null,null,null,null,null,null,null,"RD","I",23,5,2003,42600,2,1,8,674,20180110,"16:00:00",4.96,null,"",null,null,null,null,null,null,null,"X","X"]
[20180110,"17:00:00",null,"","OOPS","OOPS","OOPS","","",null,null,null,null,null,null,null,null,null,null,null,null,null,null,null,null,null,null,null,null,null,null,null,"RD","I",23,5,2003,42600,2,1,8,674,20180110,"17:00:00",11.42,null,"",null,null,null,null,null,null,null,"X","X"]
[20180110,"18:00:00",null,"","OOPS","OOPS","OOPS","","",null,null,null,null,null,null,null,null,null,null,null,null,null,null,null,null,null,null,null,null,null,null,null,"RD","I",23,5,2003,42600,2,1,8,674,20180110,"18:00:00",19.36,null,"",null,null,null,null,null,null,null,"X","X"]
[20180110,"19:00:00",null,"","OOPS","OOPS","OOPS","","",null,null,null,null,null,null,null,null,null,null,null,null,null,null,null,null,null,null,null,null,null,null,null,"RD","I",23,5,2003,42600,2,1,8,674,20180110,"19:00:00",13.25,null,"",null,null,null,null,null,null,null,"X","X"]
[20180110,"20:00:00",null,"","OOPS","OOPS","OOPS","","",null,null,null,null,null,null,null,null,null,null,null,null,null,null,null,null,null,null,null,null,null,null,null,"RD","I",23,5,2003,42600,2,1,8,674,20180110,"20:00:00",7.89,null,"",null,null,null,null,null,null,null,"X","X"]
[20180110,"21:00:00",null,"","OOPS","OOPS","OOPS","","",null,null,null,null,null,null,null,null,null,null,null,null,null,null,null,null,null,null,null,null,null,null,null,"RD","I",23,5,2003,42600,2,1,8,674,20180110,"21:00:00",4.29,null,"",null,null,null,null,null,null,null,"X","X"]
[20180110,"22:00:00",null,"","OOPS","OOPS","OOPS","","",null,null,null,null,null,null,null,null,null,null,null,null,null,null,null,null,null,null,null,null,null,null,null,"RD","I",23,5,2003,42600,2,1,8,674,20180110,"22:00:00",5.93,null,"",null,null,null,null,null,null,null,"X","X"]
[20180110,"23:00:00",null,"","OOPS","OOPS","OOPS","","",null,null,null,null,null,null,null,null,null,null,null,null,null,null,null,null,null,null,null,null,null,null,null,"RD","I",23,5,2003,42600,2,1,8,674,20180110,"23:00:00",8.56,null,"",null,null,null,null,null,null,null,"X","X"]
[20180111,"00:00:00",null,"","OOPS","OOPS","","","",null,null,null,null,null,null,null,null,null,null,null,null,null,null,null,null,null,null,null,null,null,null,null,"RD","I",23,5,2003,42600,2,1,8,674,20180111,"00:00:00",8.1999999999999993,null,"",null,null,null,null,null,null,null,"X","X"]
[20180111,"01:00:00",null,"","OOPS","OOPS","OOPS","","",null,null,null,null,null,null,null,null,null,null,null,null,null,null,null,null,null,null,null,null,null,null,null,"RD","I",23,5,2003,42600,2,1,8,674,20180111,"01:00:00",6.6,null,"",null,null,null,null,null,null,null,"X","X"]
[20180111,"02:00:00",null,"","OOPS","OOPS","OOPS","","",null,null,null,null,null,null,null,null,null,null,null,null,null,null,null,null,null,null,null,null,null,null,null,"RD","I",23,5,2003,42600,2,1,8,674,20180111,"02:00:00",4.4000000000000004,null,"",null,null,null,null,null,null,null,"X","X"]
[20180111,"03:00:00",null,"","OOPS","OOPS","OOPS","","",null,null,null,null,null,null,null,null,null,null,null,null,null,null,null,null,null,null,null,null,null,null,null,"RD","I",23,5,2003,42600,2,1,8,674,20180111,"03:00:00",4.05,null,"",null,null,null,null,null,null,null,"X","X"]
[20180111,"04:00:00",null,"","OOPS","OOPS","OOPS","","",null,null,null,null,null,null,null,null,null,null,null,null,null,null,null,null,null,null,null,null,null,null,null,"RD","I",23,5,2003,42600,2,1,8,674,20180111,"04:00:00",4.33,null,"",null,null,null,null,null,null,null,"X","X"]
[20180111,"05:00:00",null,"","OOPS","OOPS","OOPS","","",null,null,null,null,null,null,null,null,null,null,null,null,null,null,null,null,null,null,null,null,null,null,null,"RD","I",23,5,2003,42600,2,1,8,674,20180111,"05:00:00",4.1100000000000003,null,"",null,null,null,null,null,null,null,"X","X"]
[20180111,"06:00:00",null,"","OOPS","OOPS","OOPS","","",null,null,null,null,null,null,null,null,null,null,null,null,null,null,null,null,null,null,null,null,null,null,null,"RD","I",23,5,2003,42600,2,1,8,674,20180111,"06:00:00",3.58,null,"",null,null,null,null,null,null,null,"X","X"]
[20180111,"07:00:00",null,"","OOPS","OOPS","OOPS","","",null,null,null,null,null,null,null,null,null,null,null,null,null,null,null,null,null,null,null,null,null,null,null,"RD","I",23,5,2003,42600,2,1,8,674,20180111,"07:00:00",3.94,null,"",null,null,null,null,null,null,null,"X","X"]
[20180111,"08:00:00",null,"","OOPS","OOPS","OOPS","","",null,null,null,null,null,null,null,null,null,null,null,null,null,null,null,null,null,null,null,null,null,null,null,"RD","I",23,5,2003,42600,2,1,8,674,20180111,"08:00:00",4.78,null,"",null,null,null,null,null,null,null,"X","X"]
[20180111,"09:00:00",null,"","OOPS","OOPS","OOPS","","",null,null,null,null,null,null,null,null,null,null,null,null,null,null,null,null,null,null,null,null,null,null,null,"RD","I",23,5,2003,42600,2,1,8,674,20180111,"09:00:00",5.09,null,"",null,null,null,null,null,null,null,"X","X"]
[20180111,"10:00:00",null,"","OOPS","OOPS","OOPS","","",null,null,null,null,null,null,null,null,null,null,null,null,null,null,null,null,null,null,null,null,null,null,null,"RD","I",23,5,2003,42600,2,1,8,674,20180111,"10:00:00",6.88,null,"",null,null,null,null,null,null,null,"X","X"]
[20180111,"11:00:00",null,"","OOPS","OOPS","OOPS","","",null,null,null,null,null,null,null,null,null,null,null,null,null,null,null,null,null,null,null,null,null,null,null,"RD","I",23,5,2003,42600,2,1,8,674,20180111,"11:00:00",9.68,null,"",null,null,null,null,null,null,null,"X","X"]
[20180111,"12:00:00",null,"","OOPS","OOPS","OOPS","","",null,null,null,null,null,null,null,null,null,null,null,null,null,null,null,null,null,null,null,null,null,null,null,"RD","I",23,5,2003,42600,2,1,8,674,20180111,"12:00:00",9.83,null,"",null,null,null,null,null,null,null,"X","X"]
[20180111,"13:00:00",null,"","OOPS","OOPS","OOPS","","",null,null,null,null,null,null,null,null,null,null,null,null,null,null,null,null,null,null,null,null,null,null,null,"RD","I",23,5,2003,42600,2,1,8,674,20180111,"13:00:00",7.72,null,"",null,null,null,null,null,null,null,"X","X"]
[20180111,"14:00:00",null,"","OOPS","OOPS","OOPS","","",null,null,null,null,null,null,null,null,null,null,null,null,null,null,null,null,null,null,null,null,null,null,null,"RD","I",23,5,2003,42600,2,1,8,674,20180111,"14:00:00",5.53,null,"",null,null,null,null,null,null,null,"X","X"]
[20180111,"15:00:00",null,"","OOPS","OOPS","OOPS","","",null,null,null,null,null,null,null,null,null,null,null,null,null,null,null,null,null,null,null,null,null,null,null,"RD","I",23,5,2003,42600,2,1,8,674,20180111,"15:00:00",4.96,null,"",null,null,null,null,null,null,null,"X","X"]
[20180111,"16:00:00",null,{"$f":"IF(C262=\"\",IF(V262=\"\",\"\",\"OOPS\"),IF(C262=V262,\"\",\"OOPS\"))","v":""},{"$f":"IF(C262=\"\",IF(AS262=\"\",\"\",\"OOPS\"),IF(C262=AS262,\"\",\"OOPS\"))","v":"OOPS"},"OOPS","OOPS","","",null,null,null,null,null,null,null,null,null,null,null,null,null,null,null,null,null,null,null,null,null,null,null,"RD","I",23,5,2003,42600,2,1,8,674,20180111,"16:00:00",3.79,null,"",null,null,null,null,null,null,null,"X","X"]
[20180111,"17:00:00",null,"","OOPS",{"$f":"IF(A263=T263,\"\",\"OOPS\")","v":"OOPS"},{"$f":"IF(B263=U263,\"\",\"OOPS\")","v":"OOPS"},{"$f":"IF(A263=AQ263,\"\",\"OOPS\")","v":""},{"$f":"IF(B263=AR263,\"\",\"OOPS\")","v":""},null,null,null,null,null,null,null,null,null,null,null,null,null,null,null,null,null,null,null,null,null,null,null,"RD","I",23,5,2003,42600,2,1,8,674,20180111,"17:00:00",5.42,null,"",null,null,null,null,null,null,null,"X","X"]
[20180111,"18:00:00",null,"","OOPS","OOPS","OOPS","","",null,null,null,null,null,null,null,null,null,null,null,null,null,null,null,null,null,null,null,null,null,null,null,"RD","I",23,5,2003,42600,2,1,8,674,20180111,"18:00:00",7.67,null,"",null,null,null,null,null,null,null,"X",{"$f":"IF(AR264=\"\",\"\",IF(AR264=AR263,IF(AS264=AS263,\"\",\"X\"),\"X\"))","v":"X"}]
[20180111,"19:00:00",null,"","OOPS","OOPS","OOPS","","",null,null,null,null,null,null,null,null,null,null,null,null,null,null,null,null,null,null,null,null,null,null,null,"RD","I",23,5,2003,42600,2,1,8,674,20180111,"19:00:00",6.03,null,"",null,null,null,null,null,null,null,"X","X"]
[20180111,"20:00:00",null,"","OOPS","OOPS","OOPS","","",null,null,null,null,null,null,null,null,null,null,null,null,null,null,null,null,null,null,null,null,null,null,null,"RD","I",23,5,2003,42600,2,1,8,674,20180111,"20:00:00",4.84,null,"",null,null,null,null,null,null,null,"X","X"]
[20180111,"21:00:00",null,"","OOPS","OOPS","OOPS","","",null,null,null,null,null,null,null,null,null,null,null,null,null,null,null,null,null,null,null,null,null,null,null,"RD","I",23,5,2003,42600,2,1,8,674,20180111,"21:00:00",5.19,null,"",null,null,null,null,null,null,null,"X","X"]
[20180111,"22:00:00",null,"","OOPS","OOPS","OOPS","","",null,null,null,null,null,null,null,null,null,null,null,null,null,null,null,null,null,null,null,null,null,null,null,"RD","I",23,5,2003,42600,2,1,8,674,20180111,"22:00:00",6.1,null,"",null,null,null,null,null,null,null,"X","X"]
[20180111,"23:00:00",null,"","OOPS","OOPS","OOPS","","",null,null,null,null,null,null,null,null,null,null,null,null,null,null,null,null,null,null,null,null,null,null,null,"RD","I",23,5,2003,42600,2,1,8,674,20180111,"23:00:00",5.27,null,"",null,null,null,null,null,null,null,"X","X"]
[20180112,"00:00:00",null,"","OOPS","OOPS","","","",null,null,null,null,null,null,null,null,null,null,null,null,null,null,null,null,null,null,null,null,null,null,null,"RD","I",23,5,2003,42600,2,1,8,674,20180112,"00:00:00",5.67,null,"",null,null,null,null,null,null,null,"X","X"]
[20180112,"01:00:00",null,"","OOPS","OOPS","OOPS","","",null,null,null,null,null,null,null,null,null,null,null,null,null,null,null,null,null,null,null,null,null,null,null,"RD","I",23,5,2003,42600,2,1,8,674,20180112,"01:00:00",3.13,null,"",null,null,null,null,null,null,null,"X","X"]
[20180112,"02:00:00",null,"","OOPS","OOPS","OOPS","","",null,null,null,null,null,null,null,null,null,null,null,null,null,null,null,null,null,null,null,null,null,null,null,"RD","I",23,5,2003,42600,2,1,8,674,20180112,"02:00:00",2.93,null,"",null,null,null,null,null,null,null,"X","X"]
[20180112,"03:00:00",null,"","OOPS","OOPS","OOPS","","",null,null,null,null,null,null,null,null,null,null,null,null,null,null,null,null,null,null,null,null,null,null,null,"RD","I",23,5,2003,42600,2,1,8,674,20180112,"03:00:00",2.0499999999999998,null,"",null,null,null,null,null,null,null,"X","X"]
[20180112,"04:00:00",null,"","OOPS","OOPS","OOPS","","",null,null,null,null,null,null,null,null,null,null,null,null,null,null,null,null,null,null,null,null,null,null,null,"RD","I",23,5,2003,42600,2,1,8,674,20180112,"04:00:00",1.28,null,"",null,null,null,null,null,null,null,"X","X"]
[20180112,"05:00:00",null,"","OOPS","OOPS","OOPS","","",null,null,null,null,null,null,null,null,null,null,null,null,null,null,null,null,null,null,null,null,null,null,null,"RD","I",23,5,2003,42600,2,1,8,674,20180112,"05:00:00",0.89,null,"",null,null,null,null,null,null,null,"X","X"]
[20180112,"06:00:00",null,"","OOPS","OOPS","OOPS","","",null,null,null,null,null,null,null,null,null,null,null,null,null,null,null,null,null,null,null,null,null,null,null,"RD","I",23,5,2003,42600,2,1,8,674,20180112,"06:00:00",1.19,null,"",null,null,null,null,null,null,null,"X","X"]
[20180112,"07:00:00",null,"","OOPS","OOPS","OOPS","","",null,null,null,null,null,null,null,null,null,null,null,null,null,null,null,null,null,null,null,null,null,null,null,"RD","I",23,5,2003,42600,2,1,8,674,20180112,"07:00:00",0.61,null,"",null,null,null,null,null,null,null,"X","X"]
[20180112,"08:00:00",null,"","OOPS","OOPS","OOPS","","",null,null,null,null,null,null,null,null,null,null,null,null,null,null,null,null,null,null,null,null,null,null,null,"RD","I",23,5,2003,42600,2,1,8,674,20180112,"08:00:00",0.85,null,"",null,null,null,null,null,null,null,"X","X"]
[20180112,"09:00:00",null,"","OOPS","OOPS","OOPS","","",null,null,null,null,null,null,null,null,null,null,null,null,null,null,null,null,null,null,null,null,null,null,null,"RD","I",23,5,2003,42600,2,1,8,674,20180112,"09:00:00",0.95,null,"",null,null,null,null,null,null,null,"X","X"]
[20180112,"10:00:00",null,"","OOPS","OOPS","OOPS","","",null,null,null,null,null,null,null,null,null,null,null,null,null,null,null,null,null,null,null,null,null,null,null,"RD","I",23,5,2003,42600,2,1,8,674,20180112,"10:00:00",0.04,null,"",null,null,null,null,null,null,null,"X","X"]
[20180112,"11:00:00",null,"","OOPS","OOPS","OOPS","","",null,null,null,null,null,null,null,null,null,null,null,null,null,null,null,null,null,null,null,null,null,null,null,"RD","I",23,5,2003,42600,2,1,8,674,20180112,"11:00:00",0.11,null,"",null,null,null,null,null,null,null,"X","X"]
[20180112,"12:00:00",null,"","OOPS","OOPS","OOPS","","",null,null,null,null,null,null,null,null,null,null,null,null,null,null,null,null,null,null,null,null,null,null,null,"RD","I",23,5,2003,42600,2,1,8,674,20180112,"12:00:00",7.0000000000000007E-2,null,"",null,null,null,null,null,null,null,"X","X"]
[20180112,"13:00:00",null,"","OOPS","OOPS","OOPS","","",null,null,null,null,null,null,null,null,null,null,null,null,null,null,null,null,null,null,null,null,null,null,null,"RD","I",23,5,2003,42600,2,1,8,674,20180112,"13:00:00",0.33,null,"",null,null,null,null,null,null,null,"X","X"]
[20180112,"14:00:00",null,"","OOPS","OOPS","OOPS","","",null,null,null,null,null,null,null,null,null,null,null,null,null,null,null,null,null,null,null,null,null,null,null,"RD","I",23,5,2003,42600,2,1,8,674,20180112,"14:00:00",0,null,"",null,null,null,null,null,null,null,"X","X"]
[20180112,"15:00:00",null,"","OOPS","OOPS","OOPS","","",null,null,null,null,null,null,null,null,null,null,null,null,null,null,null,null,null,null,null,null,null,null,null,"RD","I",23,5,2003,42600,2,1,8,674,20180112,"15:00:00",0,null,"",null,null,null,null,null,null,null,"X","X"]
[20180112,"16:00:00",null,"","OOPS","OOPS","OOPS","","",null,null,null,null,null,null,null,null,null,null,null,null,null,null,null,null,null,null,null,null,null,null,null,"RD","I",23,5,2003,42600,2,1,8,674,20180112,"16:00:00",0,null,"",null,null,null,null,null,null,null,"X","X"]
[20180112,"17:00:00",null,"","OOPS","OOPS","OOPS","","",null,null,null,null,null,null,null,null,null,null,null,null,null,null,null,null,null,null,null,null,null,null,null,"RD","I",23,5,2003,42600,2,1,8,674,20180112,"17:00:00",0,null,"",null,null,null,null,null,null,null,"X","X"]
[20180112,"18:00:00",null,"","OOPS","OOPS","OOPS","","",null,null,null,null,null,null,null,null,null,null,null,null,null,null,null,null,null,null,null,null,null,null,null,"RD","I",23,5,2003,42600,2,1,8,674,20180112,"18:00:00",0,null,"",null,null,null,null,null,null,null,"X","X"]
[20180112,"19:00:00",null,"","OOPS","OOPS","OOPS","","",null,null,null,null,null,null,null,null,null,null,null,null,null,null,null,null,null,null,null,null,null,null,null,"RD","I",23,5,2003,42600,2,1,8,674,20180112,"19:00:00",0,null,"",null,null,null,null,null,null,null,"X","X"]
[20180112,"20:00:00",null,"","OOPS","OOPS","OOPS","","",null,null,null,null,null,null,null,null,null,null,null,null,null,null,null,null,null,null,null,null,null,null,null,"RD","I",23,5,2003,42600,2,1,8,674,20180112,"20:00:00",0,null,"",null,null,null,null,null,null,null,"X","X"]
[20180112,"21:00:00",null,"","OOPS","OOPS","OOPS","","",null,null,null,null,null,null,null,null,null,null,null,null,null,null,null,null,null,null,null,null,null,null,null,"RD","I",23,5,2003,42600,2,1,8,674,20180112,"21:00:00",0,null,"",null,null,null,null,null,null,null,"X","X"]
[20180112,"22:00:00",null,"","OOPS","OOPS","OOPS","","",null,null,null,null,null,null,null,null,null,null,null,null,null,null,null,null,null,null,null,null,null,null,null,"RD","I",23,5,2003,42600,2,1,8,674,20180112,"22:00:00",0,null,"",null,null,null,null,null,null,null,"X","X"]
[20180112,"23:00:00",null,"","OOPS","OOPS","OOPS","","",null,null,null,null,null,null,null,null,null,null,null,null,null,null,null,null,null,null,null,null,null,null,null,"RD","I",23,5,2003,42600,2,1,8,674,20180112,"23:00:00",0,null,"",null,null,null,null,null,null,null,"X","X"]
[20180113,"00:00:00",null,"","OOPS","OOPS","","","",null,null,null,null,null,null,null,null,null,null,null,null,null,null,null,null,null,null,null,null,null,null,null,"RD","I",23,5,2003,42600,2,1,8,674,20180113,"00:00:00",0,null,"",null,null,null,null,null,null,null,"X","X"]
[20180113,"01:00:00",null,"","OOPS","OOPS","OOPS","","",null,null,null,null,null,null,null,null,null,null,null,null,null,null,null,null,null,null,null,null,null,null,null,"RD","I",23,5,2003,42600,2,1,8,674,20180113,"01:00:00",0,null,"",null,null,null,null,null,null,null,"X","X"]
[20180113,"02:00:00",null,"","OOPS","OOPS","OOPS","","",null,null,null,null,null,null,null,null,null,null,null,null,null,null,null,null,null,null,null,null,null,null,null,"RD","I",23,5,2003,42600,2,1,8,674,20180113,"02:00:00",0,null,"",null,null,null,null,null,null,null,"X","X"]
[20180113,"03:00:00",null,"","OOPS","OOPS","OOPS","","",null,null,null,null,null,null,null,null,null,null,null,null,null,null,null,null,null,null,null,null,null,null,null,"RD","I",23,5,2003,42600,2,1,8,674,20180113,"03:00:00",0,null,"",null,null,null,null,null,null,null,"X","X"]
[20180113,"04:00:00",null,"","OOPS","OOPS","OOPS","","",null,null,null,null,null,null,null,null,null,null,null,null,null,null,null,null,null,null,null,null,null,null,null,"RD","I",23,5,2003,42600,2,1,8,674,20180113,"04:00:00",0,null,"",null,null,null,null,null,null,null,"X","X"]
[20180113,"05:00:00",null,"","OOPS","OOPS","OOPS","","",null,null,null,null,null,null,null,null,null,null,null,null,null,null,null,null,null,null,null,null,null,null,null,"RD","I",23,5,2003,42600,2,1,8,674,20180113,"05:00:00",0,null,"",null,null,null,null,null,null,null,"X","X"]
[20180113,"06:00:00",null,"","OOPS","OOPS","OOPS","","",null,null,null,null,null,null,null,null,null,null,null,null,null,null,null,null,null,null,null,null,null,null,null,"RD","I",23,5,2003,42600,2,1,8,674,20180113,"06:00:00",0,null,"",null,null,null,null,null,null,null,"X","X"]
[20180113,"07:00:00",null,"","OOPS","OOPS","OOPS","","",null,null,null,null,null,null,null,null,null,null,null,null,null,null,null,null,null,null,null,null,null,null,null,"RD","I",23,5,2003,42600,2,1,8,674,20180113,"07:00:00",0,null,"",null,null,null,null,null,null,null,"X","X"]
[20180113,"08:00:00",null,"","OOPS","OOPS","OOPS","","",null,null,null,null,null,null,null,null,null,null,null,null,null,null,null,null,null,null,null,null,null,null,null,"RD","I",23,5,2003,42600,2,1,8,674,20180113,"08:00:00",0,null,"",null,null,null,null,null,null,null,"X","X"]
[20180113,"09:00:00",null,"","OOPS","OOPS","OOPS","","",null,null,null,null,null,null,null,null,null,null,null,null,null,null,null,null,null,null,null,null,null,null,null,"RD","I",23,5,2003,42600,2,1,8,674,20180113,"09:00:00",0,null,"",null,null,null,null,null,null,null,"X","X"]
[20180113,"10:00:00",null,"","OOPS","OOPS","OOPS","","",null,null,null,null,null,null,null,null,null,null,null,null,null,null,null,null,null,null,null,null,null,null,null,"RD","I",23,5,2003,42600,2,1,8,674,20180113,"10:00:00",0.18,null,"",null,null,null,null,null,null,null,"X","X"]
[20180113,"11:00:00",null,"","OOPS","OOPS","OOPS","","",null,null,null,null,null,null,null,null,null,null,null,null,null,null,null,null,null,null,null,null,null,null,null,"RD","I",23,5,2003,42600,2,1,8,674,20180113,"11:00:00",0.82,null,"",null,null,null,null,null,null,null,"X","X"]
[20180113,"12:00:00",null,"","OOPS","OOPS","OOPS","","",null,null,null,null,null,null,null,null,null,null,null,null,null,null,null,null,null,null,null,null,null,null,null,"RD","I",23,5,2003,42600,2,1,8,674,20180113,"12:00:00",0.68,null,"",null,null,null,null,null,null,null,"X","X"]
[20180113,"13:00:00",null,"","OOPS","OOPS","OOPS","","",null,null,null,null,null,null,null,null,null,null,null,null,null,null,null,null,null,null,null,null,null,null,null,"RD","I",23,5,2003,42600,2,1,8,674,20180113,"13:00:00",0.42,null,"",null,null,null,null,null,null,null,"X","X"]
[20180113,"14:00:00",null,"","OOPS","OOPS","OOPS","","",null,null,null,null,null,null,null,null,null,null,null,null,null,null,null,null,null,null,null,null,null,null,null,"RD","I",23,5,2003,42600,2,1,8,674,20180113,"14:00:00",0.76,null,"",null,null,null,null,null,null,null,"X","X"]
[20180113,"15:00:00",null,"","OOPS","OOPS","OOPS","","",null,null,null,null,null,null,null,null,null,null,null,null,null,null,null,null,null,null,null,null,null,null,null,"RD","I",23,5,2003,42600,2,1,8,674,20180113,"15:00:00",0.4,null,"",null,null,null,null,null,null,null,"X","X"]
[20180113,"16:00:00",null,"","OOPS","OOPS","OOPS","","",null,null,null,null,null,null,null,null,null,null,null,null,null,null,null,null,null,null,null,null,null,null,null,"RD","I",23,5,2003,42600,2,1,8,674,20180113,"16:00:00",0.81,null,"",null,null,null,null,null,null,null,"X","X"]
[20180113,"17:00:00",null,"","OOPS","OOPS","OOPS","","",null,null,null,null,null,null,null,null,null,null,null,null,null,null,null,null,null,null,null,null,null,null,null,"RD","I",23,5,2003,42600,2,1,8,674,20180113,"17:00:00",0.9,null,"",null,null,null,null,null,null,null,"X","X"]
[20180113,"18:00:00",null,"","OOPS","OOPS","OOPS","","",null,null,null,null,null,null,null,null,null,null,null,null,null,null,null,null,null,null,null,null,null,null,null,"RD","I",23,5,2003,42600,2,1,8,674,20180113,"18:00:00",1.06,null,"",null,null,null,null,null,null,null,"X","X"]
[20180113,"19:00:00",null,"","OOPS","OOPS","OOPS","","",null,null,null,null,null,null,null,null,null,null,null,null,null,null,null,null,null,null,null,null,null,null,null,"RD","I",23,5,2003,42600,2,1,8,674,20180113,"19:00:00",1.23,null,"",null,null,null,null,null,null,null,"X","X"]
[20180113,"20:00:00",null,"","OOPS","OOPS","OOPS","","",null,null,null,null,null,null,null,null,null,null,null,null,null,null,null,null,null,null,null,null,null,null,null,"RD","I",23,5,2003,42600,2,1,8,674,20180113,"20:00:00",0.96,null,"",null,null,null,null,null,null,null,"X","X"]
[20180113,"21:00:00",null,"","OOPS","OOPS","OOPS","","",null,null,null,null,null,null,null,null,null,null,null,null,null,null,null,null,null,null,null,null,null,null,null,"RD","I",23,5,2003,42600,2,1,8,674,20180113,"21:00:00",1.57,null,"",null,null,null,null,null,null,null,"X","X"]
[20180113,"22:00:00",null,"","OOPS","OOPS","OOPS","","",null,null,null,null,null,null,null,null,null,null,null,null,null,null,null,null,null,null,null,null,null,null,null,"RD","I",23,5,2003,42600,2,1,8,674,20180113,"22:00:00",1.1499999999999999,null,"",null,null,null,null,null,null,null,"X","X"]
[20180113,"23:00:00",null,"","OOPS","OOPS","OOPS","","",null,null,null,null,null,null,null,null,null,null,null,null,null,null,null,null,null,null,null,null,null,null,null,"RD","I",23,5,2003,42600,2,1,8,674,20180113,"23:00:00",0.76,null,"",null,null,null,null,null,null,null,"X","X"]
[20180114,"00:00:00",null,"","OOPS","OOPS","","","",null,null,null,null,null,null,null,null,null,null,null,null,null,null,null,null,null,null,null,null,null,null,null,"RD","I",23,5,2003,42600,2,1,8,674,20180114,"00:00:00",0.35,null,"",null,null,null,null,null,null,null,"X","X"]
[20180114,"01:00:00",null,"","OOPS","OOPS","OOPS","","",null,null,null,null,null,null,null,null,null,null,null,null,null,null,null,null,null,null,null,null,null,null,null,"RD","I",23,5,2003,42600,2,1,8,674,20180114,"01:00:00",0.72,null,"",null,null,null,null,null,null,null,"X","X"]
[20180114,"02:00:00",null,"","OOPS","OOPS","OOPS","","",null,null,null,null,null,null,null,null,null,null,null,null,null,null,null,null,null,null,null,null,null,null,null,"RD","I",23,5,2003,42600,2,1,8,674,20180114,"02:00:00",0.65,null,"",null,null,null,null,null,null,null,"X","X"]
[20180114,"03:00:00",null,"","OOPS","OOPS","OOPS","","",null,null,null,null,null,null,null,null,null,null,null,null,null,null,null,null,null,null,null,null,null,null,null,"RD","I",23,5,2003,42600,2,1,8,674,20180114,"03:00:00",1.25,null,"",null,null,null,null,null,null,null,"X","X"]
[20180114,"04:00:00",null,"","OOPS","OOPS","OOPS","","",null,null,null,null,null,null,null,null,null,null,null,null,null,null,null,null,null,null,null,null,null,null,null,"RD","I",23,5,2003,42600,2,1,8,674,20180114,"04:00:00",2.19,null,"",null,null,null,null,null,null,null,"X","X"]
[20180114,"05:00:00",null,"","OOPS","OOPS","OOPS","","",null,null,null,null,null,null,null,null,null,null,null,null,null,null,null,null,null,null,null,null,null,null,null,"RD","I",23,5,2003,42600,2,1,8,674,20180114,"05:00:00",2.19,null,"",null,null,null,null,null,null,null,"X","X"]
[20180114,"06:00:00",null,"","OOPS","OOPS","OOPS","","",null,null,null,null,null,null,null,null,null,null,null,null,null,null,null,null,null,null,null,null,null,null,null,"RD","I",23,5,2003,42600,2,1,8,674,20180114,"06:00:00",2.69,null,"",null,null,null,null,null,null,null,"X","X"]
[20180114,"07:00:00",null,"","OOPS","OOPS","OOPS","","",null,null,null,null,null,null,null,null,null,null,null,null,null,null,null,null,null,null,null,null,null,null,null,"RD","I",23,5,2003,42600,2,1,8,674,20180114,"07:00:00",2.1800000000000002,null,"",null,null,null,null,null,null,null,"X","X"]
[20180114,"08:00:00",null,{"$f":"IF(C326=\"\",IF(V326=\"\",\"\",\"OOPS\"),IF(C326=V326,\"\",\"OOPS\"))","v":""},{"$f":"IF(C326=\"\",IF(AS326=\"\",\"\",\"OOPS\"),IF(C326=AS326,\"\",\"OOPS\"))","v":"OOPS"},"OOPS","OOPS","","",null,null,null,null,null,null,null,null,null,null,null,null,null,null,null,null,null,null,null,null,null,null,null,"RD","I",23,5,2003,42600,2,1,8,674,20180114,"08:00:00",2.14,null,"",null,null,null,null,null,null,null,"X","X"]
[20180114,"09:00:00",null,"","OOPS",{"$f":"IF(A327=T327,\"\",\"OOPS\")","v":"OOPS"},{"$f":"IF(B327=U327,\"\",\"OOPS\")","v":"OOPS"},{"$f":"IF(A327=AQ327,\"\",\"OOPS\")","v":""},{"$f":"IF(B327=AR327,\"\",\"OOPS\")","v":""},null,null,null,null,null,null,null,null,null,null,null,null,null,null,null,null,null,null,null,null,null,null,null,"RD","I",23,5,2003,42600,2,1,8,674,20180114,"09:00:00",1.65,null,"",null,null,null,null,null,null,null,"X","X"]
[20180114,"10:00:00",null,"","OOPS","OOPS","OOPS","","",null,null,null,null,null,null,null,null,null,null,null,null,null,null,null,null,null,null,null,null,null,null,null,"RD","I",23,5,2003,42600,2,1,8,674,20180114,"10:00:00",1.53,null,"",null,null,null,null,null,null,null,"X",{"$f":"IF(AR328=\"\",\"\",IF(AR328=AR327,IF(AS328=AS327,\"\",\"X\"),\"X\"))","v":"X"}]
[20180114,"11:00:00",null,"","OOPS","OOPS","OOPS","","",null,null,null,null,null,null,null,null,null,null,null,null,null,null,null,null,null,null,null,null,null,null,null,"RD","I",23,5,2003,42600,2,1,8,674,20180114,"11:00:00",1.64,null,"",null,null,null,null,null,null,null,"X","X"]
[20180114,"12:00:00",null,"","OOPS","OOPS","OOPS","","",null,null,null,null,null,null,null,null,null,null,null,null,null,null,null,null,null,null,null,null,null,null,null,"RD","I",23,5,2003,42600,2,1,8,674,20180114,"12:00:00",0.72,null,"",null,null,null,null,null,null,null,"X","X"]
[20180114,"13:00:00",null,"","OOPS","OOPS","OOPS","","",null,null,null,null,null,null,null,null,null,null,null,null,null,null,null,null,null,null,null,null,null,null,null,"RD","I",23,5,2003,42600,2,1,8,674,20180114,"13:00:00",0.8,null,"",null,null,null,null,null,null,null,"X","X"]
[20180114,"14:00:00",null,"","OOPS","OOPS","OOPS","","",null,null,null,null,null,null,null,null,null,null,null,null,null,null,null,null,null,null,null,null,null,null,null,"RD","I",23,5,2003,42600,2,1,8,674,20180114,"14:00:00",0.67,null,"",null,null,null,null,null,null,null,"X","X"]
[20180114,"15:00:00",null,"","OOPS","OOPS","OOPS","","",null,null,null,null,null,null,null,null,null,null,null,null,null,null,null,null,null,null,null,null,null,null,null,"RD","I",23,5,2003,42600,2,1,8,674,20180114,"15:00:00",0.81,null,"",null,null,null,null,null,null,null,"X","X"]
[20180114,"16:00:00",null,"","OOPS","OOPS","OOPS","","",null,null,null,null,null,null,null,null,null,null,null,null,null,null,null,null,null,null,null,null,null,null,null,"RD","I",23,5,2003,42600,2,1,8,674,20180114,"16:00:00",1.47,null,"",null,null,null,null,null,null,null,"X","X"]
[20180114,"17:00:00",null,"","OOPS","OOPS","OOPS","","",null,null,null,null,null,null,null,null,null,null,null,null,null,null,null,null,null,null,null,null,null,null,null,"RD","I",23,5,2003,42600,2,1,8,674,20180114,"17:00:00",1.78,null,"",null,null,null,null,null,null,null,"X","X"]
[20180114,"18:00:00",null,"","OOPS","OOPS","OOPS","","",null,null,null,null,null,null,null,null,null,null,null,null,null,null,null,null,null,null,null,null,null,null,null,"RD","I",23,5,2003,42600,2,1,8,674,20180114,"18:00:00",2.4700000000000002,null,"",null,null,null,null,null,null,null,"X","X"]
[20180114,"19:00:00",null,"","OOPS","OOPS","OOPS","","",null,null,null,null,null,null,null,null,null,null,null,null,null,null,null,null,null,null,null,null,null,null,null,"RD","I",23,5,2003,42600,2,1,8,674,20180114,"19:00:00",1.97,null,"",null,null,null,null,null,null,null,"X","X"]
[20180114,"20:00:00",null,"","OOPS","OOPS","OOPS","","",null,null,null,null,null,null,null,null,null,null,null,null,null,null,null,null,null,null,null,null,null,null,null,"RD","I",23,5,2003,42600,2,1,8,674,20180114,"20:00:00",3.47,null,"",null,null,null,null,null,null,null,"X","X"]
[20180114,"21:00:00",null,"","OOPS","OOPS","OOPS","","",null,null,null,null,null,null,null,null,null,null,null,null,null,null,null,null,null,null,null,null,null,null,null,"RD","I",23,5,2003,42600,2,1,8,674,20180114,"21:00:00",0.91,null,"",null,null,null,null,null,null,null,"X","X"]
[20180114,"22:00:00",null,"","OOPS","OOPS","OOPS","","",null,null,null,null,null,null,null,null,null,null,null,null,null,null,null,null,null,null,null,null,null,null,null,"RD","I",23,5,2003,42600,2,1,8,674,20180114,"22:00:00",0.56999999999999995,null,"",null,null,null,null,null,null,null,"X","X"]
[20180114,"23:00:00",null,"","OOPS","OOPS","OOPS","","",null,null,null,null,null,null,null,null,null,null,null,null,null,null,null,null,null,null,null,null,null,null,null,"RD","I",23,5,2003,42600,2,1,8,674,20180114,"23:00:00",0.59,null,"",null,null,null,null,null,null,null,"X","X"]
[20180115,"00:00:00",null,"","OOPS","OOPS","","","",null,null,null,null,null,null,null,null,null,null,null,null,null,null,null,null,null,null,null,null,null,null,null,"RD","I",23,5,2003,42600,2,1,8,674,20180115,"00:00:00",0.56999999999999995,null,"",null,null,null,null,null,null,null,"X","X"]
[20180115,"01:00:00",null,"","OOPS","OOPS","OOPS","","",null,null,null,null,null,null,null,null,null,null,null,null,null,null,null,null,null,null,null,null,null,null,null,"RD","I",23,5,2003,42600,2,1,8,674,20180115,"01:00:00",0.39,null,"",null,null,null,null,null,null,null,"X","X"]
[20180115,"02:00:00",null,"","OOPS","OOPS","OOPS","","",null,null,null,null,null,null,null,null,null,null,null,null,null,null,null,null,null,null,null,null,null,null,null,"RD","I",23,5,2003,42600,2,1,8,674,20180115,"02:00:00",0.9,null,"",null,null,null,null,null,null,null,"X","X"]
[20180115,"03:00:00",null,"","OOPS","OOPS","OOPS","","",null,null,null,null,null,null,null,null,null,null,null,null,null,null,null,null,null,null,null,null,null,null,null,"RD","I",23,5,2003,42600,2,1,8,674,20180115,"03:00:00",0.77,null,"",null,null,null,null,null,null,null,"X","X"]
[20180115,"04:00:00",null,"","OOPS","OOPS","OOPS","","",null,null,null,null,null,null,null,null,null,null,null,null,null,null,null,null,null,null,null,null,null,null,null,"RD","I",23,5,2003,42600,2,1,8,674,20180115,"04:00:00",0.95,null,"",null,null,null,null,null,null,null,"X","X"]
[20180115,"05:00:00",null,"","OOPS","OOPS","OOPS","","",null,null,null,null,null,null,null,null,null,null,null,null,null,null,null,null,null,null,null,null,null,null,null,"RD","I",23,5,2003,42600,2,1,8,674,20180115,"05:00:00",0.55000000000000004,null,"",null,null,null,null,null,null,null,"X","X"]
[20180115,"06:00:00",null,"","OOPS","OOPS","OOPS","","",null,null,null,null,null,null,null,null,null,null,null,null,null,null,null,null,null,null,null,null,null,null,null,"RD","I",23,5,2003,42600,2,1,8,674,20180115,"06:00:00",0.72,null,"",null,null,null,null,null,null,null,"X","X"]
[20180115,"07:00:00",null,"","OOPS","OOPS","OOPS","","",null,null,null,null,null,null,null,null,null,null,null,null,null,null,null,null,null,null,null,null,null,null,null,"RD","I",23,5,2003,42600,2,1,8,674,20180115,"07:00:00",3.36,null,"",null,null,null,null,null,null,null,"X","X"]
[20180115,"08:00:00",null,"","OOPS","OOPS","OOPS","","",null,null,null,null,null,null,null,null,null,null,null,null,null,null,null,null,null,null,null,null,null,null,null,"RD","I",23,5,2003,42600,2,1,8,674,20180115,"08:00:00",1.18,null,"",null,null,null,null,null,null,null,"X","X"]
[20180115,"09:00:00",null,"","OOPS","OOPS","OOPS","","",null,null,null,null,null,null,null,null,null,null,null,null,null,null,null,null,null,null,null,null,null,null,null,"RD","I",23,5,2003,42600,2,1,8,674,20180115,"09:00:00",1.22,null,"",null,null,null,null,null,null,null,"X","X"]
[20180115,"10:00:00",null,"","OOPS","OOPS","OOPS","","",null,null,null,null,null,null,null,null,null,null,null,null,null,null,null,null,null,null,null,null,null,null,null,"RD","I",23,5,2003,42600,2,1,8,674,20180115,"10:00:00",4.1500000000000004,null,"",null,null,null,null,null,null,null,"X","X"]
[20180115,"11:00:00",null,"","OOPS","OOPS","OOPS","","",null,null,null,null,null,null,null,null,null,null,null,null,null,null,null,null,null,null,null,null,null,null,null,"RD","I",23,5,2003,42600,2,1,8,674,20180115,"11:00:00",6.41,null,"",null,null,null,null,null,null,null,"X","X"]
[20180115,"12:00:00",null,"","OOPS","OOPS","OOPS","","",null,null,null,null,null,null,null,null,null,null,null,null,null,null,null,null,null,null,null,null,null,null,null,"RD","I",23,5,2003,42600,2,1,8,674,20180115,"12:00:00",4.1399999999999997,null,"",null,null,null,null,null,null,null,"X","X"]
[20180115,"13:00:00",null,"","OOPS","OOPS","OOPS","","",null,null,null,null,null,null,null,null,null,null,null,null,null,null,null,null,null,null,null,null,null,null,null,"RD","I",23,5,2003,42600,2,1,8,674,20180115,"13:00:00",3.98,null,"",null,null,null,null,null,null,null,"X","X"]
[20180115,"14:00:00",null,"","OOPS","OOPS","OOPS","","",null,null,null,null,null,null,null,null,null,null,null,null,null,null,null,null,null,null,null,null,null,null,null,"RD","I",23,5,2003,42600,2,1,8,674,20180115,"14:00:00",3.65,null,"",null,null,null,null,null,null,null,"X","X"]
[20180115,"15:00:00",null,"","OOPS","OOPS","OOPS","","",null,null,null,null,null,null,null,null,null,null,null,null,null,null,null,null,null,null,null,null,null,null,null,"RD","I",23,5,2003,42600,2,1,8,674,20180115,"15:00:00",3.64,null,"",null,null,null,null,null,null,null,"X","X"]
[20180115,"16:00:00",null,"","OOPS","OOPS","OOPS","","",null,null,null,null,null,null,null,null,null,null,null,null,null,null,null,null,null,null,null,null,null,null,null,"RD","I",23,5,2003,42600,2,1,8,674,20180115,"16:00:00",4.5199999999999996,null,"",null,null,null,null,null,null,null,"X","X"]
[20180115,"17:00:00",null,"","OOPS","OOPS","OOPS","","",null,null,null,null,null,null,null,null,null,null,null,null,null,null,null,null,null,null,null,null,null,null,null,"RD","I",23,5,2003,42600,2,1,8,674,20180115,"17:00:00",4.2699999999999996,null,"",null,null,null,null,null,null,null,"X","X"]
[20180115,"18:00:00",null,"","OOPS","OOPS","OOPS","","",null,null,null,null,null,null,null,null,null,null,null,null,null,null,null,null,null,null,null,null,null,null,null,"RD","I",23,5,2003,42600,2,1,8,674,20180115,"18:00:00",6.69,null,"",null,null,null,null,null,null,null,"X","X"]
[20180115,"19:00:00",null,"","OOPS","OOPS","OOPS","","",null,null,null,null,null,null,null,null,null,null,null,null,null,null,null,null,null,null,null,null,null,null,null,"RD","I",23,5,2003,42600,2,1,8,674,20180115,"19:00:00",6,null,"",null,null,null,null,null,null,null,"X","X"]
[20180115,"20:00:00",null,"","OOPS","OOPS","OOPS","","",null,null,null,null,null,null,null,null,null,null,null,null,null,null,null,null,null,null,null,null,null,null,null,"RD","I",23,5,2003,42600,2,1,8,674,20180115,"20:00:00",3.14,null,"",null,null,null,null,null,null,null,"X","X"]
[20180115,"21:00:00",null,"","OOPS","OOPS","OOPS","","",null,null,null,null,null,null,null,null,null,null,null,null,null,null,null,null,null,null,null,null,null,null,null,"RD","I",23,5,2003,42600,2,1,8,674,20180115,"21:00:00",1.83,null,"",null,null,null,null,null,null,null,"X","X"]
[20180115,"22:00:00",null,"","OOPS","OOPS","OOPS","","",null,null,null,null,null,null,null,null,null,null,null,null,null,null,null,null,null,null,null,null,null,null,null,"RD","I",23,5,2003,42600,2,1,8,674,20180115,"22:00:00",1.88,null,"",null,null,null,null,null,null,null,"X","X"]
[20180115,"23:00:00",null,"","OOPS","OOPS","OOPS","","",null,null,null,null,null,null,null,null,null,null,null,null,null,null,null,null,null,null,null,null,null,null,null,"RD","I",23,5,2003,42600,2,1,8,674,20180115,"23:00:00",3.34,null,"",null,null,null,null,null,null,null,"X","X"]
[20180116,"00:00:00",null,"","OOPS","OOPS","","","",null,null,null,null,null,null,null,null,null,null,null,null,null,null,null,null,null,null,null,null,null,null,null,"RD","I",23,5,2003,42600,2,1,8,674,20180116,"00:00:00",3.07,null,"",null,null,null,null,null,null,null,"X","X"]
[20180116,"01:00:00",null,"","OOPS","OOPS","OOPS","","",null,null,null,null,null,null,null,null,null,null,null,null,null,null,null,null,null,null,null,null,null,null,null,"RD","I",23,5,2003,42600,2,1,8,674,20180116,"01:00:00",1.78,null,"",null,null,null,null,null,null,null,"X","X"]
[20180116,"02:00:00",null,"","OOPS","OOPS","OOPS","","",null,null,null,null,null,null,null,null,null,null,null,null,null,null,null,null,null,null,null,null,null,null,null,"RD","I",23,5,2003,42600,2,1,8,674,20180116,"02:00:00",1.63,null,"",null,null,null,null,null,null,null,"X","X"]
[20180116,"03:00:00",null,"","OOPS","OOPS","OOPS","","",null,null,null,null,null,null,null,null,null,null,null,null,null,null,null,null,null,null,null,null,null,null,null,"RD","I",23,5,2003,42600,2,1,8,674,20180116,"03:00:00",1.38,null,"",null,null,null,null,null,null,null,"X","X"]
[20180116,"04:00:00",null,"","OOPS","OOPS","OOPS","","",null,null,null,null,null,null,null,null,null,null,null,null,null,null,null,null,null,null,null,null,null,null,null,"RD","I",23,5,2003,42600,2,1,8,674,20180116,"04:00:00",1.59,null,"",null,null,null,null,null,null,null,"X","X"]
[20180116,"05:00:00",null,"","OOPS","OOPS","OOPS","","",null,null,null,null,null,null,null,null,null,null,null,null,null,null,null,null,null,null,null,null,null,null,null,"RD","I",23,5,2003,42600,2,1,8,674,20180116,"05:00:00",1.66,null,"",null,null,null,null,null,null,null,"X","X"]
[20180116,"06:00:00",null,"","OOPS","OOPS","OOPS","","",null,null,null,null,null,null,null,null,null,null,null,null,null,null,null,null,null,null,null,null,null,null,null,"RD","I",23,5,2003,42600,2,1,8,674,20180116,"06:00:00",2.08,null,"",null,null,null,null,null,null,null,"X","X"]
[20180116,"07:00:00",null,"","OOPS","OOPS","OOPS","","",null,null,null,null,null,null,null,null,null,null,null,null,null,null,null,null,null,null,null,null,null,null,null,"RD","I",23,5,2003,42600,2,1,8,674,20180116,"07:00:00",5.25,null,"",null,null,null,null,null,null,null,"X","X"]
[20180116,"08:00:00",null,"","OOPS","OOPS","OOPS","","",null,null,null,null,null,null,null,null,null,null,null,null,null,null,null,null,null,null,null,null,null,null,null,"RD","I",23,5,2003,42600,2,1,8,674,20180116,"08:00:00",7.3,null,"",null,null,null,null,null,null,null,"X","X"]
[20180116,"09:00:00",null,"","OOPS","OOPS","OOPS","","",null,null,null,null,null,null,null,null,null,null,null,null,null,null,null,null,null,null,null,null,null,null,null,"RD","I",23,5,2003,42600,2,1,8,674,20180116,"09:00:00",1.1499999999999999,null,"",null,null,null,null,null,null,null,"X","X"]
[20180116,"10:00:00",null,"","OOPS","OOPS","OOPS","","",null,null,null,null,null,null,null,null,null,null,null,null,null,null,null,null,null,null,null,null,null,null,null,"RD","I",23,5,2003,42600,2,1,8,674,20180116,"10:00:00",1.1499999999999999,null,"",null,null,null,null,null,null,null,"X","X"]
[20180116,"11:00:00",null,"","OOPS","OOPS","OOPS","","",null,null,null,null,null,null,null,null,null,null,null,null,null,null,null,null,null,null,null,null,null,null,null,"RD","I",23,5,2003,42600,2,1,8,674,20180116,"11:00:00",0.7,null,"",null,null,null,null,null,null,null,"X","X"]
[20180116,"12:00:00",null,"","OOPS","OOPS","OOPS","","",null,null,null,null,null,null,null,null,null,null,null,null,null,null,null,null,null,null,null,null,null,null,null,"RD","I",23,5,2003,42600,2,1,8,674,20180116,"12:00:00",0.52,null,"",null,null,null,null,null,null,null,"X","X"]
[20180116,"13:00:00",null,"","OOPS","OOPS","OOPS","","",null,null,null,null,null,null,null,null,null,null,null,null,null,null,null,null,null,null,null,null,null,null,null,"RD","I",23,5,2003,42600,2,1,8,674,20180116,"13:00:00",0.49,null,"",null,null,null,null,null,null,null,"X","X"]
[20180116,"14:00:00",null,"","OOPS","OOPS","OOPS","","",null,null,null,null,null,null,null,null,null,null,null,null,null,null,null,null,null,null,null,null,null,null,null,"RD","I",23,5,2003,42600,2,1,8,674,20180116,"14:00:00",1.36,null,"",null,null,null,null,null,null,null,"X","X"]
[20180116,"15:00:00",null,"","OOPS","OOPS","OOPS","","",null,null,null,null,null,null,null,null,null,null,null,null,null,null,null,null,null,null,null,null,null,null,null,"RD","I",23,5,2003,42600,2,1,8,674,20180116,"15:00:00",2.52,null,"",null,null,null,null,null,null,null,"X","X"]
[20180116,"16:00:00",null,"","OOPS","OOPS","OOPS","","",null,null,null,null,null,null,null,null,null,null,null,null,null,null,null,null,null,null,null,null,null,null,null,"RD","I",23,5,2003,42600,2,1,8,674,20180116,"16:00:00",2.66,null,"",null,null,null,null,null,null,null,"X","X"]
[20180116,"17:00:00",null,"","OOPS","OOPS","OOPS","","",null,null,null,null,null,null,null,null,null,null,null,null,null,null,null,null,null,null,null,null,null,null,null,"RD","I",23,5,2003,42600,2,1,8,674,20180116,"17:00:00",3.43,null,"",null,null,null,null,null,null,null,"X","X"]
[20180116,"18:00:00",null,"","OOPS","OOPS","OOPS","","",null,null,null,null,null,null,null,null,null,null,null,null,null,null,null,null,null,null,null,null,null,null,null,"RD","I",23,5,2003,42600,2,1,8,674,20180116,"18:00:00",4.95,null,"",null,null,null,null,null,null,null,"X","X"]
[20180116,"19:00:00",null,"","OOPS","OOPS","OOPS","","",null,null,null,null,null,null,null,null,null,null,null,null,null,null,null,null,null,null,null,null,null,null,null,"RD","I",23,5,2003,42600,2,1,8,674,20180116,"19:00:00",6.23,null,"",null,null,null,null,null,null,null,"X","X"]
[20180116,"20:00:00",null,"","OOPS","OOPS","OOPS","","",null,null,null,null,null,null,null,null,null,null,null,null,null,null,null,null,null,null,null,null,null,null,null,"RD","I",23,5,2003,42600,2,1,8,674,20180116,"20:00:00",8.8699999999999992,null,"",null,null,null,null,null,null,null,"X","X"]
[20180116,"21:00:00",null,"","OOPS","OOPS","OOPS","","",null,null,null,null,null,null,null,null,null,null,null,null,null,null,null,null,null,null,null,null,null,null,null,"RD","I",23,5,2003,42600,2,1,8,674,20180116,"21:00:00",9.19,null,"",null,null,null,null,null,null,null,"X","X"]
[20180116,"22:00:00",null,"","OOPS","OOPS","OOPS","","",null,null,null,null,null,null,null,null,null,null,null,null,null,null,null,null,null,null,null,null,null,null,null,"RD","I",23,5,2003,42600,2,1,8,674,20180116,"22:00:00",9.9700000000000006,null,"",null,null,null,null,null,null,null,"X","X"]
[20180116,"23:00:00",null,"","OOPS","OOPS","OOPS","","",null,null,null,null,null,null,null,null,null,null,null,null,null,null,null,null,null,null,null,null,null,null,null,"RD","I",23,5,2003,42600,2,1,8,674,20180116,"23:00:00",10.96,null,"",null,null,null,null,null,null,null,"X","X"]
[20180117,"00:00:00",null,{"$f":"IF(C390=\"\",IF(V390=\"\",\"\",\"OOPS\"),IF(C390=V390,\"\",\"OOPS\"))","v":""},{"$f":"IF(C390=\"\",IF(AS390=\"\",\"\",\"OOPS\"),IF(C390=AS390,\"\",\"OOPS\"))","v":"OOPS"},"OOPS","","","",null,null,null,null,null,null,null,null,null,null,null,null,null,null,null,null,null,null,null,null,null,null,null,"RD","I",23,5,2003,42600,2,1,8,674,20180117,"00:00:00",13.49,null,"",null,null,null,null,null,null,null,"X","X"]
[20180117,"01:00:00",null,"","OOPS",{"$f":"IF(A391=T391,\"\",\"OOPS\")","v":"OOPS"},{"$f":"IF(B391=U391,\"\",\"OOPS\")","v":"OOPS"},{"$f":"IF(A391=AQ391,\"\",\"OOPS\")","v":""},{"$f":"IF(B391=AR391,\"\",\"OOPS\")","v":""},null,null,null,null,null,null,null,null,null,null,null,null,null,null,null,null,null,null,null,null,null,null,null,"RD","I",23,5,2003,42600,2,1,8,674,20180117,"01:00:00",17.39,null,"",null,null,null,null,null,null,null,"X","X"]
[20180117,"02:00:00",null,"","OOPS","OOPS","OOPS","","",null,null,null,null,null,null,null,null,null,null,null,null,null,null,null,null,null,null,null,null,null,null,null,"RD","I",23,5,2003,42600,2,1,8,674,20180117,"02:00:00",13.25,null,"",null,null,null,null,null,null,null,"X",{"$f":"IF(AR392=\"\",\"\",IF(AR392=AR391,IF(AS392=AS391,\"\",\"X\"),\"X\"))","v":"X"}]
[20180117,"03:00:00",null,"","OOPS","OOPS","OOPS","","",null,null,null,null,null,null,null,null,null,null,null,null,null,null,null,null,null,null,null,null,null,null,null,"RD","I",23,5,2003,42600,2,1,8,674,20180117,"03:00:00",7.57,null,"",null,null,null,null,null,null,null,"X","X"]
[20180117,"04:00:00",null,"","OOPS","OOPS","OOPS","","",null,null,null,null,null,null,null,null,null,null,null,null,null,null,null,null,null,null,null,null,null,null,null,"RD","I",23,5,2003,42600,2,1,8,674,20180117,"04:00:00",6.48,null,"",null,null,null,null,null,null,null,"X","X"]
[20180117,"05:00:00",null,"","OOPS","OOPS","OOPS","","",null,null,null,null,null,null,null,null,null,null,null,null,null,null,null,null,null,null,null,null,null,null,null,"RD","I",23,5,2003,42600,2,1,8,674,20180117,"05:00:00",4.7300000000000004,null,"",null,null,null,null,null,null,null,"X","X"]
[20180117,"06:00:00",null,"","OOPS","OOPS","OOPS","","",null,null,null,null,null,null,null,null,null,null,null,null,null,null,null,null,null,null,null,null,null,null,null,"RD","I",23,5,2003,42600,2,1,8,674,20180117,"06:00:00",6.52,null,"",null,null,null,null,null,null,null,"X","X"]
[20180117,"07:00:00",null,"","OOPS","OOPS","OOPS","","",null,null,null,null,null,null,null,null,null,null,null,null,null,null,null,null,null,null,null,null,null,null,null,"RD","I",23,5,2003,42600,2,1,8,674,20180117,"07:00:00",7.77,null,"",null,null,null,null,null,null,null,"X","X"]
[20180117,"08:00:00",null,"","OOPS","OOPS","OOPS","","",null,null,null,null,null,null,null,null,null,null,null,null,null,null,null,null,null,null,null,null,null,null,null,"RD","I",23,5,2003,42600,2,1,8,674,20180117,"08:00:00",11.02,null,"",null,null,null,null,null,null,null,"X","X"]
[20180117,"09:00:00",null,"","OOPS","OOPS","OOPS","","",null,null,null,null,null,null,null,null,null,null,null,null,null,null,null,null,null,null,null,null,null,null,null,"RD","I",23,5,2003,42600,2,1,8,674,20180117,"09:00:00",10.68,null,"",null,null,null,null,null,null,null,"X","X"]
[20180117,"10:00:00",null,"","OOPS","OOPS","OOPS","","",null,null,null,null,null,null,null,null,null,null,null,null,null,null,null,null,null,null,null,null,null,null,null,"RD","I",23,5,2003,42600,2,1,8,674,20180117,"10:00:00",8.65,null,"",null,null,null,null,null,null,null,"X","X"]
[20180117,"11:00:00",null,"","OOPS","OOPS","OOPS","","",null,null,null,null,null,null,null,null,null,null,null,null,null,null,null,null,null,null,null,null,null,null,null,"RD","I",23,5,2003,42600,2,1,8,674,20180117,"11:00:00",6.89,null,"",null,null,null,null,null,null,null,"X","X"]
[20180117,"12:00:00",null,"","OOPS","OOPS","OOPS","","",null,null,null,null,null,null,null,null,null,null,null,null,null,null,null,null,null,null,null,null,null,null,null,"RD","I",23,5,2003,42600,2,1,8,674,20180117,"12:00:00",5.99,null,"",null,null,null,null,null,null,null,"X","X"]
[20180117,"13:00:00",null,"","OOPS","OOPS","OOPS","","",null,null,null,null,null,null,null,null,null,null,null,null,null,null,null,null,null,null,null,null,null,null,null,"RD","I",23,5,2003,42600,2,1,8,674,20180117,"13:00:00",6.83,null,"",null,null,null,null,null,null,null,"X","X"]
[20180117,"14:00:00",null,"","OOPS","OOPS","OOPS","","",null,null,null,null,null,null,null,null,null,null,null,null,null,null,null,null,null,null,null,null,null,null,null,"RD","I",23,5,2003,42600,2,1,8,674,20180117,"14:00:00",7.16,null,"",null,null,null,null,null,null,null,"X","X"]
[20180117,"15:00:00",null,"","OOPS","OOPS","OOPS","","",null,null,null,null,null,null,null,null,null,null,null,null,null,null,null,null,null,null,null,null,null,null,null,"RD","I",23,5,2003,42600,2,1,8,674,20180117,"15:00:00",5.3,null,"",null,null,null,null,null,null,null,"X","X"]
[20180117,"16:00:00",null,"","OOPS","OOPS","OOPS","","",null,null,null,null,null,null,null,null,null,null,null,null,null,null,null,null,null,null,null,null,null,null,null,"RD","I",23,5,2003,42600,2,1,8,674,20180117,"16:00:00",5.76,null,"",null,null,null,null,null,null,null,"X","X"]
[20180117,"17:00:00",null,"","OOPS","OOPS","OOPS","","",null,null,null,null,null,null,null,null,null,null,null,null,null,null,null,null,null,null,null,null,null,null,null,"RD","I",23,5,2003,42600,2,1,8,674,20180117,"17:00:00",5.04,null,"",null,null,null,null,null,null,null,"X","X"]
[20180117,"18:00:00",null,"","OOPS","OOPS","OOPS","","",null,null,null,null,null,null,null,null,null,null,null,null,null,null,null,null,null,null,null,null,null,null,null,"RD","I",23,5,2003,42600,2,1,8,674,20180117,"18:00:00",4.67,null,"",null,null,null,null,null,null,null,"X","X"]
[20180117,"19:00:00",null,"","OOPS","OOPS","OOPS","","",null,null,null,null,null,null,null,null,null,null,null,null,null,null,null,null,null,null,null,null,null,null,null,"RD","I",23,5,2003,42600,2,1,8,674,20180117,"19:00:00",5.58,null,"",null,null,null,null,null,null,null,"X","X"]
[20180117,"20:00:00",null,"","OOPS","OOPS","OOPS","","",null,null,null,null,null,null,null,null,null,null,null,null,null,null,null,null,null,null,null,null,null,null,null,"RD","I",23,5,2003,42600,2,1,8,674,20180117,"20:00:00",7.57,null,"",null,null,null,null,null,null,null,"X","X"]
[20180117,"21:00:00",null,"","OOPS","OOPS","OOPS","","",null,null,null,null,null,null,null,null,null,null,null,null,null,null,null,null,null,null,null,null,null,null,null,"RD","I",23,5,2003,42600,2,1,8,674,20180117,"21:00:00",8.9700000000000006,null,"",null,null,null,null,null,null,null,"X","X"]
[20180117,"22:00:00",null,"","OOPS","OOPS","OOPS","","",null,null,null,null,null,null,null,null,null,null,null,null,null,null,null,null,null,null,null,null,null,null,null,"RD","I",23,5,2003,42600,2,1,8,674,20180117,"22:00:00",9.3000000000000007,null,"",null,null,null,null,null,null,null,"X","X"]
[20180117,"23:00:00",null,"","OOPS","OOPS","OOPS","","",null,null,null,null,null,null,null,null,null,null,null,null,null,null,null,null,null,null,null,null,null,null,null,"RD","I",23,5,2003,42600,2,1,8,674,20180117,"23:00:00",8.1300000000000008,null,"",null,null,null,null,null,null,null,"X","X"]
[20180118,"00:00:00",null,"","OOPS","OOPS","","","",null,null,null,null,null,null,null,null,null,null,null,null,null,null,null,null,null,null,null,null,null,null,null,"RD","I",23,5,2003,42600,2,1,8,674,20180118,"00:00:00",9.0299999999999994,null,"",null,null,null,null,null,null,null,"X","X"]
[20180118,"01:00:00",null,"","OOPS","OOPS","OOPS","","",null,null,null,null,null,null,null,null,null,null,null,null,null,null,null,null,null,null,null,null,null,null,null,"RD","I",23,5,2003,42600,2,1,8,674,20180118,"01:00:00",12.81,null,"",null,null,null,null,null,null,null,"X","X"]
[20180118,"02:00:00",null,"","OOPS","OOPS","OOPS","","",null,null,null,null,null,null,null,null,null,null,null,null,null,null,null,null,null,null,null,null,null,null,null,"RD","I",23,5,2003,42600,2,1,8,674,20180118,"02:00:00",16.54,null,"",null,null,null,null,null,null,null,"X","X"]
[20180118,"03:00:00",null,"","OOPS","OOPS","OOPS","","",null,null,null,null,null,null,null,null,null,null,null,null,null,null,null,null,null,null,null,null,null,null,null,"RD","I",23,5,2003,42600,2,1,8,674,20180118,"03:00:00",10.08,null,"",null,null,null,null,null,null,null,"X","X"]
[20180118,"04:00:00",null,"","OOPS","OOPS","OOPS","","",null,null,null,null,null,null,null,null,null,null,null,null,null,null,null,null,null,null,null,null,null,null,null,"RD","I",23,5,2003,42600,2,1,8,674,20180118,"04:00:00",5.57,null,"",null,null,null,null,null,null,null,"X","X"]
[20180118,"05:00:00",null,"","OOPS","OOPS","OOPS","","",null,null,null,null,null,null,null,null,null,null,null,null,null,null,null,null,null,null,null,null,null,null,null,"RD","I",23,5,2003,42600,2,1,8,674,20180118,"05:00:00",4.04,null,"",null,null,null,null,null,null,null,"X","X"]
[20180118,"06:00:00",null,"","OOPS","OOPS","OOPS","","",null,null,null,null,null,null,null,null,null,null,null,null,null,null,null,null,null,null,null,null,null,null,null,"RD","I",23,5,2003,42600,2,1,8,674,20180118,"06:00:00",8.3699999999999992,null,"",null,null,null,null,null,null,null,"X","X"]
[20180118,"07:00:00",null,"","OOPS","OOPS","OOPS","","",null,null,null,null,null,null,null,null,null,null,null,null,null,null,null,null,null,null,null,null,null,null,null,"RD","I",23,5,2003,42600,2,1,8,674,20180118,"07:00:00",16.239999999999998,null,"",null,null,null,null,null,null,null,"X","X"]
[20180118,"08:00:00",null,"","OOPS","OOPS","OOPS","","",null,null,null,null,null,null,null,null,null,null,null,null,null,null,null,null,null,null,null,null,null,null,null,"RD","I",23,5,2003,42600,2,1,8,674,20180118,"08:00:00",21.59,null,"",null,null,null,null,null,null,null,"X","X"]
[20180118,"09:00:00",null,"","OOPS","OOPS","OOPS","","",null,null,null,null,null,null,null,null,null,null,null,null,null,null,null,null,null,null,null,null,null,null,null,"RD","I",23,5,2003,42600,2,1,8,674,20180118,"09:00:00",19.18,null,"",null,null,null,null,null,null,null,"X","X"]
[20180118,"10:00:00",null,"","OOPS","OOPS","OOPS","","",null,null,null,null,null,null,null,null,null,null,null,null,null,null,null,null,null,null,null,null,null,null,null,"RD","I",23,5,2003,42600,2,1,8,674,20180118,"10:00:00",11.64,null,"",null,null,null,null,null,null,null,"X","X"]
[20180118,"11:00:00",null,"","OOPS","OOPS","OOPS","","",null,null,null,null,null,null,null,null,null,null,null,null,null,null,null,null,null,null,null,null,null,null,null,"RD","I",23,5,2003,42600,2,1,8,674,20180118,"11:00:00",4.4800000000000004,null,"",null,null,null,null,null,null,null,"X","X"]
[20180118,"12:00:00",null,"","OOPS","OOPS","OOPS","","",null,null,null,null,null,null,null,null,null,null,null,null,null,null,null,null,null,null,null,null,null,null,null,"RD","I",23,5,2003,42600,2,1,8,674,20180118,"12:00:00",6.94,null,"",null,null,null,null,null,null,null,"X","X"]
[20180118,"13:00:00",null,"","OOPS","OOPS","OOPS","","",null,null,null,null,null,null,null,null,null,null,null,null,null,null,null,null,null,null,null,null,null,null,null,"RD","I",23,5,2003,42600,2,1,8,674,20180118,"13:00:00",6.5,null,"",null,null,null,null,null,null,null,"X","X"]
[20180118,"14:00:00",null,"","OOPS","OOPS","OOPS","","",null,null,null,null,null,null,null,null,null,null,null,null,null,null,null,null,null,null,null,null,null,null,null,"RD","I",23,5,2003,42600,2,1,8,674,20180118,"14:00:00",6.31,null,"",null,null,null,null,null,null,null,"X","X"]
[20180118,"15:00:00",null,"","OOPS","OOPS","OOPS","","",null,null,null,null,null,null,null,null,null,null,null,null,null,null,null,null,null,null,null,null,null,null,null,"RD","I",23,5,2003,42600,2,1,8,674,20180118,"15:00:00",5.36,null,"",null,null,null,null,null,null,null,"X","X"]
[20180118,"16:00:00",null,"","OOPS","OOPS","OOPS","","",null,null,null,null,null,null,null,null,null,null,null,null,null,null,null,null,null,null,null,null,null,null,null,"RD","I",23,5,2003,42600,2,1,8,674,20180118,"16:00:00",5.04,null,"",null,null,null,null,null,null,null,"X","X"]
[20180118,"17:00:00",null,"","OOPS","OOPS","OOPS","","",null,null,null,null,null,null,null,null,null,null,null,null,null,null,null,null,null,null,null,null,null,null,null,"RD","I",23,5,2003,42600,2,1,8,674,20180118,"17:00:00",8.2899999999999991,null,"",null,null,null,null,null,null,null,"X","X"]
[20180118,"18:00:00",null,"","OOPS","OOPS","OOPS","","",null,null,null,null,null,null,null,null,null,null,null,null,null,null,null,null,null,null,null,null,null,null,null,"RD","I",23,5,2003,42600,2,1,8,674,20180118,"18:00:00",11.06,null,"",null,null,null,null,null,null,null,"X","X"]
[20180118,"19:00:00",null,"","OOPS","OOPS","OOPS","","",null,null,null,null,null,null,null,null,null,null,null,null,null,null,null,null,null,null,null,null,null,null,null,"RD","I",23,5,2003,42600,2,1,8,674,20180118,"19:00:00",17.84,null,"",null,null,null,null,null,null,null,"X","X"]
[20180118,"20:00:00",null,"","OOPS","OOPS","OOPS","","",null,null,null,null,null,null,null,null,null,null,null,null,null,null,null,null,null,null,null,null,null,null,null,"RD","I",23,5,2003,42600,2,1,8,674,20180118,"20:00:00",12.44,null,"",null,null,null,null,null,null,null,"X","X"]
[20180118,"21:00:00",null,"","OOPS","OOPS","OOPS","","",null,null,null,null,null,null,null,null,null,null,null,null,null,null,null,null,null,null,null,null,null,null,null,"RD","I",23,5,2003,42600,2,1,8,674,20180118,"21:00:00",13.2,null,"",null,null,null,null,null,null,null,"X","X"]
[20180118,"22:00:00",null,"","OOPS","OOPS","OOPS","","",null,null,null,null,null,null,null,null,null,null,null,null,null,null,null,null,null,null,null,null,null,null,null,"RD","I",23,5,2003,42600,2,1,8,674,20180118,"22:00:00",15.61,null,"",null,null,null,null,null,null,null,"X","X"]
[20180118,"23:00:00",null,"","OOPS","OOPS","OOPS","","",null,null,null,null,null,null,null,null,null,null,null,null,null,null,null,null,null,null,null,null,null,null,null,"RD","I",23,5,2003,42600,2,1,8,674,20180118,"23:00:00",6.78,null,"",null,null,null,null,null,null,null,"X","X"]
[20180119,"00:00:00",null,"","OOPS","OOPS","","","",null,null,null,null,null,null,null,null,null,null,null,null,null,null,null,null,null,null,null,null,null,null,null,"RD","I",23,5,2003,42600,2,1,8,674,20180119,"00:00:00",5.53,null,"",null,null,null,null,null,null,null,"X","X"]
[20180119,"01:00:00",null,"","OOPS","OOPS","OOPS","","",null,null,null,null,null,null,null,null,null,null,null,null,null,null,null,null,null,null,null,null,null,null,null,"RD","I",23,5,2003,42600,2,1,8,674,20180119,"01:00:00",6.15,null,"",null,null,null,null,null,null,null,"X","X"]
[20180119,"02:00:00",null,"","OOPS","OOPS","OOPS","","",null,null,null,null,null,null,null,null,null,null,null,null,null,null,null,null,null,null,null,null,null,null,null,"RD","I",23,5,2003,42600,2,1,8,674,20180119,"02:00:00",6.62,null,"",null,null,null,null,null,null,null,"X","X"]
[20180119,"03:00:00",null,"","OOPS","OOPS","OOPS","","",null,null,null,null,null,null,null,null,null,null,null,null,null,null,null,null,null,null,null,null,null,null,null,"RD","I",23,5,2003,42600,2,1,8,674,20180119,"03:00:00",6.95,null,"",null,null,null,null,null,null,null,"X","X"]
[20180119,"04:00:00",null,"","OOPS","OOPS","OOPS","","",null,null,null,null,null,null,null,null,null,null,null,null,null,null,null,null,null,null,null,null,null,null,null,"RD","I",23,5,2003,42600,2,1,8,674,20180119,"04:00:00",5.9,null,"",null,null,null,null,null,null,null,"X","X"]
[20180119,"05:00:00",null,"","OOPS","OOPS","OOPS","","",null,null,null,null,null,null,null,null,null,null,null,null,null,null,null,null,null,null,null,null,null,null,null,"RD","I",23,5,2003,42600,2,1,8,674,20180119,"05:00:00",7.01,null,"",null,null,null,null,null,null,null,"X","X"]
[20180119,"06:00:00",null,"","OOPS","OOPS","OOPS","","",null,null,null,null,null,null,null,null,null,null,null,null,null,null,null,null,null,null,null,null,null,null,null,"RD","I",23,5,2003,42600,2,1,8,674,20180119,"06:00:00",6.81,null,"",null,null,null,null,null,null,null,"X","X"]
[20180119,"07:00:00",null,"","OOPS","OOPS","OOPS","","",null,null,null,null,null,null,null,null,null,null,null,null,null,null,null,null,null,null,null,null,null,null,null,"RD","I",23,5,2003,42600,2,1,8,674,20180119,"07:00:00",14.96,null,"",null,null,null,null,null,null,null,"X","X"]
[20180119,"08:00:00",null,"","OOPS","OOPS","OOPS","","",null,null,null,null,null,null,null,null,null,null,null,null,null,null,null,null,null,null,null,null,null,null,null,"RD","I",23,5,2003,42600,2,1,8,674,20180119,"08:00:00",16.66,null,"",null,null,null,null,null,null,null,"X","X"]
[20180119,"09:00:00",null,"","OOPS","OOPS","OOPS","","",null,null,null,null,null,null,null,null,null,null,null,null,null,null,null,null,null,null,null,null,null,null,null,"RD","I",23,5,2003,42600,2,1,8,674,20180119,"09:00:00",6.67,null,"",null,null,null,null,null,null,null,"X","X"]
[20180119,"10:00:00",null,"","OOPS","OOPS","OOPS","","",null,null,null,null,null,null,null,null,null,null,null,null,null,null,null,null,null,null,null,null,null,null,null,"RD","I",23,5,2003,42600,2,1,8,674,20180119,"10:00:00",4.1500000000000004,null,"",null,null,null,null,null,null,null,"X","X"]
[20180119,"11:00:00",null,"","OOPS","OOPS","OOPS","","",null,null,null,null,null,null,null,null,null,null,null,null,null,null,null,null,null,null,null,null,null,null,null,"RD","I",23,5,2003,42600,2,1,8,674,20180119,"11:00:00",3.39,null,"",null,null,null,null,null,null,null,"X","X"]
[20180119,"12:00:00",null,"","OOPS","OOPS","OOPS","","",null,null,null,null,null,null,null,null,null,null,null,null,null,null,null,null,null,null,null,null,null,null,null,"RD","I",23,5,2003,42600,2,1,8,674,20180119,"12:00:00",3.03,null,"",null,null,null,null,null,null,null,"X","X"]
[20180119,"13:00:00",null,"","OOPS","OOPS","OOPS","","",null,null,null,null,null,null,null,null,null,null,null,null,null,null,null,null,null,null,null,null,null,null,null,"RD","I",23,5,2003,42600,2,1,8,674,20180119,"13:00:00",3.25,null,"",null,null,null,null,null,null,null,"X","X"]
[20180119,"14:00:00",null,"","OOPS","OOPS","OOPS","","",null,null,null,null,null,null,null,null,null,null,null,null,null,null,null,null,null,null,null,null,null,null,null,"RD","I",23,5,2003,42600,2,1,8,674,20180119,"14:00:00",3.3,null,"",null,null,null,null,null,null,null,"X","X"]
[20180119,"15:00:00",null,"","OOPS","OOPS","OOPS","","",null,null,null,null,null,null,null,null,null,null,null,null,null,null,null,null,null,null,null,null,null,null,null,"RD","I",23,5,2003,42600,2,1,8,674,20180119,"15:00:00",2.9,null,"",null,null,null,null,null,null,null,"X","X"]
[20180119,"16:00:00",null,{"$f":"IF(C454=\"\",IF(V454=\"\",\"\",\"OOPS\"),IF(C454=V454,\"\",\"OOPS\"))","v":""},{"$f":"IF(C454=\"\",IF(AS454=\"\",\"\",\"OOPS\"),IF(C454=AS454,\"\",\"OOPS\"))","v":"OOPS"},"OOPS","OOPS","","",null,null,null,null,null,null,null,null,null,null,null,null,null,null,null,null,null,null,null,null,null,null,null,"RD","I",23,5,2003,42600,2,1,8,674,20180119,"16:00:00",2.9,null,"",null,null,null,null,null,null,null,"X","X"]
[20180119,"17:00:00",null,"","OOPS",{"$f":"IF(A455=T455,\"\",\"OOPS\")","v":"OOPS"},{"$f":"IF(B455=U455,\"\",\"OOPS\")","v":"OOPS"},{"$f":"IF(A455=AQ455,\"\",\"OOPS\")","v":""},{"$f":"IF(B455=AR455,\"\",\"OOPS\")","v":""},null,null,null,null,null,null,null,null,null,null,null,null,null,null,null,null,null,null,null,null,null,null,null,"RD","I",23,5,2003,42600,2,1,8,674,20180119,"17:00:00",3.98,null,"",null,null,null,null,null,null,null,"X","X"]
[20180119,"18:00:00",null,"","OOPS","OOPS","OOPS","","",null,null,null,null,null,null,null,null,null,null,null,null,null,null,null,null,null,null,null,null,null,null,null,"RD","I",23,5,2003,42600,2,1,8,674,20180119,"18:00:00",3.5,null,"",null,null,null,null,null,null,null,"X",{"$f":"IF(AR456=\"\",\"\",IF(AR456=AR455,IF(AS456=AS455,\"\",\"X\"),\"X\"))","v":"X"}]
[20180119,"19:00:00",null,"","OOPS","OOPS","OOPS","","",null,null,null,null,null,null,null,null,null,null,null,null,null,null,null,null,null,null,null,null,null,null,null,"RD","I",23,5,2003,42600,2,1,8,674,20180119,"19:00:00",5.1100000000000003,null,"",null,null,null,null,null,null,null,"X","X"]
[20180119,"20:00:00",null,"","OOPS","OOPS","OOPS","","",null,null,null,null,null,null,null,null,null,null,null,null,null,null,null,null,null,null,null,null,null,null,null,"RD","I",23,5,2003,42600,2,1,8,674,20180119,"20:00:00",6.35,null,"",null,null,null,null,null,null,null,"X","X"]
[20180119,"21:00:00",null,"","OOPS","OOPS","OOPS","","",null,null,null,null,null,null,null,null,null,null,null,null,null,null,null,null,null,null,null,null,null,null,null,"RD","I",23,5,2003,42600,2,1,8,674,20180119,"21:00:00",6.11,null,"",null,null,null,null,null,null,null,"X","X"]
[20180119,"22:00:00",null,"","OOPS","OOPS","OOPS","","",null,null,null,null,null,null,null,null,null,null,null,null,null,null,null,null,null,null,null,null,null,null,null,"RD","I",23,5,2003,42600,2,1,8,674,20180119,"22:00:00",6.54,null,"",null,null,null,null,null,null,null,"X","X"]
[20180119,"23:00:00",null,"","OOPS","OOPS","OOPS","","",null,null,null,null,null,null,null,null,null,null,null,null,null,null,null,null,null,null,null,null,null,null,null,"RD","I",23,5,2003,42600,2,1,8,674,20180119,"23:00:00",7.07,null,"",null,null,null,null,null,null,null,"X","X"]
[20180120,"00:00:00",null,"","OOPS","OOPS","","","",null,null,null,null,null,null,null,null,null,null,null,null,null,null,null,null,null,null,null,null,null,null,null,"RD","I",23,5,2003,42600,2,1,8,674,20180120,"00:00:00",6.42,null,"",null,null,null,null,null,null,null,"X","X"]
[20180120,"01:00:00",null,"","OOPS","OOPS","OOPS","","",null,null,null,null,null,null,null,null,null,null,null,null,null,null,null,null,null,null,null,null,null,null,null,"RD","I",23,5,2003,42600,2,1,8,674,20180120,"01:00:00",5.97,null,"",null,null,null,null,null,null,null,"X","X"]
[20180120,"02:00:00",null,"","OOPS","OOPS","OOPS","","",null,null,null,null,null,null,null,null,null,null,null,null,null,null,null,null,null,null,null,null,null,null,null,"RD","I",23,5,2003,42600,2,1,8,674,20180120,"02:00:00",7.28,null,"",null,null,null,null,null,null,null,"X","X"]
[20180120,"03:00:00",null,"","OOPS","OOPS","OOPS","","",null,null,null,null,null,null,null,null,null,null,null,null,null,null,null,null,null,null,null,null,null,null,null,"RD","I",23,5,2003,42600,2,1,8,674,20180120,"03:00:00",8.94,null,"",null,null,null,null,null,null,null,"X","X"]
[20180120,"04:00:00",null,"","OOPS","OOPS","OOPS","","",null,null,null,null,null,null,null,null,null,null,null,null,null,null,null,null,null,null,null,null,null,null,null,"RD","I",23,5,2003,42600,2,1,8,674,20180120,"04:00:00",8.6199999999999992,null,"",null,null,null,null,null,null,null,"X","X"]
[20180120,"05:00:00",null,"","OOPS","OOPS","OOPS","","",null,null,null,null,null,null,null,null,null,null,null,null,null,null,null,null,null,null,null,null,null,null,null,"RD","I",23,5,2003,42600,2,1,8,674,20180120,"05:00:00",8.4700000000000006,null,"",null,null,null,null,null,null,null,"X","X"]
[20180120,"06:00:00",null,"","OOPS","OOPS","OOPS","","",null,null,null,null,null,null,null,null,null,null,null,null,null,null,null,null,null,null,null,null,null,null,null,"RD","I",23,5,2003,42600,2,1,8,674,20180120,"06:00:00",9.68,null,"",null,null,null,null,null,null,null,"X","X"]
[20180120,"07:00:00",null,"","OOPS","OOPS","OOPS","","",null,null,null,null,null,null,null,null,null,null,null,null,null,null,null,null,null,null,null,null,null,null,null,"RD","I",23,5,2003,42600,2,1,8,674,20180120,"07:00:00",10.24,null,"",null,null,null,null,null,null,null,"X","X"]
[20180120,"08:00:00",null,"","OOPS","OOPS","OOPS","","",null,null,null,null,null,null,null,null,null,null,null,null,null,null,null,null,null,null,null,null,null,null,null,"RD","I",23,5,2003,42600,2,1,8,674,20180120,"08:00:00",11.16,null,"",null,null,null,null,null,null,null,"X","X"]
[20180120,"09:00:00",null,"","OOPS","OOPS","OOPS","","",null,null,null,null,null,null,null,null,null,null,null,null,null,null,null,null,null,null,null,null,null,null,null,"RD","I",23,5,2003,42600,2,1,8,674,20180120,"09:00:00",10.32,null,"",null,null,null,null,null,null,null,"X","X"]
[20180120,"10:00:00",null,"","OOPS","OOPS","OOPS","","",null,null,null,null,null,null,null,null,null,null,null,null,null,null,null,null,null,null,null,null,null,null,null,"RD","I",23,5,2003,42600,2,1,8,674,20180120,"10:00:00",8.7799999999999994,null,"",null,null,null,null,null,null,null,"X","X"]
[20180120,"11:00:00",null,"","OOPS","OOPS","OOPS","","",null,null,null,null,null,null,null,null,null,null,null,null,null,null,null,null,null,null,null,null,null,null,null,"RD","I",23,5,2003,42600,2,1,8,674,20180120,"11:00:00",8.2200000000000006,null,"",null,null,null,null,null,null,null,"X","X"]
[20180120,"12:00:00",null,"","OOPS","OOPS","OOPS","","",null,null,null,null,null,null,null,null,null,null,null,null,null,null,null,null,null,null,null,null,null,null,null,"RD","I",23,5,2003,42600,2,1,8,674,20180120,"12:00:00",5.85,null,"",null,null,null,null,null,null,null,"X","X"]
[20180120,"13:00:00",null,"","OOPS","OOPS","OOPS","","",null,null,null,null,null,null,null,null,null,null,null,null,null,null,null,null,null,null,null,null,null,null,null,"RD","I",23,5,2003,42600,2,1,8,674,20180120,"13:00:00",3.76,null,"",null,null,null,null,null,null,null,"X","X"]
[20180120,"14:00:00",null,"","OOPS","OOPS","OOPS","","",null,null,null,null,null,null,null,null,null,null,null,null,null,null,null,null,null,null,null,null,null,null,null,"RD","I",23,5,2003,42600,2,1,8,674,20180120,"14:00:00",3.17,null,"",null,null,null,null,null,null,null,"X","X"]
[20180120,"15:00:00",null,"","OOPS","OOPS","OOPS","","",null,null,null,null,null,null,null,null,null,null,null,null,null,null,null,null,null,null,null,null,null,null,null,"RD","I",23,5,2003,42600,2,1,8,674,20180120,"15:00:00",3.01,null,"",null,null,null,null,null,null,null,"X","X"]
[20180120,"16:00:00",null,"","OOPS","OOPS","OOPS","","",null,null,null,null,null,null,null,null,null,null,null,null,null,null,null,null,null,null,null,null,null,null,null,"RD","I",23,5,2003,42600,2,1,8,674,20180120,"16:00:00",3.08,null,"",null,null,null,null,null,null,null,"X","X"]
[20180120,"17:00:00",null,"","OOPS","OOPS","OOPS","","",null,null,null,null,null,null,null,null,null,null,null,null,null,null,null,null,null,null,null,null,null,null,null,"RD","I",23,5,2003,42600,2,1,8,674,20180120,"17:00:00",3.12,null,"",null,null,null,null,null,null,null,"X","X"]
[20180120,"18:00:00",null,"","OOPS","OOPS","OOPS","","",null,null,null,null,null,null,null,null,null,null,null,null,null,null,null,null,null,null,null,null,null,null,null,"RD","I",23,5,2003,42600,2,1,8,674,20180120,"18:00:00",3.18,null,"",null,null,null,null,null,null,null,"X","X"]
[20180120,"19:00:00",null,"","OOPS","OOPS","OOPS","","",null,null,null,null,null,null,null,null,null,null,null,null,null,null,null,null,null,null,null,null,null,null,null,"RD","I",23,5,2003,42600,2,1,8,674,20180120,"19:00:00",3.38,null,"",null,null,null,null,null,null,null,"X","X"]
[20180120,"20:00:00",null,"","OOPS","OOPS","OOPS","","",null,null,null,null,null,null,null,null,null,null,null,null,null,null,null,null,null,null,null,null,null,null,null,"RD","I",23,5,2003,42600,2,1,8,674,20180120,"20:00:00",3.2,null,"",null,null,null,null,null,null,null,"X","X"]
[20180120,"21:00:00",null,"","OOPS","OOPS","OOPS","","",null,null,null,null,null,null,null,null,null,null,null,null,null,null,null,null,null,null,null,null,null,null,null,"RD","I",23,5,2003,42600,2,1,8,674,20180120,"21:00:00",2.2599999999999998,null,"",null,null,null,null,null,null,null,"X","X"]
[20180120,"22:00:00",null,"","OOPS","OOPS","OOPS","","",null,null,null,null,null,null,null,null,null,null,null,null,null,null,null,null,null,null,null,null,null,null,null,"RD","I",23,5,2003,42600,2,1,8,674,20180120,"22:00:00",2.7,null,"",null,null,null,null,null,null,null,"X","X"]
[20180120,"23:00:00",null,"","OOPS","OOPS","OOPS","","",null,null,null,null,null,null,null,null,null,null,null,null,null,null,null,null,null,null,null,null,null,null,null,"RD","I",23,5,2003,42600,2,1,8,674,20180120,"23:00:00",2.81,null,"",null,null,null,null,null,null,null,"X","X"]
[20180121,"00:00:00",null,"","OOPS","OOPS","","","",null,null,null,null,null,null,null,null,null,null,null,null,null,null,null,null,null,null,null,null,null,null,null,"RD","I",23,5,2003,42600,2,1,8,674,20180121,"00:00:00",2.57,null,"",null,null,null,null,null,null,null,"X","X"]
[20180121,"01:00:00",null,"","OOPS","OOPS","OOPS","","",null,null,null,null,null,null,null,null,null,null,null,null,null,null,null,null,null,null,null,null,null,null,null,"RD","I",23,5,2003,42600,2,1,8,674,20180121,"01:00:00",2.8,null,"",null,null,null,null,null,null,null,"X","X"]
[20180121,"02:00:00",null,"","OOPS","OOPS","OOPS","","",null,null,null,null,null,null,null,null,null,null,null,null,null,null,null,null,null,null,null,null,null,null,null,"RD","I",23,5,2003,42600,2,1,8,674,20180121,"02:00:00",2.34,null,"",null,null,null,null,null,null,null,"X","X"]
[20180121,"03:00:00",null,"","OOPS","OOPS","OOPS","","",null,null,null,null,null,null,null,null,null,null,null,null,null,null,null,null,null,null,null,null,null,null,null,"RD","I",23,5,2003,42600,2,1,8,674,20180121,"03:00:00",2.34,null,"",null,null,null,null,null,null,null,"X","X"]
[20180121,"04:00:00",null,"","OOPS","OOPS","OOPS","","",null,null,null,null,null,null,null,null,null,null,null,null,null,null,null,null,null,null,null,null,null,null,null,"RD","I",23,5,2003,42600,2,1,8,674,20180121,"04:00:00",2.57,null,"",null,null,null,null,null,null,null,"X","X"]
[20180121,"05:00:00",null,"","OOPS","OOPS","OOPS","","",null,null,null,null,null,null,null,null,null,null,null,null,null,null,null,null,null,null,null,null,null,null,null,"RD","I",23,5,2003,42600,2,1,8,674,20180121,"05:00:00",2.37,null,"",null,null,null,null,null,null,null,"X","X"]
[20180121,"06:00:00",null,"","OOPS","OOPS","OOPS","","",null,null,null,null,null,null,null,null,null,null,null,null,null,null,null,null,null,null,null,null,null,null,null,"RD","I",23,5,2003,42600,2,1,8,674,20180121,"06:00:00",2.96,null,"",null,null,null,null,null,null,null,"X","X"]
[20180121,"07:00:00",null,"","OOPS","OOPS","OOPS","","",null,null,null,null,null,null,null,null,null,null,null,null,null,null,null,null,null,null,null,null,null,null,null,"RD","I",23,5,2003,42600,2,1,8,674,20180121,"07:00:00",2.93,null,"",null,null,null,null,null,null,null,"X","X"]
[20180121,"08:00:00",null,"","OOPS","OOPS","OOPS","","",null,null,null,null,null,null,null,null,null,null,null,null,null,null,null,null,null,null,null,null,null,null,null,"RD","I",23,5,2003,42600,2,1,8,674,20180121,"08:00:00",3.49,null,"",null,null,null,null,null,null,null,"X","X"]
[20180121,"09:00:00",null,"","OOPS","OOPS","OOPS","","",null,null,null,null,null,null,null,null,null,null,null,null,null,null,null,null,null,null,null,null,null,null,null,"RD","I",23,5,2003,42600,2,1,8,674,20180121,"09:00:00",5.13,null,"",null,null,null,null,null,null,null,"X","X"]
[20180121,"10:00:00",null,"","OOPS","OOPS","OOPS","","",null,null,null,null,null,null,null,null,null,null,null,null,null,null,null,null,null,null,null,null,null,null,null,"RD","I",23,5,2003,42600,2,1,8,674,20180121,"10:00:00",4.5599999999999996,null,"",null,null,null,null,null,null,null,"X","X"]
[20180121,"11:00:00",null,"","OOPS","OOPS","OOPS","","",null,null,null,null,null,null,null,null,null,null,null,null,null,null,null,null,null,null,null,null,null,null,null,"RD","I",23,5,2003,42600,2,1,8,674,20180121,"11:00:00",4.26,null,"",null,null,null,null,null,null,null,"X","X"]
[20180121,"12:00:00",null,"","OOPS","OOPS","OOPS","","",null,null,null,null,null,null,null,null,null,null,null,null,null,null,null,null,null,null,null,null,null,null,null,"RD","I",23,5,2003,42600,2,1,8,674,20180121,"12:00:00",5.73,null,"",null,null,null,null,null,null,null,"X","X"]
[20180121,"13:00:00",null,"","OOPS","OOPS","OOPS","","",null,null,null,null,null,null,null,null,null,null,null,null,null,null,null,null,null,null,null,null,null,null,null,"RD","I",23,5,2003,42600,2,1,8,674,20180121,"13:00:00",3.17,null,"",null,null,null,null,null,null,null,"X","X"]
[20180121,"14:00:00",null,"","OOPS","OOPS","OOPS","","",null,null,null,null,null,null,null,null,null,null,null,null,null,null,null,null,null,null,null,null,null,null,null,"RD","I",23,5,2003,42600,2,1,8,674,20180121,"14:00:00",3.21,null,"",null,null,null,null,null,null,null,"X","X"]
[20180126,"08:00:00",null,"","OOPS","OOPS","OOPS","","",null,null,null,null,null,null,null,null,null,null,null,null,null,null,null,null,null,null,null,null,null,null,null,"RD","I",23,5,2003,42600,2,1,8,674,20180126,"08:00:00",8.8699999999999992,null,"",null,null,null,null,null,null,null,"X","X"]
[20180202,"00:00:00",null,{"$f":"IF(C774=\"\",IF(V774=\"\",\"\",\"OOPS\"),IF(C774=V774,\"\",\"OOPS\"))","v":""},{"$f":"IF(C774=\"\",IF(AS774=\"\",\"\",\"OOPS\"),IF(C774=AS774,\"\",\"OOPS\"))","v":"OOPS"},"OOPS","","","",null,null,null,null,null,null,null,null,null,null,null,null,null,null,null,null,null,null,null,null,null,null,null,"RD","I",23,5,2003,42600,2,1,8,674,20180202,"00:00:00",9.1300000000000008,null,"",null,null,null,null,null,null,null,"X","X"]
[20180206,"23:00:00",null,"","OOPS","OOPS","OOPS","","",null,null,null,null,null,null,null,null,null,null,null,null,null,null,null,null,null,null,null,null,null,null,null,"RD","I",23,5,2003,42600,2,1,8,674,20180206,"23:00:00",3.38,null,"",null,null,null,null,null,null,null,"X","X"]
[20180213,"15:00:00",null,"","OOPS","OOPS","OOPS","","",null,null,null,null,null,null,null,null,null,null,null,null,null,null,null,null,null,null,null,null,null,null,null,"RD","I",23,5,2003,42600,2,1,8,674,20180213,"15:00:00",2.78,null,"",null,null,null,null,null,null,null,"X","X"]
[20180218,"14:00:00",null,"","OOPS","OOPS","OOPS","","",null,null,null,null,null,null,null,null,null,null,null,null,null,null,null,null,null,null,null,null,null,null,null,"RD","I",23,5,2003,42600,2,1,8,674,20180218,"14:00:00",2.2400000000000002,null,"",null,null,null,null,null,null,null,"X","X"]
[20180223,"13:00:00",null,"","OOPS","OOPS","OOPS","","",null,null,null,null,null,null,null,null,null,null,null,null,null,null,null,null,null,null,null,null,null,null,null,"RD","I",23,5,2003,42600,2,1,8,674,20180223,"13:00:00",0.56000000000000005,null,"",null,null,null,null,null,null,null,"X","X"]
[20180302,"05:00:00",null,"","OOPS","OOPS","OOPS","","",null,null,null,null,null,null,null,null,null,null,null,null,null,null,null,null,null,null,null,null,null,null,null,"RD","I",23,5,2003,42600,2,1,8,674,20180302,"05:00:00",0.87,null,"",null,null,null,null,null,null,null,"X","X"]
[20180307,"04:00:00",null,"","OOPS","OOPS","OOPS","","",null,null,null,null,null,null,null,null,null,null,null,null,null,null,null,null,null,null,null,null,null,null,null,"RD","I",23,5,2003,42600,2,1,8,674,20180307,"04:00:00",0.23,null,"",null,null,null,null,null,null,null,"X","X"]
[20180313,"20:00:00",null,"","OOPS","OOPS","OOPS","","",null,null,null,null,null,null,null,null,null,null,null,null,null,null,null,null,null,null,null,null,null,null,null,"RD","I",23,5,2003,42600,2,1,8,674,20180313,"20:00:00",0.65,null,"",null,null,null,null,null,null,null,"X","X"]
[20180318,"19:00:00",null,"","OOPS","OOPS","OOPS","","",null,null,null,null,null,null,null,null,null,null,null,null,null,null,null,null,null,null,null,null,null,null,null,"RD","I",23,5,2003,42600,2,1,8,674,20180318,"19:00:00",1.99,null,"",null,null,null,null,null,null,null,"X","X"]
[20180323,"18:00:00",null,"","OOPS","OOPS","OOPS","","",null,null,null,null,null,null,null,null,null,null,null,null,null,null,null,null,null,null,null,null,null,null,null,"RD","I",23,5,2003,42600,2,1,8,674,20180323,"18:00:00",0.56999999999999995,null,"",null,null,null,null,null,null,null,"X","X"]
[20180330,"10:00:00",null,"","OOPS","OOPS","OOPS","","",null,null,null,null,null,null,null,null,null,null,null,null,null,null,null,null,null,null,null,null,null,null,null,"RD","I",23,5,2003,42600,2,1,8,674,20180330,"10:00:00",5.04,null,"",null,null,null,null,null,null,null,"X","X"]
[20180404,"09:00:00",null,"","OOPS",{"$f":"IF(A2247=T2247,\"\",\"OOPS\")","v":"OOPS"},{"$f":"IF(B2247=U2247,\"\",\"OOPS\")","v":"OOPS"},{"$f":"IF(A2247=AQ2247,\"\",\"OOPS\")","v":""},{"$f":"IF(B2247=AR2247,\"\",\"OOPS\")","v":""},null,null,null,null,null,null,null,null,null,null,null,null,null,null,null,null,null,null,null,null,null,null,null,"RD","I",23,5,2003,42600,2,1,8,674,20180404,"09:00:00",1.59,null,"",null,null,null,null,null,null,null,"X","X"]
[20180409,"08:00:00",null,"","OOPS","OOPS","OOPS","","",null,null,null,null,null,null,null,null,null,null,null,null,null,null,null,null,null,null,null,null,null,null,null,"RD","I",23,5,2003,42600,2,1,8,674,20180409,"08:00:00",0.82,null,"",null,null,null,null,null,null,null,"X","X"]
[20180416,"00:00:00",null,"","OOPS","OOPS","","","",null,null,null,null,null,null,null,null,null,null,null,null,null,null,null,null,null,null,null,null,null,null,null,"RD","I",23,5,2003,42600,2,1,8,674,20180416,"00:00:00",0.59,null,"",null,null,null,null,null,null,null,"X","X"]
[20180420,"23:00:00",null,"","OOPS","OOPS","OOPS","","",null,null,null,null,null,null,null,null,null,null,null,null,null,null,null,null,null,null,null,null,null,null,null,"RD","I",23,5,2003,42600,2,1,8,674,20180420,"23:00:00",1.34,null,"",null,null,null,null,null,null,null,"X","X"]
[20180427,"15:00:00",null,"","OOPS","OOPS","OOPS","","",null,null,null,null,null,null,null,null,null,null,null,null,null,null,null,null,null,null,null,null,null,null,null,"RD","I",23,5,2003,42600,2,1,8,674,20180427,"15:00:00",2.34,null,"",null,null,null,null,null,null,null,"X","X"]
[20180502,"14:00:00",null,"","OOPS","OOPS","OOPS","","",null,null,null,null,null,null,null,null,null,null,null,null,null,null,null,null,null,null,null,null,null,null,null,"RD","I",23,5,2003,42600,2,1,8,674,20180502,"14:00:00",3.18,null,"",null,null,null,null,null,null,null,"X","X"]
[20180507,"13:00:00",null,"","OOPS","OOPS","OOPS","","",null,null,null,null,null,null,null,null,null,null,null,null,null,null,null,null,null,null,null,null,null,null,null,"RD","I",23,5,2003,42600,2,1,8,674,20180507,"13:00:00",0.96,null,"",null,null,null,null,null,null,null,"X","X"]
[20180514,"05:00:00",null,"","OOPS","OOPS","OOPS","","",null,null,null,null,null,null,null,null,null,null,null,null,null,null,null,null,null,null,null,null,null,null,null,"RD","I",23,5,2003,42600,2,1,8,674,20180514,"05:00:00",1.1499999999999999,null,"",null,null,null,null,null,null,null,"X","X"]
[20180519,"04:00:00",null,"","OOPS","OOPS","OOPS","","",null,null,null,null,null,null,null,null,null,null,null,null,null,null,null,null,null,null,null,null,null,null,null,"RD","I",23,5,2003,42600,2,1,8,674,20180519,"04:00:00",5.13,null,"",null,null,null,null,null,null,null,"X","X"]
[20180525,"20:00:00",null,"","OOPS","OOPS","OOPS","","",null,null,null,null,null,null,null,null,null,null,null,null,null,null,null,null,null,null,null,null,null,null,null,"RD","I",23,5,2003,42600,2,1,8,674,20180525,"20:00:00",3.67,null,"",null,null,null,null,null,null,null,"X","X"]
[20180530,"19:00:00",null,"","OOPS","OOPS","OOPS","","",null,null,null,null,null,null,null,null,null,null,null,null,null,null,null,null,null,null,null,null,null,null,null,"RD","I",23,5,2003,42600,2,1,8,674,20180530,"19:00:00",0.87,null,"",null,null,null,null,null,null,null,"X","X"]
[20180604,"18:00:00",null,"","OOPS","OOPS","OOPS","","",null,null,null,null,null,null,null,null,null,null,null,null,null,null,null,null,null,null,null,null,null,null,null,"RD","I",23,5,2003,42600,2,1,8,674,20180604,"18:00:00",-0.01,null,"",null,null,null,null,null,null,null,"X",{"$f":"IF(AR3720=\"\",\"\",IF(AR3720=AR3719,IF(AS3720=AS3719,\"\",\"X\"),\"X\"))","v":"X"}]
[20180611,"10:00:00",null,"","OOPS","OOPS","OOPS","","",null,null,null,null,null,null,null,null,null,null,null,null,null,null,null,null,null,null,null,null,null,null,null,"RD","I",23,5,2003,42600,2,1,8,674,20180611,"10:00:00",0.67,null,"",null,null,null,null,null,null,null,"X","X"]
[20180616,"09:00:00",null,"","OOPS","OOPS","OOPS","","",null,null,null,null,null,null,null,null,null,null,null,null,null,null,null,null,null,null,null,null,null,null,null,"RD","I",23,5,2003,42600,2,1,8,674,20180616,"09:00:00",1.58,null,"",null,null,null,null,null,null,null,"X","X"]
[20180621,"08:00:00",null,"","","OOPS","OOPS","","",null,null,null,null,null,null,null,null,null,null,null,null,null,null,null,null,null,null,null,null,null,null,null,"RD","I",23,5,2003,42600,2,1,8,674,20180621,"08:00:00",null,"AZ","",null,null,null,null,null,null,null,"X","X"]
[20180628,"00:00:00",null,"","OOPS","OOPS","","","",null,null,null,null,null,null,null,null,null,null,null,null,null,null,null,null,null,null,null,null,null,null,null,"RD","I",23,5,2003,42600,2,1,8,674,20180628,"00:00:00",1.28,null,"",null,null,null,null,null,null,null,"X","X"]
[20180702,"23:00:00",null,"","OOPS","OOPS","OOPS","","",null,null,null,null,null,null,null,null,null,null,null,null,null,null,null,null,null,null,null,null,null,null,null,"RD","I",23,5,2003,42600,2,1,8,674,20180702,"23:00:00",0.82,null,"",null,null,null,null,null,null,null,"X","X"]
[20180709,"15:00:00",null,"","OOPS","OOPS","OOPS","","",null,null,null,null,null,null,null,null,null,null,null,null,null,null,null,null,null,null,null,null,null,null,null,"RD","I",23,5,2003,42600,2,1,8,674,20180709,"15:00:00",3.01,null,"",null,null,null,null,null,null,null,"X","X"]
[20180714,"14:00:00",null,"","OOPS","OOPS","OOPS","","",null,null,null,null,null,null,null,null,null,null,null,null,null,null,null,null,null,null,null,null,null,null,null,"RD","I",23,5,2003,42600,2,1,8,674,20180714,"14:00:00",0.97,null,"",null,null,null,null,null,null,null,"X","X"]
[20180725,"08:00:00",null,{"$f":"IF(C4934=\"\",IF(V4934=\"\",\"\",\"OOPS\"),IF(C4934=V4934,\"\",\"OOPS\"))","v":""},{"$f":"IF(C4934=\"\",IF(AS4934=\"\",\"\",\"OOPS\"),IF(C4934=AS4934,\"\",\"OOPS\"))","v":"OOPS"},"OOPS","OOPS","","",null,null,null,null,null,null,null,null,null,null,null,null,null,null,null,null,null,null,null,null,null,null,null,"RD","I",23,5,2003,42600,2,1,8,674,20180725,"08:00:00",1.03,null,"",null,null,null,null,null,null,null,"X","X"]
[20180726,"05:00:00",null,"","OOPS","OOPS","OOPS","","",null,null,null,null,null,null,null,null,null,null,null,null,null,null,null,null,null,null,null,null,null,null,null,"RD","I",23,5,2003,42600,2,1,8,674,20180726,"05:00:00",0.02,null,"",null,null,null,null,null,null,null,"X","X"]
[20180805,"23:00:00",null,"","OOPS","OOPS","OOPS","","",null,null,null,null,null,null,null,null,null,null,null,null,null,null,null,null,null,null,null,null,null,null,null,"RD","I",23,5,2003,42600,2,1,8,674,20180805,"23:00:00",1.55,null,"",null,null,null,null,null,null,null,"X","X"]
[20180810,"22:00:00",null,"","OOPS","OOPS","OOPS","","",null,null,null,null,null,null,null,null,null,null,null,null,null,null,null,null,null,null,null,null,null,null,null,"RD","I",23,5,2003,42600,2,1,8,674,20180810,"22:00:00",1.71,null,"",null,null,null,null,null,null,null,"X","X"]
[20180817,"14:00:00",null,"","OOPS","OOPS","OOPS","","",null,null,null,null,null,null,null,null,null,null,null,null,null,null,null,null,null,null,null,null,null,null,null,"RD","I",23,5,2003,42600,2,1,8,674,20180817,"14:00:00",0.92,null,"",null,null,null,null,null,null,null,"X","X"]
[20180822,"13:00:00",null,"","OOPS","OOPS","OOPS","","",null,null,null,null,null,null,null,null,null,null,null,null,null,null,null,null,null,null,null,null,null,null,null,"RD","I",23,5,2003,42600,2,1,8,674,20180822,"13:00:00",0.54,null,"",null,null,null,null,null,null,null,"X","X"]
[20180829,"05:00:00",null,"","OOPS","OOPS","OOPS","","",null,null,null,null,null,null,null,null,null,null,null,null,null,null,null,null,null,null,null,null,null,null,null,"RD","I",23,5,2003,42600,2,1,8,674,20180829,"05:00:00",1.52,null,"",null,null,null,null,null,null,null,"X","X"]
[20180903,"04:00:00",null,"","OOPS","OOPS","OOPS","","",null,null,null,null,null,null,null,null,null,null,null,null,null,null,null,null,null,null,null,null,null,null,null,"RD","I",23,5,2003,42600,2,1,8,674,20180903,"04:00:00",2.5099999999999998,null,"",null,null,null,null,null,null,null,"X","X"]
[20180908,"03:00:00",null,"","OOPS","OOPS","OOPS","","",null,null,null,null,null,null,null,null,null,null,null,null,null,null,null,null,null,null,null,null,null,null,null,"RD","I",23,5,2003,42600,2,1,8,674,20180908,"03:00:00",4.46,null,"",null,null,null,null,null,null,null,"X","X"]
[20180914,"19:00:00",null,"","OOPS","OOPS","OOPS","","",null,null,null,null,null,null,null,null,null,null,null,null,null,null,null,null,null,null,null,null,null,null,null,"RD","I",23,5,2003,42600,2,1,8,674,20180914,"19:00:00",0.43,null,"",null,null,null,null,null,null,null,"X","X"]
[20180919,"18:00:00",null,"","OOPS","OOPS","OOPS","","",null,null,null,null,null,null,null,null,null,null,null,null,null,null,null,null,null,null,null,null,null,null,null,"RD","I",23,5,2003,42600,2,1,8,674,20180919,"18:00:00",0.37,null,"",null,null,null,null,null,null,null,"X","X"]
[20180926,"10:00:00",null,"","OOPS","OOPS","OOPS","","",null,null,null,null,null,null,null,null,null,null,null,null,null,null,null,null,null,null,null,null,null,null,null,"RD","I",23,5,2003,42600,2,1,8,674,20180926,"10:00:00",2.0499999999999998,null,"",null,null,null,null,null,null,null,"X","X"]
[20181001,"09:00:00",null,"","OOPS","OOPS","OOPS","","",null,null,null,null,null,null,null,null,null,null,null,null,null,null,null,null,null,null,null,null,null,null,null,"RD","I",23,5,2003,42600,2,1,8,674,20181001,"09:00:00",1.59,null,"",null,null,null,null,null,null,null,"X","X"]
[20181006,"08:00:00",null,"","OOPS","OOPS","OOPS","","",null,null,null,null,null,null,null,null,null,null,null,null,null,null,null,null,null,null,null,null,null,null,null,"RD","I",23,5,2003,42600,2,1,8,674,20181006,"08:00:00",2.52,null,"",null,null,null,null,null,null,null,"X","X"]
[20181013,"00:00:00",null,"","OOPS","OOPS","","","",null,null,null,null,null,null,null,null,null,null,null,null,null,null,null,null,null,null,null,null,null,null,null,"RD","I",23,5,2003,42600,2,1,8,674,20181013,"00:00:00",0.93,null,"",null,null,null,null,null,null,null,"X","X"]
[20181017,"23:00:00",null,"","OOPS","OOPS","OOPS","","",null,null,null,null,null,null,null,null,null,null,null,null,null,null,null,null,null,null,null,null,null,null,null,"RD","I",23,5,2003,42600,2,1,8,674,20181017,"23:00:00",0.75,null,"",null,null,null,null,null,null,null,"X","X"]
[20181022,"22:00:00",null,"","OOPS","OOPS","OOPS","","",null,null,null,null,null,null,null,null,null,null,null,null,null,null,null,null,null,null,null,null,null,null,null,"RD","I",23,5,2003,42600,2,1,8,674,20181022,"22:00:00",3.74,null,"",null,null,null,null,null,null,null,"X","X"]
[20181029,"14:00:00",null,"","OOPS","OOPS","OOPS","","",null,null,null,null,null,null,null,null,null,null,null,null,null,null,null,null,null,null,null,null,null,null,null,"RD","I",23,5,2003,42600,2,1,8,674,20181029,"14:00:00",5.78,null,"",null,null,null,null,null,null,null,"X","X"]
[20181103,"13:00:00",null,"","OOPS","OOPS","OOPS","","",null,null,null,null,null,null,null,null,null,null,null,null,null,null,null,null,null,null,null,null,null,null,null,"RD","I",23,5,2003,42600,2,1,8,674,20181103,"13:00:00",0.45,null,"",null,null,null,null,null,null,null,"X","X"]
[20181110,"05:00:00",null,"","OOPS","OOPS","OOPS","","",null,null,null,null,null,null,null,null,null,null,null,null,null,null,null,null,null,null,null,null,null,null,null,"RD","I",23,5,2003,42600,2,1,8,674,20181110,"05:00:00",0.34,null,"",null,null,null,null,null,null,null,"X","X"]
[20181115,"04:00:00",null,"","OOPS","OOPS","OOPS","","",null,null,null,null,null,null,null,null,null,null,null,null,null,null,null,null,null,null,null,null,null,null,null,"RD","I",23,5,2003,42600,2,1,8,674,20181115,"04:00:00",4.05,null,"",null,null,null,null,null,null,null,"X","X"]
[20181120,"03:00:00",null,"","OOPS","OOPS","OOPS","","",null,null,null,null,null,null,null,null,null,null,null,null,null,null,null,null,null,null,null,null,null,null,null,"RD","I",23,5,2003,42600,2,1,8,674,20181120,"03:00:00",2.63,null,"",null,null,null,null,null,null,null,"X","X"]
[20181126,"19:00:00",null,"","OOPS","OOPS","OOPS","","",null,null,null,null,null,null,null,null,null,null,null,null,null,null,null,null,null,null,null,null,null,null,null,"RD","I",23,5,2003,42600,2,1,8,674,20181126,"19:00:00",0.66,null,"",null,null,null,null,null,null,null,"X","X"]
[20181201,"18:00:00",null,"","OOPS","OOPS","OOPS","","",null,null,null,null,null,null,null,null,null,null,null,null,null,null,null,null,null,null,null,null,null,null,null,"RD","I",23,5,2003,42600,2,1,8,674,20181201,"18:00:00",1.1399999999999999,null,"",null,null,null,null,null,null,null,"X","X"]
[20181208,"10:00:00",null,"","OOPS","OOPS","OOPS","","",null,null,null,null,null,null,null,null,null,null,null,null,null,null,null,null,null,null,null,null,null,null,null,"RD","I",23,5,2003,42600,2,1,8,674,20181208,"10:00:00",4.8600000000000003,null,"",null,null,null,null,null,null,null,"X",{"$f":"IF(AR8200=\"\",\"\",IF(AR8200=AR8199,IF(AS8200=AS8199,\"\",\"X\"),\"X\"))","v":"X"}]
[20181213,"09:00:00",null,"","OOPS","OOPS","OOPS","","",null,null,null,null,null,null,null,null,null,null,null,null,null,null,null,null,null,null,null,null,null,null,null,"RD","I",23,5,2003,42600,2,1,8,674,20181213,"09:00:00",23.32,null,"",null,null,null,null,null,null,null,"X","X"]
[20181218,"08:00:00",null,"","OOPS","OOPS","OOPS","","",null,null,null,null,null,null,null,null,null,null,null,null,null,null,null,null,null,null,null,null,null,null,null,"RD","I",23,5,2003,42600,2,1,8,674,20181218,"08:00:00",2.1,null,"",null,null,null,null,null,null,null,"X","X"]
[20181225,"00:00:00",null,"","OOPS","OOPS","","","",null,null,null,null,null,null,null,null,null,null,null,null,null,null,null,null,null,null,null,null,null,null,null,"RD","I",23,5,2003,42600,2,1,8,674,20181225,"00:00:00",15.11,null,"",null,null,null,null,null,null,null,"X","X"]
[20181229,"23:00:00",null,"","OOPS","OOPS","OOPS","","",null,null,null,null,null,null,null,null,null,null,null,null,null,null,null,null,null,null,null,null,null,null,null,"RD","I",23,5,2003,42600,2,1,8,674,20181229,"23:00:00",2.14,null,"",null,null,null,null,null,null,null,"X","X"]
[20190109,"17:00:00",null,"","OOPS","OOPS","OOPS","","",null,null,null,null,null,null,null,null,null,null,null,null,null,null,null,null,null,null,null,null,null,null,null,"RD","I",23,5,2003,42600,2,1,8,674,20190109,"17:00:00",2.56,null,"",null,null,null,null,null,null,null,"X","X"]
[20190110,"14:00:00",null,"","OOPS","OOPS","OOPS","","",null,null,null,null,null,null,null,null,null,null,null,null,null,null,null,null,null,null,null,null,null,null,null,"RD","I",23,5,2003,42600,2,1,8,674,20190110,"14:00:00",1.88,null,"",null,null,null,null,null,null,null,"X","X"]
[20190119,"20:00:00",null,"","OOPS","OOPS","OOPS","","",null,null,null,null,null,null,null,null,null,null,null,null,null,null,null,null,null,null,null,null,null,null,null,"RD","I",23,5,2003,42600,2,1,8,674,20190119,"20:00:00",0.81,null,"",null,null,null,null,null,null,null,"X","X"]
[20190122,"06:00:00",null,"","OOPS","OOPS","OOPS","","",null,null,null,null,null,null,null,null,null,null,null,null,null,null,null,null,null,null,null,null,null,null,null,"RD","I",23,5,2003,42600,2,1,8,674,20190122,"06:00:00",3.88,null,"",null,null,null,null,null,null,null,"X","X"]
[20190202,"00:00:00",null,"","OOPS","OOPS","","","",null,null,null,null,null,null,null,null,null,null,null,null,null,null,null,null,null,null,null,null,null,null,null,"RD","I",23,5,2003,42600,2,1,8,674,20190202,"00:00:00",4.72,null,"",null,null,null,null,null,null,null,"X","X"]
[20190206,"23:00:00",null,"","OOPS","OOPS","OOPS","","",null,null,null,null,null,null,null,null,null,null,null,null,null,null,null,null,null,null,null,null,null,null,null,"RD","I",23,5,2003,42600,2,1,8,674,20190206,"23:00:00",0.69,null,"",null,null,null,null,null,null,null,"X","X"]
[20190213,"15:00:00",null,"","OOPS","OOPS","OOPS","","",null,null,null,null,null,null,null,null,null,null,null,null,null,null,null,null,null,null,null,null,null,null,null,"RD","I",23,5,2003,42600,2,1,8,674,20190213,"15:00:00",1.4,null,"",null,null,null,null,null,null,null,"X","X"]
[20190218,"14:00:00",null,"","OOPS","OOPS","OOPS","","",null,null,null,null,null,null,null,null,null,null,null,null,null,null,null,null,null,null,null,null,null,null,null,"RD","I",23,5,2003,42600,2,1,8,674,20190218,"14:00:00",2.13,null,"",null,null,null,null,null,null,null,"X","X"]
[20190223,"13:00:00",null,"","OOPS","OOPS","OOPS","","",null,null,null,null,null,null,null,null,null,null,null,null,null,null,null,null,null,null,null,null,null,null,null,"RD","I",23,5,2003,42600,2,1,8,674,20190223,"13:00:00",1.28,null,"",null,null,null,null,null,null,null,"X","X"]
[20190302,"05:00:00",null,"","OOPS","OOPS","OOPS","","",null,null,null,null,null,null,null,null,null,null,null,null,null,null,null,null,null,null,null,null,null,null,null,"RD","I",23,5,2003,42600,2,1,8,674,20190302,"05:00:00",4.38,null,"",null,null,null,null,null,null,null,"X","X"]
[20190307,"04:00:00",null,"","OOPS","OOPS","OOPS","","",null,null,null,null,null,null,null,null,null,null,null,null,null,null,null,null,null,null,null,null,null,null,null,"RD","I",23,5,2003,42600,2,1,8,674,20190307,"04:00:00",2.37,null,"",null,null,null,null,null,null,null,"X","X"]
[20190313,"20:00:00",null,"","OOPS","OOPS","OOPS","","",null,null,null,null,null,null,null,null,null,null,null,null,null,null,null,null,null,null,null,null,null,null,null,"RD","I",23,5,2003,42600,2,1,8,674,20190313,"20:00:00",1.4,null,"",null,null,null,null,null,null,null,"X","X"]
[20190318,"19:00:00",null,"","OOPS","OOPS","OOPS","","",null,null,null,null,null,null,null,null,null,null,null,null,null,null,null,null,null,null,null,null,null,null,null,"RD","I",23,5,2003,42600,2,1,8,674,20190318,"19:00:00",1.68,null,"",null,null,null,null,null,null,null,"X","X"]
[20190323,"18:00:00",null,"","OOPS","OOPS","OOPS","","",null,null,null,null,null,null,null,null,null,null,null,null,null,null,null,null,null,null,null,null,null,null,null,"RD","I",23,5,2003,42600,2,1,8,674,20190323,"18:00:00",0.93,null,"",null,null,null,null,null,null,null,"X","X"]
[20190330,"10:00:00",null,"","OOPS","OOPS","OOPS","","",null,null,null,null,null,null,null,null,null,null,null,null,null,null,null,null,null,null,null,null,null,null,null,"RD","I",23,5,2003,42600,2,1,8,674,20190330,"10:00:00",1.79,null,"",null,null,null,null,null,null,null,"X",{"$f":"IF(AR10888=\"\",\"\",IF(AR10888=AR10887,IF(AS10888=AS10887,\"\",\"X\"),\"X\"))","v":"X"}]
[20190404,"09:00:00",null,"","OOPS","OOPS","OOPS","","",null,null,null,null,null,null,null,null,null,null,null,null,null,null,null,null,null,null,null,null,null,null,null,"RD","I",23,5,2003,42600,2,1,8,674,20190404,"09:00:00",0.65,null,"",null,null,null,null,null,null,null,"X","X"]
[20190411,"01:00:00",null,"","OOPS","OOPS","OOPS","","",null,null,null,null,null,null,null,null,null,null,null,null,null,null,null,null,null,null,null,null,null,null,null,"RD","I",23,5,2003,42600,2,1,8,674,20190411,"01:00:00",1.91,null,"",null,null,null,null,null,null,null,"X","X"]
[20190416,"00:00:00",null,"","OOPS","OOPS","","","",null,null,null,null,null,null,null,null,null,null,null,null,null,null,null,null,null,null,null,null,null,null,null,"RD","I",23,5,2003,42600,2,1,8,674,20190416,"00:00:00",0.28999999999999998,null,"",null,null,null,null,null,null,null,"X","X"]
[20190420,"23:00:00",null,"","OOPS","OOPS","OOPS","","",null,null,null,null,null,null,null,null,null,null,null,null,null,null,null,null,null,null,null,null,null,null,null,"RD","I",23,5,2003,42600,2,1,8,674,20190420,"23:00:00",0.27,null,"",null,null,null,null,null,null,null,"X","X"]
[20190427,"15:00:00",null,"","OOPS","OOPS","OOPS","","",null,null,null,null,null,null,null,null,null,null,null,null,null,null,null,null,null,null,null,null,null,null,null,"RD","I",23,5,2003,42600,2,1,8,674,20190427,"15:00:00",0.38,null,"",null,null,null,null,null,null,null,"X","X"]
[20190502,"14:00:00",null,"","OOPS","OOPS","OOPS","","",null,null,null,null,null,null,null,null,null,null,null,null,null,null,null,null,null,null,null,null,null,null,null,"RD","I",23,5,2003,42600,2,1,8,674,20190502,"14:00:00",0.48,null,"",null,null,null,null,null,null,null,"X","X"]
[20190507,"13:00:00",null,"","OOPS","OOPS","OOPS","","",null,null,null,null,null,null,null,null,null,null,null,null,null,null,null,null,null,null,null,null,null,null,null,"RD","I",23,5,2003,42600,2,1,8,674,20190507,"13:00:00",2.2000000000000002,null,"",null,null,null,null,null,null,null,"X","X"]
[20190514,"05:00:00",null,"","OOPS","OOPS","OOPS","","",null,null,null,null,null,null,null,null,null,null,null,null,null,null,null,null,null,null,null,null,null,null,null,"RD","I",23,5,2003,42600,2,1,8,674,20190514,"05:00:00",0.16,null,"",null,null,null,null,null,null,null,"X","X"]
[20190519,"04:00:00",null,"","OOPS","OOPS","OOPS","","",null,null,null,null,null,null,null,null,null,null,null,null,null,null,null,null,null,null,null,null,null,null,null,"RD","I",23,5,2003,42600,2,1,8,674,20190519,"04:00:00",0.26,null,"",null,null,null,null,null,null,null,"X","X"]
[20190525,"20:00:00",null,"","OOPS","OOPS","OOPS","","",null,null,null,null,null,null,null,null,null,null,null,null,null,null,null,null,null,null,null,null,null,null,null,"RD","I",23,5,2003,42600,2,1,8,674,20190525,"20:00:00",1.02,null,"",null,null,null,null,null,null,null,"X","X"]
[20190530,"19:00:00",null,"","OOPS","OOPS","OOPS","","",null,null,null,null,null,null,null,null,null,null,null,null,null,null,null,null,null,null,null,null,null,null,null,"RD","I",23,5,2003,42600,2,1,8,674,20190530,"19:00:00",0.21,null,"",null,null,null,null,null,null,null,"X","X"]
[20190604,"18:00:00",null,"","OOPS","OOPS","OOPS","","",null,null,null,null,null,null,null,null,null,null,null,null,null,null,null,null,null,null,null,null,null,null,null,"RD","I",23,5,2003,42600,2,1,8,674,20190604,"18:00:00",0.89,null,"",null,null,null,null,null,null,null,"X","X"]
[20190611,"10:00:00",null,"","OOPS","OOPS","OOPS",{"$f":"IF(A12640=AQ12640,\"\",\"OOPS\")","v":""},{"$f":"IF(B12640=AR12640,\"\",\"OOPS\")","v":""},null,null,null,null,null,null,null,null,null,null,null,null,null,null,null,null,null,null,null,null,null,null,null,"RD","I",23,5,2003,42600,2,1,8,674,20190611,"10:00:00",0.66,null,"",null,null,null,null,null,null,null,"X","X"]
[20190616,"09:00:00",null,"","OOPS","OOPS","OOPS","","",null,null,null,null,null,null,null,null,null,null,null,null,null,null,null,null,null,null,null,null,null,null,null,"RD","I",23,5,2003,42600,2,1,8,674,20190616,"09:00:00",1.9,null,"",null,null,null,null,null,null,null,"X","X"]
[20190621,"08:00:00",null,"","OOPS","OOPS","OOPS","","",null,null,null,null,null,null,null,null,null,null,null,null,null,null,null,null,null,null,null,null,null,null,null,"RD","I",23,5,2003,42600,2,1,8,674,20190621,"08:00:00",0.67,null,"",null,null,null,null,null,null,null,"X","X"]
[20190628,"00:00:00",null,"","OOPS","OOPS","","","",null,null,null,null,null,null,null,null,null,null,null,null,null,null,null,null,null,null,null,null,null,null,null,"RD","I",23,5,2003,42600,2,1,8,674,20190628,"00:00:00",0.01,null,"",null,null,null,null,null,null,null,"X","X"]
[20190702,"23:00:00",null,"","OOPS","OOPS","OOPS","","",null,null,null,null,null,null,null,null,null,null,null,null,null,null,null,null,null,null,null,null,null,null,null,"RD","I",23,5,2003,42600,2,1,8,674,20190702,"23:00:00",1.45,null,"",null,null,null,null,null,null,null,"X","X"]
[20190709,"15:00:00",null,"","OOPS","OOPS","OOPS","","",null,null,null,null,null,null,null,null,null,null,null,null,null,null,null,null,null,null,null,null,null,null,null,"RD","I",23,5,2003,42600,2,1,8,674,20190709,"15:00:00",1.23,null,"",null,null,null,null,null,null,null,"X","X"]
[20190714,"14:00:00",null,"","OOPS","OOPS","OOPS","","",null,null,null,null,null,null,null,null,null,null,null,null,null,null,null,null,null,null,null,null,null,null,null,"RD","I",23,5,2003,42600,2,1,8,674,20190714,"14:00:00",0.59,null,"",null,null,null,null,null,null,null,"X","X"]
[20190725,"08:00:00",null,"","OOPS","OOPS","OOPS","","",null,null,null,null,null,null,null,null,null,null,null,null,null,null,null,null,null,null,null,null,null,null,null,"RD","I",23,5,2003,42600,2,1,8,674,20190725,"08:00:00",1.47,null,"",null,null,null,null,null,null,null,"X","X"]
[20190726,"05:00:00",null,"","OOPS","OOPS","OOPS","","",null,null,null,null,null,null,null,null,null,null,null,null,null,null,null,null,null,null,null,null,null,null,null,"RD","I",23,5,2003,42600,2,1,8,674,20190726,"05:00:00",4.8,null,"",null,null,null,null,null,null,null,"X","X"]
[20190805,"23:00:00",null,"","OOPS","OOPS","OOPS","","",null,null,null,null,null,null,null,null,null,null,null,null,null,null,null,null,null,null,null,null,null,null,null,"RD","I",23,5,2003,42600,2,1,8,674,20190805,"23:00:00",0.33,null,"",null,null,null,null,null,null,null,"X","X"]
[20190806,"20:00:00",null,"","","OOPS","OOPS","","",null,null,null,null,null,null,null,null,null,null,null,null,null,null,null,null,null,null,null,null,null,null,null,"RD","I",23,5,2003,42600,2,1,8,674,20190806,"20:00:00",null,"AN","",null,null,null,null,null,null,null,"X","X"]
[20190817,"14:00:00",null,"","","OOPS","OOPS","","",null,null,null,null,null,null,null,null,null,null,null,null,null,null,null,null,null,null,null,null,null,null,null,"RD","I",23,5,2003,42600,2,1,8,674,20190817,"14:00:00",null,"AN","",null,null,null,null,null,null,null,"X","X"]
[20190822,"13:00:00",null,"","OOPS","OOPS","OOPS","","",null,null,null,null,null,null,null,null,null,null,null,null,null,null,null,null,null,null,null,null,null,null,null,"RD","I",23,5,2003,42600,2,1,8,674,20190822,"13:00:00",1.6,null,"",null,null,null,null,null,null,null,"X","X"]
[20190829,"05:00:00",null,"","OOPS","OOPS","OOPS","","",null,null,null,null,null,null,null,null,null,null,null,null,null,null,null,null,null,null,null,null,null,null,null,"RD","I",23,5,2003,42600,2,1,8,674,20190829,"05:00:00",1.1499999999999999,null,"",null,null,null,null,null,null,null,"X","X"]
[20190903,"04:00:00",null,"","OOPS","OOPS","OOPS","","",null,null,null,null,null,null,null,null,null,null,null,null,null,null,null,null,null,null,null,null,null,null,null,"RD","I",23,5,2003,42600,2,1,8,674,20190903,"04:00:00",1.1499999999999999,null,"",null,null,null,null,null,null,null,"X","X"]
[20190908,"03:00:00",null,"","OOPS","OOPS","OOPS","","",null,null,null,null,null,null,null,null,null,null,null,null,null,null,null,null,null,null,null,null,null,null,null,"RD","I",23,5,2003,42600,2,1,8,674,20190908,"03:00:00",0.11,null,"",null,null,null,null,null,null,null,"X","X"]
[20190914,"19:00:00",null,"","OOPS","OOPS","OOPS","","",null,null,null,null,null,null,null,null,null,null,null,null,null,null,null,null,null,null,null,null,null,null,null,"RD","I",23,5,2003,42600,2,1,8,674,20190914,"19:00:00",0.71,null,"",null,null,null,null,null,null,null,"X","X"]
[20190919,"18:00:00",null,"","OOPS","OOPS","OOPS","","",null,null,null,null,null,null,null,null,null,null,null,null,null,null,null,null,null,null,null,null,null,null,null,"RD","I",23,5,2003,42600,2,1,8,674,20190919,"18:00:00",0.49,null,"",null,null,null,null,null,null,null,"X",{"$f":"IF(AR15048=\"\",\"\",IF(AR15048=AR15047,IF(AS15048=AS15047,\"\",\"X\"),\"X\"))","v":"X"}]
[20190926,"10:00:00",null,"","OOPS","OOPS","OOPS","","",null,null,null,null,null,null,null,null,null,null,null,null,null,null,null,null,null,null,null,null,null,null,null,"RD","I",23,5,2003,42600,2,1,8,674,20190926,"10:00:00",7.3,null,"",null,null,null,null,null,null,null,"X","X"]
[20191001,"09:00:00",null,"","","OOPS","OOPS","","",null,null,null,null,null,null,null,null,null,null,null,null,null,null,null,null,null,null,null,null,null,null,null,"RD","I",23,5,2003,42600,2,1,8,674,20191001,"09:00:00",null,"AN","",null,null,null,null,null,null,null,"X","X"]
[20191006,"08:00:00",null,"","","OOPS","OOPS","","",null,null,null,null,null,null,null,null,null,null,null,null,null,null,null,null,null,null,null,null,null,null,null,"RD","I",23,5,2003,42600,2,1,8,674,20191006,"08:00:00",null,"AE","",null,null,null,null,null,null,null,"X","X"]
[20191013,"00:00:00",null,"","OOPS","OOPS","","","",null,null,null,null,null,null,null,null,null,null,null,null,null,null,null,null,null,null,null,null,null,null,null,"RD","I",23,5,2003,42600,2,1,8,674,20191013,"00:00:00",3.66,null,"",null,null,null,null,null,null,null,"X","X"]
[20191017,"23:00:00",null,"","","OOPS","OOPS","","",null,null,null,null,null,null,null,null,null,null,null,null,null,null,null,null,null,null,null,null,null,null,null,"RD","I",23,5,2003,42600,2,1,8,674,20191017,"23:00:00",null,"AV","",null,null,null,null,null,null,null,"X","X"]
[20191024,"15:00:00",null,"","OOPS","OOPS","OOPS","","",null,null,null,null,null,null,null,null,null,null,null,null,null,null,null,null,null,null,null,null,null,null,null,"RD","I",23,5,2003,42600,2,1,8,674,20191024,"15:00:00",3.98,null,"",null,null,null,null,null,null,null,"X","X"]
[20191029,"14:00:00",null,"","","OOPS","OOPS","","",null,null,null,null,null,null,null,null,null,null,null,null,null,null,null,null,null,null,null,null,null,null,null,"RD","I",23,5,2003,42600,2,1,8,674,20191029,"14:00:00",null,"AN","",null,null,null,null,null,null,null,"X","X"]
[20191103,"13:00:00",null,"","","OOPS","OOPS","","",null,null,null,null,null,null,null,null,null,null,null,null,null,null,null,null,null,null,null,null,null,null,null,"RD","I",23,5,2003,42600,2,1,8,674,20191103,"13:00:00",null,"AN","",null,null,null,null,null,null,null,"X","X"]
[20191110,"05:00:00",null,"","OOPS","OOPS","OOPS","","",null,null,null,null,null,null,null,null,null,null,null,null,null,null,null,null,null,null,null,null,null,null,null,"RD","I",23,5,2003,42600,2,1,8,674,20191110,"05:00:00",3.09,null,"",null,null,null,null,null,null,null,"X","X"]
[20191115,"04:00:00",null,"","OOPS","OOPS","OOPS","","",null,null,null,null,null,null,null,null,null,null,null,null,null,null,null,null,null,null,null,null,null,null,null,"RD","I",23,5,2003,42600,2,1,8,674,20191115,"04:00:00",9.85,null,"",null,null,null,null,null,null,null,"X","X"]
[20191120,"03:00:00",null,"","OOPS","OOPS","OOPS","","",null,null,null,null,null,null,null,null,null,null,null,null,null,null,null,null,null,null,null,null,null,null,null,"RD","I",23,5,2003,42600,2,1,8,674,20191120,"03:00:00",0.99,null,"",null,null,null,null,null,null,null,"X","X"]
[20191126,"19:00:00",null,"","OOPS","OOPS","OOPS","","",null,null,null,null,null,null,null,null,null,null,null,null,null,null,null,null,null,null,null,null,null,null,null,"RD","I",23,5,2003,42600,2,1,8,674,20191126,"19:00:00",15.06,null,"",null,null,null,null,null,null,null,"X","X"]
[20191201,"18:00:00",null,"","OOPS","OOPS","OOPS",{"$f":"IF(A16800=AQ16800,\"\",\"OOPS\")","v":""},{"$f":"IF(B16800=AR16800,\"\",\"OOPS\")","v":""},null,null,null,null,null,null,null,null,null,null,null,null,null,null,null,null,null,null,null,null,null,null,null,"RD","I",23,5,2003,42600,2,1,8,674,20191201,"18:00:00",0.87,null,"",null,null,null,null,null,null,null,"X","X"]
[20191208,"10:00:00",null,"","OOPS","OOPS","OOPS","","",null,null,null,null,null,null,null,null,null,null,null,null,null,null,null,null,null,null,null,null,null,null,null,"RD","I",23,5,2003,42600,2,1,8,674,20191208,"10:00:00",2.58,null,"",null,null,null,null,null,null,null,"X","X"]
[20191213,"09:00:00",null,"","OOPS","OOPS","OOPS","","",null,null,null,null,null,null,null,null,null,null,null,null,null,null,null,null,null,null,null,null,null,null,null,"RD","I",23,5,2003,42600,2,1,8,674,20191213,"09:00:00",13.31,null,"",null,null,null,null,null,null,null,"X","X"]
[20191218,"08:00:00",null,"","OOPS","OOPS","OOPS","","",null,null,null,null,null,null,null,null,null,null,null,null,null,null,null,null,null,null,null,null,null,null,null,"RD","I",23,5,2003,42600,2,1,8,674,20191218,"08:00:00",3.68,null,"",null,null,null,null,null,null,null,"X","X"]
[20191225,"00:00:00",null,"","OOPS","OOPS","","","",null,null,null,null,null,null,null,null,null,null,null,null,null,null,null,null,null,null,null,null,null,null,null,"RD","I",23,5,2003,42600,2,1,8,674,20191225,"00:00:00",2.34,null,"",null,null,null,null,null,null,null,"X","X"]
[20191229,"23:00:00",null,"","OOPS","OOPS","OOPS","","",null,null,null,null,null,null,null,null,null,null,null,null,null,null,null,null,null,null,null,null,null,null,null,"RD","I",23,5,2003,42600,2,1,8,674,20191229,"23:00:00",1.1100000000000001,null,"",null,null,null,null,null,null,null,"X","X"]
[20200109,"17:00:00",null,"","OOPS",{"$f":"IF(A17735=T17735,\"\",\"OOPS\")","v":"OOPS"},{"$f":"IF(B17735=U17735,\"\",\"OOPS\")","v":"OOPS"},"","",null,null,null,null,null,null,null,null,null,null,null,null,null,null,null,null,null,null,null,null,null,null,null,"RD","I",23,5,2003,42600,2,1,8,674,20200109,"17:00:00",3.55,null,"",null,null,null,null,null,null,null,"X","X"]
[20200111,"05:00:00",null,"","OOPS","OOPS","OOPS","","",null,null,null,null,null,null,null,null,null,null,null,null,null,null,null,null,null,null,null,null,null,null,null,"RD","I",23,5,2003,42600,2,1,8,674,20200111,"05:00:00",7.57,null,"",null,null,null,null,null,null,null,"X","X"]
[20200121,"09:00:00",null,"","OOPS","OOPS","OOPS","","",null,null,null,null,null,null,null,null,null,null,null,null,null,null,null,null,null,null,null,null,null,null,null,"RD","I",23,5,2003,42600,2,1,8,674,20200121,"09:00:00",1.78,null,"",null,null,null,null,null,null,null,"X","X"]
[20200122,"06:00:00",null,"","OOPS","OOPS","OOPS","","",null,null,null,null,null,null,null,null,null,null,null,null,null,null,null,null,null,null,null,null,null,null,null,"RD","I",23,5,2003,42600,2,1,8,674,20200122,"06:00:00",13,null,"",null,null,null,null,null,null,null,"X","X"]
[20200202,"00:00:00",null,"","OOPS","OOPS","","","",null,null,null,null,null,null,null,null,null,null,null,null,null,null,null,null,null,null,null,null,null,null,null,"RD","I",23,5,2003,42600,2,1,8,674,20200202,"00:00:00",4.8,null,"",null,null,null,null,null,null,null,"X","X"]
[20200206,"23:00:00",null,"","OOPS","OOPS","OOPS","","",null,null,null,null,null,null,null,null,null,null,null,null,null,null,null,null,null,null,null,null,null,null,null,"RD","I",23,5,2003,42600,2,1,8,674,20200206,"23:00:00",1.85,null,"",null,null,null,null,null,null,null,"X","X"]
[20200207,"20:00:00",null,"","","OOPS","OOPS","","",null,null,null,null,null,null,null,null,null,null,null,null,null,null,null,null,null,null,null,null,null,null,null,"RD","I",23,5,2003,42600,2,1,8,674,20200207,"20:00:00",null,"AN","",null,null,null,null,null,null,null,"X","X"]
[20200218,"14:00:00",null,"","OOPS","OOPS","OOPS","","",null,null,null,null,null,null,null,null,null,null,null,null,null,null,null,null,null,null,null,null,null,null,null,"RD","I",23,5,2003,42600,2,1,8,674,20200218,"14:00:00",0.49,null,"",null,null,null,null,null,null,null,"X","X"]
[20200219,"11:00:00",null,"","OOPS","OOPS","OOPS","","",null,null,null,null,null,null,null,null,null,null,null,null,null,null,null,null,null,null,null,null,null,null,null,"RD","I",23,5,2003,42600,2,1,8,674,20200219,"11:00:00",0.9,null,"",null,null,null,null,null,null,null,"X","X"]
[20200301,"05:00:00",null,"","OOPS","OOPS","OOPS","","",null,null,null,null,null,null,null,null,null,null,null,null,null,null,null,null,null,null,null,null,null,null,null,"RD","I",23,5,2003,42600,2,1,8,674,20200301,"05:00:00",1.6,null,"",null,null,null,null,null,null,null,"X","X"]
[20200306,"04:00:00",null,"","OOPS","OOPS","OOPS","","",null,null,null,null,null,null,null,null,null,null,null,null,null,null,null,null,null,null,null,null,null,null,null,"RD","I",23,5,2003,42600,2,1,8,674,20200306,"04:00:00",3.12,null,"",null,null,null,null,null,null,null,"X","X"]
[20200312,"20:00:00",null,"","OOPS","OOPS","OOPS","","",null,null,null,null,null,null,null,null,null,null,null,null,null,null,null,null,null,null,null,null,null,null,null,"RD","I",23,5,2003,42600,2,1,8,674,20200312,"20:00:00",0.31,null,"",null,null,null,null,null,null,null,"X","X"]
[20200317,"19:00:00",null,"","OOPS","OOPS","OOPS","","",null,null,null,null,null,null,null,null,null,null,null,null,null,null,null,null,null,null,null,null,null,null,null,"RD","I",23,5,2003,42600,2,1,8,674,20200317,"19:00:00",4.99,null,"",null,null,null,null,null,null,null,"X","X"]
[20200322,"18:00:00",null,"","OOPS","OOPS","OOPS",{"$f":"IF(A19488=AQ19488,\"\",\"OOPS\")","v":""},{"$f":"IF(B19488=AR19488,\"\",\"OOPS\")","v":""},null,null,null,null,null,null,null,null,null,null,null,null,null,null,null,null,null,null,null,null,null,null,null,"RD","I",23,5,2003,42600,2,1,8,674,20200322,"18:00:00",0.66,null,"",null,null,null,null,null,null,null,"X","X"]
[20200329,"10:00:00",null,"","OOPS","OOPS","OOPS","","",null,null,null,null,null,null,null,null,null,null,null,null,null,null,null,null,null,null,null,null,null,null,null,"RD","I",23,5,2003,42600,2,1,8,674,20200329,"10:00:00",0.68,null,"",null,null,null,null,null,null,null,"X","X"]
[20200403,"09:00:00",null,"","OOPS","OOPS","OOPS","","",null,null,null,null,null,null,null,null,null,null,null,null,null,null,null,null,null,null,null,null,null,null,null,"RD","I",23,5,2003,42600,2,1,8,674,20200403,"09:00:00",0.19,null,"",null,null,null,null,null,null,null,"X","X"]
[20200410,"01:00:00",null,"","OOPS","OOPS","OOPS","","",null,null,null,null,null,null,null,null,null,null,null,null,null,null,null,null,null,null,null,null,null,null,null,"RD","I",23,5,2003,42600,2,1,8,674,20200410,"01:00:00",0.88,null,"",null,null,null,null,null,null,null,"X","X"]
[20200415,"00:00:00",null,"","OOPS","OOPS","","","",null,null,null,null,null,null,null,null,null,null,null,null,null,null,null,null,null,null,null,null,null,null,null,"RD","I",23,5,2003,42600,2,1,8,674,20200415,"00:00:00",1.1599999999999999,null,"",null,null,null,null,null,null,null,"X","X"]
[20200419,"23:00:00",null,"","OOPS","OOPS","OOPS","","",null,null,null,null,null,null,null,null,null,null,null,null,null,null,null,null,null,null,null,null,null,null,null,"RD","I",23,5,2003,42600,2,1,8,674,20200419,"23:00:00",1.54,null,"",null,null,null,null,null,null,null,"X","X"]
[20200426,"15:00:00",null,"","OOPS","OOPS","OOPS","","",null,null,null,null,null,null,null,null,null,null,null,null,null,null,null,null,null,null,null,null,null,null,null,"RD","I",23,5,2003,42600,2,1,8,674,20200426,"15:00:00",1.03,null,"",null,null,null,null,null,null,null,"X","X"]
[20200501,"14:00:00",null,"","OOPS","OOPS","OOPS","","",null,null,null,null,null,null,null,null,null,null,null,null,null,null,null,null,null,null,null,null,null,null,null,"RD","I",23,5,2003,42600,2,1,8,674,20200501,"14:00:00",0.2,null,"",null,null,null,null,null,null,null,"X","X"]
[20200508,"06:00:00",null,"","OOPS","OOPS","OOPS","","",null,null,null,null,null,null,null,null,null,null,null,null,null,null,null,null,null,null,null,null,null,null,null,"RD","I",23,5,2003,42600,2,1,8,674,20200508,"06:00:00",0.55000000000000004,null,"",null,null,null,null,null,null,null,"X","X"]
[20200513,"05:00:00",null,"","OOPS","OOPS","OOPS","","",null,null,null,null,null,null,null,null,null,null,null,null,null,null,null,null,null,null,null,null,null,null,null,"RD","I",23,5,2003,42600,2,1,8,674,20200513,"05:00:00",0.96,null,"",null,null,null,null,null,null,null,"X","X"]
[20200518,"04:00:00",null,"","OOPS","OOPS","OOPS","","",null,null,null,null,null,null,null,null,null,null,null,null,null,null,null,null,null,null,null,null,null,null,null,"RD","I",23,5,2003,42600,2,1,8,674,20200518,"04:00:00",1.46,null,"",null,null,null,null,null,null,null,"X","X"]
[20200524,"20:00:00",null,"","OOPS","OOPS","OOPS","","",null,null,null,null,null,null,null,null,null,null,null,null,null,null,null,null,null,null,null,null,null,null,null,"RD","I",23,5,2003,42600,2,1,8,674,20200524,"20:00:00",-0.01,null,"",null,null,null,null,null,null,null,"X","X"]
[20200529,"19:00:00",null,"","OOPS","OOPS","OOPS","","",null,null,null,null,null,null,null,null,null,null,null,null,null,null,null,null,null,null,null,null,null,null,null,"RD","I",23,5,2003,42600,2,1,8,674,20200529,"19:00:00",0.33,null,"",null,null,null,null,null,null,null,"X","X"]
[20200603,"18:00:00",null,"","OOPS","OOPS","OOPS","","",null,null,null,null,null,null,null,null,null,null,null,null,null,null,null,null,null,null,null,null,null,null,null,"RD","I",23,5,2003,42600,2,1,8,674,20200603,"18:00:00",3.33,null,"",null,null,null,null,null,null,null,"X","X"]
[20200610,"10:00:00",null,"","","OOPS","OOPS","","",null,null,null,null,null,null,null,null,null,null,null,null,null,null,null,null,null,null,null,null,null,null,null,"RD","I",23,5,2003,42600,2,1,8,674,20200610,"10:00:00",null,"AZ","",null,null,null,null,null,null,null,"X","X"]
[20200615,"09:00:00",null,"","OOPS","OOPS","OOPS","","",null,null,null,null,null,null,null,null,null,null,null,null,null,null,null,null,null,null,null,null,null,null,null,"RD","I",23,5,2003,42600,2,1,8,674,20200615,"09:00:00",0.59,null,"",null,null,null,null,null,null,null,"X","X"]
[20200622,"01:00:00",null,"","OOPS","OOPS","OOPS","","",null,null,null,null,null,null,null,null,null,null,null,null,null,null,null,null,null,null,null,null,null,null,null,"RD","I",23,5,2003,42600,2,1,8,674,20200622,"01:00:00",0,null,"",null,null,null,null,null,null,null,"X","X"]
[20200627,"00:00:00",null,"","OOPS","OOPS","","","",null,null,null,null,null,null,null,null,null,null,null,null,null,null,null,null,null,null,null,null,null,null,null,"RD","I",23,5,2003,42600,2,1,8,674,20200627,"00:00:00",1.84,null,"",null,null,null,null,null,null,null,"X","X"]
[20200701,"23:00:00",null,"","OOPS","OOPS","OOPS","","",null,null,null,null,null,null,null,null,null,null,null,null,null,null,null,null,null,null,null,null,null,null,null,"RD","I",23,5,2003,42600,2,1,8,674,20200701,"23:00:00",0.43,null,"",null,null,null,null,null,null,null,"X","X"]
[20200708,"15:00:00",null,"","OOPS","OOPS","OOPS","","",null,null,null,null,null,null,null,null,null,null,null,null,null,null,null,null,null,null,null,null,null,null,null,"RD","I",23,5,2003,42600,2,1,8,674,20200708,"15:00:00",0.85,null,"",null,null,null,null,null,null,null,"X","X"]
[20200713,"14:00:00",null,"","OOPS","OOPS","OOPS","","",null,null,null,null,null,null,null,null,null,null,null,null,null,null,null,null,null,null,null,null,null,null,null,"RD","I",23,5,2003,42600,2,1,8,674,20200713,"14:00:00",1.33,null,"",null,null,null,null,null,null,null,"X","X"]
[20200724,"08:00:00",null,"","OOPS","OOPS","OOPS","","",null,null,null,null,null,null,null,null,null,null,null,null,null,null,null,null,null,null,null,null,null,null,null,"RD","I",23,5,2003,42600,2,1,8,674,20200724,"08:00:00",1.21,null,"",null,null,null,null,null,null,null,"X","X"]
[20200725,"05:00:00",null,"","OOPS","OOPS","OOPS","","",null,null,null,null,null,null,null,null,null,null,null,null,null,null,null,null,null,null,null,null,null,null,null,"RD","I",23,5,2003,42600,2,1,8,674,20200725,"05:00:00",3.37,null,"",null,null,null,null,null,null,null,"X","X"]
[20200804,"23:00:00",null,"","OOPS","OOPS","OOPS","","",null,null,null,null,null,null,null,null,null,null,null,null,null,null,null,null,null,null,null,null,null,null,null,"RD","I",23,5,2003,42600,2,1,8,674,20200804,"23:00:00",0.89,null,"",null,null,null,null,null,null,null,"X","X"]
[20200805,"20:00:00",null,"","OOPS","OOPS","OOPS","","",null,null,null,null,null,null,null,null,null,null,null,null,null,null,null,null,null,null,null,null,null,null,null,"RD","I",23,5,2003,42600,2,1,8,674,20200805,"20:00:00",0.79,null,"",null,null,null,null,null,null,null,"X","X"]
[20200816,"14:00:00",null,"","OOPS","OOPS","OOPS","","",null,null,null,null,null,null,null,null,null,null,null,null,null,null,null,null,null,null,null,null,null,null,null,"RD","I",23,5,2003,42600,2,1,8,674,20200816,"14:00:00",0.24,null,"",null,null,null,null,null,null,null,"X","X"]
[20200821,"13:00:00",null,"","OOPS","OOPS","OOPS","","",null,null,null,null,null,null,null,null,null,null,null,null,null,null,null,null,null,null,null,null,null,null,null,"RD","I",23,5,2003,42600,2,1,8,674,20200821,"13:00:00",2.25,null,"",null,null,null,null,null,null,null,"X","X"]
[20200828,"05:00:00",null,"","OOPS","OOPS","OOPS","","",null,null,null,null,null,null,null,null,null,null,null,null,null,null,null,null,null,null,null,null,null,null,null,"RD","I",23,5,2003,42600,2,1,8,674,20200828,"05:00:00",14.03,null,"",null,null,null,null,null,null,null,"X","X"]
[20200902,"04:00:00",null,"","OOPS","OOPS","OOPS","","",null,null,null,null,null,null,null,null,null,null,null,null,null,null,null,null,null,null,null,null,null,null,null,"RD","I",23,5,2003,42600,2,1,8,674,20200902,"04:00:00",0.06,null,"",null,null,null,null,null,null,null,"X","X"]
[20200908,"20:00:00",null,"","OOPS","OOPS","OOPS","","",null,null,null,null,null,null,null,null,null,null,null,null,null,null,null,null,null,null,null,null,null,null,null,"RD","I",23,5,2003,42600,2,1,8,674,20200908,"20:00:00",0.23,null,"",null,null,null,null,null,null,null,"X","X"]
[20200913,"19:00:00",null,"","OOPS","OOPS","OOPS","","",null,null,null,null,null,null,null,null,null,null,null,null,null,null,null,null,null,null,null,null,null,null,null,"RD","I",23,5,2003,42600,2,1,8,674,20200913,"19:00:00",0.04,null,"",null,null,null,null,null,null,null,"X","X"]
[20200918,"18:00:00",null,"","OOPS","OOPS","OOPS","","",null,null,null,null,null,null,null,null,null,null,null,null,null,null,null,null,null,null,null,null,null,null,null,"RD","I",23,5,2003,42600,2,1,8,674,20200918,"18:00:00",1.18,null,"",null,null,null,null,null,null,null,"X","X"]
[20200925,"10:00:00",null,"","OOPS","OOPS","OOPS",{"$f":"IF(A23968=AQ23968,\"\",\"OOPS\")","v":""},{"$f":"IF(B23968=AR23968,\"\",\"OOPS\")","v":""},null,null,null,null,null,null,null,null,null,null,null,null,null,null,null,null,null,null,null,null,null,null,null,"RD","I",23,5,2003,42600,2,1,8,674,20200925,"10:00:00",1.44,null,"",null,null,null,null,null,null,null,"X","X"]
[20200930,"09:00:00",null,"","OOPS","OOPS","OOPS","","",null,null,null,null,null,null,null,null,null,null,null,null,null,null,null,null,null,null,null,null,null,null,null,"RD","I",23,5,2003,42600,2,1,8,674,20200930,"09:00:00",0.28000000000000003,null,"",null,null,null,null,null,null,null,"X","X"]
[20201005,"08:00:00",null,"","OOPS","OOPS","OOPS","","",null,null,null,null,null,null,null,null,null,null,null,null,null,null,null,null,null,null,null,null,null,null,null,"RD","I",23,5,2003,42600,2,1,8,674,20201005,"08:00:00",1.05,null,"",null,null,null,null,null,null,null,"X","X"]
[20201012,"00:00:00",null,"","OOPS","OOPS","","","",null,null,null,null,null,null,null,null,null,null,null,null,null,null,null,null,null,null,null,null,null,null,null,"RD","I",23,5,2003,42600,2,1,8,674,20201012,"00:00:00",0.24,null,"",null,null,null,null,null,null,null,"X","X"]
[20201016,"23:00:00",null,"","OOPS","OOPS","OOPS","","",null,null,null,null,null,null,null,null,null,null,null,null,null,null,null,null,null,null,null,null,null,null,null,"RD","I",23,5,2003,42600,2,1,8,674,20201016,"23:00:00",0.67,null,"",null,null,null,null,null,null,null,"X","X"]
[20201023,"15:00:00",null,"","OOPS","OOPS","OOPS","","",null,null,null,null,null,null,null,null,null,null,null,null,null,null,null,null,null,null,null,null,null,null,null,"RD","I",23,5,2003,42600,2,1,8,674,20201023,"15:00:00",0.98,null,"",null,null,null,null,null,null,null,"X","X"]
[20201028,"14:00:00",null,"","OOPS","OOPS","OOPS","","",null,null,null,null,null,null,null,null,null,null,null,null,null,null,null,null,null,null,null,null,null,null,null,"RD","I",23,5,2003,42600,2,1,8,674,20201028,"14:00:00",0.64,null,"",null,null,null,null,null,null,null,"X","X"]
[20201102,"13:00:00",null,"","OOPS","OOPS","OOPS","","",null,null,null,null,null,null,null,null,null,null,null,null,null,null,null,null,null,null,null,null,null,null,null,"RD","I",23,5,2003,42600,2,1,8,674,20201102,"13:00:00",0.5,null,"",null,null,null,null,null,null,null,"X","X"]
[20201109,"05:00:00",null,"","OOPS","OOPS","OOPS","","",null,null,null,null,null,null,null,null,null,null,null,null,null,null,null,null,null,null,null,null,null,null,null,"RD","I",23,5,2003,42600,2,1,8,674,20201109,"05:00:00",0.69,null,"",null,null,null,null,null,null,null,"X","X"]
[20201114,"04:00:00",null,"","OOPS","OOPS","OOPS","","",null,null,null,null,null,null,null,null,null,null,null,null,null,null,null,null,null,null,null,null,null,null,null,"RD","I",23,5,2003,42600,2,1,8,674,20201114,"04:00:00",1.66,null,"",null,null,null,null,null,null,null,"X","X"]
[20201119,"03:00:00",null,"","OOPS","OOPS","OOPS","","",null,null,null,null,null,null,null,null,null,null,null,null,null,null,null,null,null,null,null,null,null,null,null,"RD","I",23,5,2003,42600,2,1,8,674,20201119,"03:00:00",8.3699999999999992,null,"",null,null,null,null,null,null,null,"X","X"]
[20201125,"19:00:00",null,"","OOPS","OOPS","OOPS","","",null,null,null,null,null,null,null,null,null,null,null,null,null,null,null,null,null,null,null,null,null,null,null,"RD","I",23,5,2003,42600,2,1,8,674,20201125,"19:00:00",8.69,null,"",null,null,null,null,null,null,null,"X","X"]
[20201130,"18:00:00",null,"","OOPS","OOPS","OOPS","","",null,null,null,null,null,null,null,null,null,null,null,null,null,null,null,null,null,null,null,null,null,null,null,"RD","I",23,5,2003,42600,2,1,8,674,20201130,"18:00:00",0.06,null,"",null,null,null,null,null,null,null,"X","X"]
[20201207,"10:00:00",null,"","OOPS","OOPS","OOPS","","",null,null,null,null,null,null,null,null,null,null,null,null,null,null,null,null,null,null,null,null,null,null,null,"RD","I",23,5,2003,42600,2,1,8,674,20201207,"10:00:00",3.18,null,"",null,null,null,null,null,null,null,"X","X"]
[20201212,"09:00:00",null,"","OOPS","OOPS","OOPS","","",null,null,null,null,null,null,null,null,null,null,null,null,null,null,null,null,null,null,null,null,null,null,null,"RD","I",23,5,2003,42600,2,1,8,674,20201212,"09:00:00",4.54,null,"",null,null,null,null,null,null,null,"X","X"]
[20201217,"08:00:00",null,"","OOPS","OOPS","OOPS","","",null,null,null,null,null,null,null,null,null,null,null,null,null,null,null,null,null,null,null,null,null,null,null,"RD","I",23,5,2003,42600,2,1,8,674,20201217,"08:00:00",0.9,null,"",null,null,null,null,null,null,null,"X","X"]
[20201224,"00:00:00",null,{"$f":"IF(C26118=\"\",IF(V26118=\"\",\"\",\"OOPS\"),IF(C26118=V26118,\"\",\"OOPS\"))","v":""},{"$f":"IF(C26118=\"\",IF(AS26118=\"\",\"\",\"OOPS\"),IF(C26118=AS26118,\"\",\"OOPS\"))","v":"OOPS"},"OOPS","","","",null,null,null,null,null,null,null,null,null,null,null,null,null,null,null,null,null,null,null,null,null,null,null,"RD","I",23,5,2003,42600,2,1,8,674,20201224,"00:00:00",2.62,null,"",null,null,null,null,null,null,null,"X","X"]
[20201228,"23:00:00",null,"","OOPS","OOPS","OOPS","","",null,null,null,null,null,null,null,null,null,null,null,null,null,null,null,null,null,null,null,null,null,null,null,"RD","I",23,5,2003,42600,2,1,8,674,20201228,"23:00:00",5.99,null,"",null,null,null,null,null,null,null,"X","X"]
[20210104,"15:00:00",null,"","OOPS","OOPS","OOPS","","",null,null,null,null,null,null,null,null,null,null,null,null,null,null,null,null,null,null,null,null,null,null,null,"RD","I",23,5,2003,42600,2,1,8,674,20210104,"15:00:00",1.39,null,"",null,null,null,null,null,null,null,"X","X"]
[20210110,"22:00:00",null,"","OOPS","OOPS","OOPS","","",null,null,null,null,null,null,null,null,null,null,null,null,null,null,null,null,null,null,null,null,null,null,null,"RD","I",23,5,2003,42600,2,1,8,674,20210110,"22:00:00",10.65,null,"",null,null,null,null,null,null,null,"X","X"]
[20210114,"14:00:00",null,"","OOPS","OOPS","OOPS","","",null,null,null,null,null,null,null,null,null,null,null,null,null,null,null,null,null,null,null,null,null,null,null,"RD","I",23,5,2003,42600,2,1,8,674,20210114,"14:00:00",9.4499999999999993,null,"",null,null,null,null,null,null,null,"X","X"]
[20210121,"06:00:00",null,"","OOPS","OOPS","OOPS","","",null,null,null,null,null,null,null,null,null,null,null,null,null,null,null,null,null,null,null,null,null,null,null,"RD","I",23,5,2003,42600,2,1,8,674,20210121,"06:00:00",6.46,null,"",null,null,null,null,null,null,null,"X","X"]
[20210126,"05:00:00",null,"","OOPS","OOPS","OOPS","","",null,null,null,null,null,null,null,null,null,null,null,null,null,null,null,null,null,null,null,null,null,null,null,"RD","I",23,5,2003,42600,2,1,8,674,20210126,"05:00:00",3.94,null,"",null,null,null,null,null,null,null,"X","X"]
[20210205,"23:00:00",null,"","","OOPS","OOPS","","",null,null,null,null,null,null,null,null,null,null,null,null,null,null,null,null,null,null,null,null,null,null,null,null,null,null,null,null,null,null,null,null,null,20210205,"23:00:00",null,"xxx",null,null,null,null,null,null,null,null,"X","X"]
[20210206,"20:00:00",null,"","","OOPS","OOPS","","",null,null,null,null,null,null,null,null,null,null,null,null,null,null,null,null,null,null,null,null,null,null,null,null,null,null,null,null,null,null,null,null,null,20210206,"20:00:00",null,"xxx",null,null,null,null,null,null,null,null,"X","X"]
[20210217,"14:00:00",null,"","","OOPS","OOPS","","",null,null,null,null,null,null,null,null,null,null,null,null,null,null,null,null,null,null,null,null,null,null,null,null,null,null,null,null,null,null,null,null,null,20210217,"14:00:00",null,"xxx",null,null,null,null,null,null,null,null,"X","X"]
[20210218,"11:00:00",null,"","","OOPS","OOPS","","",null,null,null,null,null,null,null,null,null,null,null,null,null,null,null,null,null,null,null,null,null,null,null,null,null,null,null,null,null,null,null,null,null,20210218,"11:00:00",null,"xxx",null,null,null,null,null,null,null,null,"X","X"]
[20210301,"05:00:00",null,"","","OOPS","OOPS","","",null,null,null,null,null,null,null,null,null,null,null,null,null,null,null,null,null,null,null,null,null,null,null,null,null,null,null,null,null,null,null,null,null,20210301,"05:00:00",null,"xxx",null,null,null,null,null,null,null,null,"X","X"]
[20210306,"04:00:00",null,"","","OOPS","OOPS","","",null,null,null,null,null,null,null,null,null,null,null,null,null,null,null,null,null,null,null,null,null,null,null,null,null,null,null,null,null,null,null,null,null,20210306,"04:00:00",null,"xxx",null,null,null,null,null,null,null,null,"X","X"]
[20210312,"20:00:00",null,"","","OOPS","OOPS","","",null,null,null,null,null,null,null,null,null,null,null,null,null,null,null,null,null,null,null,null,null,null,null,null,null,null,null,null,null,null,null,null,null,20210312,"20:00:00",null,"xxx",null,null,null,null,null,null,null,null,"X","X"]
[20210317,"19:00:00",null,"","","OOPS","OOPS","","",null,null,null,null,null,null,null,null,null,null,null,null,null,null,null,null,null,null,null,null,null,null,null,null,null,null,null,null,null,null,null,null,null,20210317,"19:00:00",null,"xxx",null,null,null,null,null,null,null,null,"X","X"]
[20210324,"11:00:00",null,"","","OOPS","OOPS","","",null,null,null,null,null,null,null,null,null,null,null,null,null,null,null,null,null,null,null,null,null,null,null,null,null,null,null,null,null,null,null,null,null,20210324,"11:00:00",null,"xxx",null,null,null,null,null,null,null,null,"X","X"]
[20210329,"10:00:00",null,"","","OOPS","OOPS","","",null,null,null,null,null,null,null,null,null,null,null,null,null,null,null,null,null,null,null,null,null,null,null,null,null,null,null,null,null,null,null,null,null,20210329,"10:00:00",null,"xxx",null,null,null,null,null,null,null,null,"X","X"]
[20210403,"09:00:00",null,"","","OOPS","OOPS","","",null,null,null,null,null,null,null,null,null,null,null,null,null,null,null,null,null,null,null,null,null,null,null,null,null,null,null,null,null,null,null,null,null,20210403,"09:00:00",null,"xxx",null,null,null,null,null,null,null,null,"X","X"]
[20210410,"01:00:00",null,"","","OOPS","OOPS","","",null,null,null,null,null,null,null,null,null,null,null,null,null,null,null,null,null,null,null,null,null,null,null,null,null,null,null,null,null,null,null,null,null,20210410,"01:00:00",null,"xxx",null,null,null,null,null,null,null,null,"X","X"]
[20210415,"00:00:00",null,{"$f":"IF(C28806=\"\",IF(V28806=\"\",\"\",\"OOPS\"),IF(C28806=V28806,\"\",\"OOPS\"))","v":""},{"$f":"IF(C28806=\"\",IF(AS28806=\"\",\"\",\"OOPS\"),IF(C28806=AS28806,\"\",\"OOPS\"))","v":""},{"$f":"IF(A28806=T28806,\"\",\"OOPS\")","v":"OOPS"},{"$f":"IF(B28806=U28806,\"\",\"OOPS\")","v":""},{"$f":"IF(A28806=AQ28806,\"\",\"OOPS\")","v":""},{"$f":"IF(B28806=AR28806,\"\",\"OOPS\")","v":""},null,null,null,null,null,null,null,null,null,null,null,null,null,null,null,null,null,null,null,null,null,null,null,null,null,null,null,null,null,null,null,null,null,20210415,"00:00:00",null,"xxx",null,null,null,null,null,null,null,null,"X","X"]
[20210419,"23:00:00",null,"","","OOPS","OOPS","","",null,null,null,null,null,null,null,null,null,null,null,null,null,null,null,null,null,null,null,null,null,null,null,null,null,null,null,null,null,null,null,null,null,20210419,"23:00:00",null,"xxx",null,null,null,null,null,null,null,null,"X","X"]
[20210426,"15:00:00",null,"","","OOPS","OOPS","","",null,null,null,null,null,null,null,null,null,null,null,null,null,null,null,null,null,null,null,null,null,null,null,null,null,null,null,null,null,null,null,null,null,20210426,"15:00:00",null,"xxx",null,null,null,null,null,null,null,null,"X","X"]
[20210501,"14:00:00",null,"","","OOPS","OOPS","","",null,null,null,null,null,null,null,null,null,null,null,null,null,null,null,null,null,null,null,null,null,null,null,null,null,null,null,null,null,null,null,null,null,20210501,"14:00:00",null,"xxx",null,null,null,null,null,null,null,null,"X","X"]
[20210508,"06:00:00",null,"","","OOPS","OOPS","","",null,null,null,null,null,null,null,null,null,null,null,null,null,null,null,null,null,null,null,null,null,null,null,null,null,null,null,null,null,null,null,null,null,20210508,"06:00:00",null,"xxx",null,null,null,null,null,null,null,null,"X","X"]
[20210513,"05:00:00",null,"","","OOPS","OOPS","","",null,null,null,null,null,null,null,null,null,null,null,null,null,null,null,null,null,null,null,null,null,null,null,null,null,null,null,null,null,null,null,null,null,20210513,"05:00:00",null,"xxx",null,null,null,null,null,null,null,null,"X","X"]
[20210518,"04:00:00",null,"","","OOPS","OOPS","","",null,null,null,null,null,null,null,null,null,null,null,null,null,null,null,null,null,null,null,null,null,null,null,null,null,null,null,null,null,null,null,null,null,20210518,"04:00:00",null,"xxx",null,null,null,null,null,null,null,null,"X","X"]
[20210524,"20:00:00",null,"","","OOPS","OOPS","","",null,null,null,null,null,null,null,null,null,null,null,null,null,null,null,null,null,null,null,null,null,null,null,null,null,null,null,null,null,null,null,null,null,20210524,"20:00:00",null,"xxx",null,null,null,null,null,null,null,null,"X","X"]
[20210529,"19:00:00",null,"","","OOPS","OOPS","","",null,null,null,null,null,null,null,null,null,null,null,null,null,null,null,null,null,null,null,null,null,null,null,null,null,null,null,null,null,null,null,null,null,20210529,"19:00:00",null,"xxx",null,null,null,null,null,null,null,null,"X","X"]
[20210603,"18:00:00",null,"","","OOPS","OOPS","","",null,null,null,null,null,null,null,null,null,null,null,null,null,null,null,null,null,null,null,null,null,null,null,null,null,null,null,null,null,null,null,null,null,20210603,"18:00:00",null,"xxx",null,null,null,null,null,null,null,null,"X","X"]
[20210610,"10:00:00",null,"","","OOPS","OOPS","","",null,null,null,null,null,null,null,null,null,null,null,null,null,null,null,null,null,null,null,null,null,null,null,null,null,null,null,null,null,null,null,null,null,20210610,"10:00:00",null,"xxx",null,null,null,null,null,null,null,null,"X","X"]
[20210615,"09:00:00",null,"","","OOPS","OOPS","","",null,null,null,null,null,null,null,null,null,null,null,null,null,null,null,null,null,null,null,null,null,null,null,null,null,null,null,null,null,null,null,null,null,20210615,"09:00:00",null,"xxx",null,null,null,null,null,null,null,null,"X","X"]
[20210622,"01:00:00",null,"","","OOPS","OOPS","","",null,null,null,null,null,null,null,null,null,null,null,null,null,null,null,null,null,null,null,null,null,null,null,null,null,null,null,null,null,null,null,null,null,20210622,"01:00:00",null,"xxx",null,null,null,null,null,null,null,null,"X","X"]
[20210627,"00:00:00",null,"","","OOPS","","","",null,null,null,null,null,null,null,null,null,null,null,null,null,null,null,null,null,null,null,null,null,null,null,null,null,null,null,null,null,null,null,null,null,20210627,"00:00:00",null,"xxx",null,null,null,null,null,null,null,null,"X","X"]
[20210701,"23:00:00",null,"","","OOPS","OOPS","","",null,null,null,null,null,null,null,null,null,null,null,null,null,null,null,null,null,null,null,null,null,null,null,null,null,null,null,null,null,null,null,null,null,20210701,"23:00:00",null,"xxx",null,null,null,null,null,null,null,null,"X","X"]
[20210708,"15:00:00",null,"","","OOPS","OOPS","","",null,null,null,null,null,null,null,null,null,null,null,null,null,null,null,null,null,null,null,null,null,null,null,null,null,null,null,null,null,null,null,null,null,20210708,"15:00:00",null,"xxx",null,null,null,null,null,null,null,null,"X","X"]
[20210713,"14:00:00",null,"","","OOPS","OOPS","","",null,null,null,null,null,null,null,null,null,null,null,null,null,null,null,null,null,null,null,null,null,null,null,null,null,null,null,null,null,null,null,null,null,20210713,"14:00:00",null,"xxx",null,null,null,null,null,null,null,null,"X","X"]
[20210720,"06:00:00",null,"","","OOPS","OOPS","","",null,null,null,null,null,null,null,null,null,null,null,null,null,null,null,null,null,null,null,null,null,null,null,null,null,null,null,null,null,null,null,null,null,20210720,"06:00:00",null,"xxx",null,null,null,null,null,null,null,null,"X","X"]
[20210725,"05:00:00",null,"","","OOPS","OOPS","","",null,null,null,null,null,null,null,null,null,null,null,null,null,null,null,null,null,null,null,null,null,null,null,null,null,null,null,null,null,null,null,null,null,20210725,"05:00:00",null,"xxx",null,null,null,null,null,null,null,null,"X","X"]
[20210804,"23:00:00",null,"","","OOPS","OOPS","","",null,null,null,null,null,null,null,null,null,null,null,null,null,null,null,null,null,null,null,null,null,null,null,null,null,null,null,null,null,null,null,null,null,20210804,"23:00:00",null,"xxx",null,null,null,null,null,null,null,null,"X","X"]
[20210805,"20:00:00",null,"","","OOPS","OOPS","","",null,null,null,null,null,null,null,null,null,null,null,null,null,null,null,null,null,null,null,null,null,null,null,null,null,null,null,null,null,null,null,null,null,20210805,"20:00:00",null,"xxx",null,null,null,null,null,null,null,null,"X","X"]
[20210816,"14:00:00",null,"","","OOPS","OOPS","","",null,null,null,null,null,null,null,null,null,null,null,null,null,null,null,null,null,null,null,null,null,null,null,null,null,null,null,null,null,null,null,null,null,20210816,"14:00:00",null,"xxx",null,null,null,null,null,null,null,null,"X","X"]
[20210821,"13:00:00",null,"","","OOPS","OOPS","","",null,null,null,null,null,null,null,null,null,null,null,null,null,null,null,null,null,null,null,null,null,null,null,null,null,null,null,null,null,null,null,null,null,20210821,"13:00:00",null,"xxx",null,null,null,null,null,null,null,null,"X","X"]
[20210828,"05:00:00",null,"","","OOPS","OOPS","","",null,null,null,null,null,null,null,null,null,null,null,null,null,null,null,null,null,null,null,null,null,null,null,null,null,null,null,null,null,null,null,null,null,20210828,"05:00:00",null,"xxx",null,null,null,null,null,null,null,null,"X","X"]
[20210902,"04:00:00",null,"","","OOPS","OOPS","","",null,null,null,null,null,null,null,null,null,null,null,null,null,null,null,null,null,null,null,null,null,null,null,null,null,null,null,null,null,null,null,null,null,20210902,"04:00:00",null,"xxx",null,null,null,null,null,null,null,null,"X","X"]
[20210908,"20:00:00",null,"","","OOPS","OOPS","","",null,null,null,null,null,null,null,null,null,null,null,null,null,null,null,null,null,null,null,null,null,null,null,null,null,null,null,null,null,null,null,null,null,20210908,"20:00:00",null,"xxx",null,null,null,null,null,null,null,null,"X","X"]
[20210913,"19:00:00",null,"","","OOPS","OOPS","","",null,null,null,null,null,null,null,null,null,null,null,null,null,null,null,null,null,null,null,null,null,null,null,null,null,null,null,null,null,null,null,null,null,20210913,"19:00:00",null,"xxx",null,null,null,null,null,null,null,null,"X","X"]
[20210918,"18:00:00",null,"","","OOPS","OOPS","","",null,null,null,null,null,null,null,null,null,null,null,null,null,null,null,null,null,null,null,null,null,null,null,null,null,null,null,null,null,null,null,null,null,20210918,"18:00:00",null,"xxx",null,null,null,null,null,null,null,null,"X","X"]
[20210925,"10:00:00",null,"","","OOPS","OOPS","","",null,null,null,null,null,null,null,null,null,null,null,null,null,null,null,null,null,null,null,null,null,null,null,null,null,null,null,null,null,null,null,null,null,20210925,"10:00:00",null,"xxx",null,null,null,null,null,null,null,null,"X","X"]
[20210930,"09:00:00",null,"","","OOPS","OOPS","","",null,null,null,null,null,null,null,null,null,null,null,null,null,null,null,null,null,null,null,null,null,null,null,null,null,null,null,null,null,null,null,null,null,20210930,"09:00:00",null,"xxx",null,null,null,null,null,null,null,null,"X","X"]
[20211005,"08:00:00",null,{"$f":"IF(C32966=\"\",IF(V32966=\"\",\"\",\"OOPS\"),IF(C32966=V32966,\"\",\"OOPS\"))","v":""},{"$f":"IF(C32966=\"\",IF(AS32966=\"\",\"\",\"OOPS\"),IF(C32966=AS32966,\"\",\"OOPS\"))","v":""},{"$f":"IF(A32966=T32966,\"\",\"OOPS\")","v":"OOPS"},{"$f":"IF(B32966=U32966,\"\",\"OOPS\")","v":"OOPS"},{"$f":"IF(A32966=AQ32966,\"\",\"OOPS\")","v":""},{"$f":"IF(B32966=AR32966,\"\",\"OOPS\")","v":""},null,null,null,null,null,null,null,null,null,null,null,null,null,null,null,null,null,null,null,null,null,null,null,null,null,null,null,null,null,null,null,null,null,20211005,"08:00:00",null,"xxx",null,null,null,null,null,null,null,null,"X","X"]
[20211012,"00:00:00",null,"","","OOPS","","","",null,null,null,null,null,null,null,null,null,null,null,null,null,null,null,null,null,null,null,null,null,null,null,null,null,null,null,null,null,null,null,null,null,20211012,"00:00:00",null,"xxx",null,null,null,null,null,null,null,null,"X","X"]
[20211016,"23:00:00",null,"","","OOPS","OOPS","","",null,null,null,null,null,null,null,null,null,null,null,null,null,null,null,null,null,null,null,null,null,null,null,null,null,null,null,null,null,null,null,null,null,20211016,"23:00:00",null,"xxx",null,null,null,null,null,null,null,null,"X","X"]
[20211023,"15:00:00",null,"","","OOPS","OOPS","","",null,null,null,null,null,null,null,null,null,null,null,null,null,null,null,null,null,null,null,null,null,null,null,null,null,null,null,null,null,null,null,null,null,20211023,"15:00:00",null,"xxx",null,null,null,null,null,null,null,null,"X","X"]
[20211028,"14:00:00",null,"","","OOPS","OOPS","","",null,null,null,null,null,null,null,null,null,null,null,null,null,null,null,null,null,null,null,null,null,null,null,null,null,null,null,null,null,null,null,null,null,20211028,"14:00:00",null,"xxx",null,null,null,null,null,null,null,null,"X","X"]
[20211102,"13:00:00",null,"","","OOPS","OOPS","","",null,null,null,null,null,null,null,null,null,null,null,null,null,null,null,null,null,null,null,null,null,null,null,null,null,null,null,null,null,null,null,null,null,20211102,"13:00:00",null,"xxx",null,null,null,null,null,null,null,null,"X","X"]
[20211109,"05:00:00",null,"","","OOPS","OOPS","","",null,null,null,null,null,null,null,null,null,null,null,null,null,null,null,null,null,null,null,null,null,null,null,null,null,null,null,null,null,null,null,null,null,20211109,"05:00:00",null,"xxx",null,null,null,null,null,null,null,null,"X","X"]
[20211114,"04:00:00",null,"","","OOPS","OOPS","","",null,null,null,null,null,null,null,null,null,null,null,null,null,null,null,null,null,null,null,null,null,null,null,null,null,null,null,null,null,null,null,null,null,20211114,"04:00:00",null,"xxx",null,null,null,null,null,null,null,null,"X","X"]
[20211120,"20:00:00",null,"","","OOPS","OOPS","","",null,null,null,null,null,null,null,null,null,null,null,null,null,null,null,null,null,null,null,null,null,null,null,null,null,null,null,null,null,null,null,null,null,20211120,"20:00:00",null,"xxx",null,null,null,null,null,null,null,null,"X","X"]
[20211125,"19:00:00",null,"","","OOPS","OOPS","","",null,null,null,null,null,null,null,null,null,null,null,null,null,null,null,null,null,null,null,null,null,null,null,null,null,null,null,null,null,null,null,null,null,20211125,"19:00:00",null,"xxx",null,null,null,null,null,null,null,null,"X","X"]
[20211130,"18:00:00",null,"","","OOPS","OOPS","","",null,null,null,null,null,null,null,null,null,null,null,null,null,null,null,null,null,null,null,null,null,null,null,null,null,null,null,null,null,null,null,null,null,20211130,"18:00:00",null,"xxx",null,null,null,null,null,null,null,null,"X","X"]
[20211207,"10:00:00",null,"","","OOPS","OOPS","","",null,null,null,null,null,null,null,null,null,null,null,null,null,null,null,null,null,null,null,null,null,null,null,null,null,null,null,null,null,null,null,null,null,20211207,"10:00:00",null,"xxx",null,null,null,null,null,null,null,null,"X","X"]
[20211212,"09:00:00",null,"","","OOPS","OOPS","","",null,null,null,null,null,null,null,null,null,null,null,null,null,null,null,null,null,null,null,null,null,null,null,null,null,null,null,null,null,null,null,null,null,20211212,"09:00:00",null,"xxx",null,null,null,null,null,null,null,null,"X","X"]
[20211217,"08:00:00",null,"","","OOPS","OOPS","","",null,null,null,null,null,null,null,null,null,null,null,null,null,null,null,null,null,null,null,null,null,null,null,null,null,null,null,null,null,null,null,null,null,20211217,"08:00:00",null,"xxx",null,null,null,null,null,null,null,null,"X","X"]
[20211224,"00:00:00",null,"","","OOPS","","","",null,null,null,null,null,null,null,null,null,null,null,null,null,null,null,null,null,null,null,null,null,null,null,null,null,null,null,null,null,null,null,null,null,20211224,"00:00:00",null,"xxx",null,null,null,null,null,null,null,null,"X","X"]
[20211228,"23:00:00",null,"","","OOPS","OOPS","","",null,null,null,null,null,null,null,null,null,null,null,null,null,null,null,null,null,null,null,null,null,null,null,null,null,null,null,null,null,null,null,null,null,20211228,"23:00:00",null,"xxx",null,null,null,null,null,null,null,null,"X","X"]
[null,null,null,null,null,null,null,null,null,null,null,null,null,null,null,null,null,null,null,20180108,"03:00:00",null,"xxx",null,null,null,null,null,null,null,null,null,null,null,null,null,null,null,null,null,null,null,20180108,"03:00:00",null,"xxx",null,null,null,null,null,null,null,null,"","X"]
[null,null,null,null,null,null,null,null,null,null,null,null,null,null,null,null,null,null,null,20180109,"15:00:00",null,"xxx",null,null,null,null,null,null,null,null,null,null,null,null,null,null,null,null,null,null,null,20180109,"15:00:00",null,"xxx",null,null,null,null,null,null,null,null,"","X"]
[null,null,null,null,null,null,null,null,null,null,null,null,null,null,null,null,null,null,null,20180114,"14:00:00",null,"xxx",null,null,null,null,null,null,null,null,null,null,null,null,null,null,null,null,null,null,null,20180114,"14:00:00",null,"xxx",null,null,null,null,null,null,null,null,"","X"]
[null,null,null,null,null,null,null,null,null,null,null,null,null,null,null,null,null,null,null,20180121,"06:00:00",null,"xxx",null,null,null,null,null,null,null,null,null,null,null,null,null,null,null,null,null,null,null,20180121,"06:00:00",null,"xxx",null,null,null,null,null,null,null,null,"","X"]
[null,null,null,null,null,null,null,null,null,null,null,null,null,null,null,null,null,null,null,20180126,"05:00:00",null,"xxx",null,null,null,null,null,null,null,null,null,null,null,null,null,null,null,null,null,null,null,20180126,"05:00:00",null,"xxx",null,null,null,null,null,null,null,null,"","X"]
[null,null,null,null,null,null,null,null,null,null,null,null,null,null,null,null,null,null,null,20180201,"21:00:00",null,"xxx",null,null,null,null,null,null,null,null,null,null,null,null,null,null,null,null,null,null,null,20180201,"21:00:00",null,"xxx",null,null,null,null,null,null,null,null,"","X"]
[null,null,null,null,null,null,null,null,null,null,null,null,null,null,null,null,null,null,null,20180206,"20:00:00",null,"xxx",null,null,null,null,null,null,null,null,null,null,null,null,null,null,null,null,null,null,null,20180206,"20:00:00",null,"xxx",null,null,null,null,null,null,null,null,"","X"]
[null,null,null,null,null,null,null,null,null,null,null,null,null,null,null,null,null,null,null,20180217,"14:00:00",null,"xxx",null,null,null,null,null,null,null,null,null,null,null,null,null,null,null,null,null,null,null,20180217,"14:00:00",null,"xxx",null,null,null,null,null,null,null,null,"","X"]
[null,null,null,null,null,null,null,null,null,null,null,null,null,null,null,null,null,null,null,20180218,"11:00:00",null,"xxx",null,null,null,null,null,null,null,null,null,null,null,null,null,null,null,null,null,null,null,20180218,"11:00:00",null,"xxx",null,null,null,null,null,null,null,null,"","X"]
[null,null,null,null,null,null,null,null,null,null,null,null,null,null,null,null,null,null,null,20180301,"05:00:00",null,"xxx",null,null,null,null,null,null,null,null,null,null,null,null,null,null,null,null,null,null,null,20180301,"05:00:00",null,"xxx",null,null,null,null,null,null,null,null,"","X"]
[null,null,null,null,null,null,null,null,null,null,null,null,null,null,null,null,null,null,null,20180306,"04:00:00",null,"xxx",null,null,null,null,null,null,null,null,null,null,null,null,null,null,null,null,null,null,null,20180306,"04:00:00",null,"xxx",null,null,null,null,null,null,null,null,"","X"]
[null,null,null,null,null,null,null,null,null,null,null,null,null,null,null,null,null,null,null,20180312,"20:00:00",null,"xxx",null,null,null,null,null,null,null,null,null,null,null,null,null,null,null,null,null,null,null,20180312,"20:00:00",null,"xxx",null,null,null,null,null,null,null,null,"","X"]
[null,null,null,null,null,null,null,null,null,null,null,null,null,null,null,null,null,null,null,20180317,"19:00:00",null,"xxx",null,null,null,null,null,null,null,null,null,null,null,null,null,null,null,null,null,null,null,20180317,"19:00:00",null,"xxx",null,null,null,null,null,null,null,null,"","X"]
[null,null,null,null,null,null,null,null,null,null,null,null,null,null,null,null,null,null,null,20180324,"11:00:00",null,"xxx",null,null,null,null,null,null,null,null,null,null,null,null,null,null,null,null,null,null,null,20180324,"11:00:00",null,"xxx",null,null,null,null,null,null,null,null,"","X"]
[null,null,null,null,null,null,null,null,null,null,null,null,null,null,null,null,null,null,null,20180329,"10:00:00",null,"xxx",null,null,null,null,null,null,null,null,null,null,null,null,null,null,null,null,null,null,null,20180329,"10:00:00",null,"xxx",null,null,null,null,null,null,null,null,"","X"]
[null,null,null,null,null,null,null,null,null,null,null,null,null,null,null,null,null,null,null,20180403,"09:00:00",null,"xxx",null,null,null,null,null,null,null,null,null,null,null,null,null,null,null,null,null,null,null,20180403,"09:00:00",null,"xxx",null,null,null,null,null,null,null,null,"","X"]
[null,null,null,null,null,null,null,null,null,null,null,null,null,null,null,null,null,null,null,20180410,"01:00:00",null,"xxx",null,null,null,null,null,null,null,null,null,null,null,null,null,null,null,null,null,null,null,20180410,"01:00:00",null,"xxx",null,null,null,null,null,null,null,null,"","X"]
[null,null,null,null,null,null,null,null,null,null,null,null,null,null,null,null,null,null,null,20180415,"00:00:00",null,"xxx",null,null,null,null,null,null,null,null,null,null,null,null,null,null,null,null,null,null,null,20180415,"00:00:00",null,"xxx",null,null,null,null,null,null,null,null,"","X"]
[null,null,null,null,null,null,null,null,null,null,null,null,null,null,null,null,null,null,null,20180419,"23:00:00",null,"xxx",null,null,null,null,null,null,null,null,null,null,null,null,null,null,null,null,null,null,null,20180419,"23:00:00",null,"xxx",null,null,null,null,null,null,null,null,"","X"]
[null,null,null,null,null,null,null,null,null,null,null,null,null,null,null,null,null,null,null,20180426,"15:00:00",null,"xxx",null,null,null,null,null,null,null,null,null,null,null,null,null,null,null,null,null,null,null,20180426,"15:00:00",null,"xxx",null,null,null,null,null,null,null,null,"","X"]
[null,null,null,null,null,null,null,null,null,null,null,null,null,null,null,null,null,null,null,20180501,"14:00:00",null,"xxx",null,null,null,null,null,null,null,null,null,null,null,null,null,null,null,null,null,null,null,20180501,"14:00:00",null,"xxx",null,null,null,null,null,null,null,null,"","X"]
[null,null,null,null,null,null,null,null,null,null,null,null,null,null,null,null,null,null,null,20180508,"06:00:00",null,"xxx",null,null,null,null,null,null,null,null,null,null,null,null,null,null,null,null,null,null,null,20180508,"06:00:00",null,"xxx",null,null,null,null,null,null,null,null,"","X"]
[null,null,null,null,null,null,null,null,null,null,null,null,null,null,null,null,null,null,null,20180513,"05:00:00",null,"xxx",null,null,null,null,null,null,null,null,null,null,null,null,null,null,null,null,null,null,null,20180513,"05:00:00",null,"xxx",null,null,null,null,null,null,null,null,"","X"]
[null,null,null,null,null,null,null,null,null,null,null,null,null,null,null,null,null,null,null,20180518,"04:00:00",null,"xxx",null,null,null,null,null,null,null,null,null,null,null,null,null,null,null,null,null,null,null,20180518,"04:00:00",null,"xxx",null,null,null,null,null,null,null,null,"","X"]
[null,null,null,null,null,null,null,null,null,null,null,null,null,null,null,null,null,null,null,20180524,"20:00:00",null,"xxx",null,null,null,null,null,null,null,null,null,null,null,null,null,null,null,null,null,null,null,20180524,"20:00:00",null,"xxx",null,null,null,null,null,null,null,null,"","X"]
[null,null,null,null,null,null,null,null,null,null,null,null,null,null,null,null,null,null,null,20180529,"19:00:00",null,"xxx",null,null,null,null,null,null,null,null,null,null,null,null,null,null,null,null,null,null,null,20180529,"19:00:00",null,"xxx",null,null,null,null,null,null,null,null,"","X"]
[null,null,null,null,null,null,null,null,null,null,null,null,null,null,null,null,null,null,null,20180605,"11:00:00",null,"xxx",null,null,null,null,null,null,null,null,null,null,null,null,null,null,null,null,null,null,null,20180605,"11:00:00",null,"xxx",null,null,null,null,null,null,null,null,"","X"]
[null,null,null,null,null,null,null,null,null,null,null,null,null,null,null,null,null,null,null,20180610,"10:00:00",null,"xxx",null,null,null,null,null,null,null,null,null,null,null,null,null,null,null,null,null,null,null,20180610,"10:00:00",null,"xxx",null,null,null,null,null,null,null,null,"",{"$f":"IF(AR38920=\"\",\"\",IF(AR38920=AR38919,IF(AS38920=AS38919,\"\",\"X\"),\"X\"))","v":"X"}]
[null,null,null,null,null,null,null,null,null,null,null,null,null,null,null,null,null,null,null,20180615,"09:00:00",null,"xxx",null,null,null,null,null,null,null,null,null,null,null,null,null,null,null,null,null,null,null,20180615,"09:00:00",null,"xxx",null,null,null,null,null,null,null,null,"","X"]
[null,null,null,null,null,null,null,null,null,null,null,null,null,null,null,null,null,null,null,20180622,"01:00:00",null,"xxx",null,null,null,null,null,null,null,null,null,null,null,null,null,null,null,null,null,null,null,20180622,"01:00:00",null,"xxx",null,null,null,null,null,null,null,null,"","X"]
[null,null,null,null,null,null,null,null,null,null,null,null,null,null,null,null,null,null,null,20180627,"00:00:00",null,"xxx",null,null,null,null,null,null,null,null,null,null,null,null,null,null,null,null,null,null,null,20180627,"00:00:00",null,"xxx",null,null,null,null,null,null,null,null,"","X"]
[null,null,null,null,null,null,null,null,null,null,null,null,null,null,null,null,null,null,null,20180701,"23:00:00",null,"xxx",null,null,null,null,null,null,null,null,null,null,null,null,null,null,null,null,null,null,null,20180701,"23:00:00",null,"xxx",null,null,null,null,null,null,null,null,"","X"]
[null,null,null,null,null,null,null,null,null,null,null,null,null,null,null,null,null,null,null,20180708,"15:00:00",null,"xxx",null,null,null,null,null,null,null,null,null,null,null,null,null,null,null,null,null,null,null,20180708,"15:00:00",null,"xxx",null,null,null,null,null,null,null,null,"","X"]
[null,null,null,null,null,null,null,null,null,null,null,null,null,null,null,null,null,null,null,20180713,"14:00:00",null,"xxx",null,null,null,null,null,null,null,null,null,null,null,null,null,null,null,null,null,null,null,20180713,"14:00:00",null,"xxx",null,null,null,null,null,null,null,null,"","X"]
[null,null,null,null,null,null,null,null,null,null,null,null,null,null,null,null,null,null,null,20180720,"06:00:00",null,"xxx",null,null,null,null,null,null,null,null,null,null,null,null,null,null,null,null,null,null,null,20180720,"06:00:00",null,"xxx",null,null,null,null,null,null,null,null,"","X"]
[null,null,null,null,null,null,null,null,null,null,null,null,null,null,null,null,null,null,null,20180725,"05:00:00",null,"xxx",null,null,null,null,null,null,null,null,null,null,null,null,null,null,null,null,null,null,null,20180725,"05:00:00",null,"xxx",null,null,null,null,null,null,null,null,"","X"]
[null,null,null,null,null,null,null,null,null,null,null,null,null,null,null,null,null,null,null,20180804,"23:00:00",null,"xxx",null,null,null,null,null,null,null,null,null,null,null,null,null,null,null,null,null,null,null,20180804,"23:00:00",null,"xxx",null,null,null,null,null,null,null,null,"","X"]
[null,null,null,null,null,null,null,null,null,null,null,null,null,null,null,null,null,null,null,20180805,"20:00:00",null,"xxx",null,null,null,null,null,null,null,null,null,null,null,null,null,null,null,null,null,null,null,20180805,"20:00:00",null,"xxx",null,null,null,null,null,null,null,null,"","X"]
[null,null,null,null,null,null,null,null,null,null,null,null,null,null,null,null,null,null,null,20180816,"14:00:00",null,"xxx",null,null,null,null,null,null,null,null,null,null,null,null,null,null,null,null,null,null,null,20180816,"14:00:00",null,"xxx",null,null,null,null,null,null,null,null,"","X"]
[null,null,null,null,null,null,null,null,null,null,null,null,null,null,null,null,null,null,null,20180817,"11:00:00",null,"xxx",null,null,null,null,null,null,null,null,null,null,null,null,null,null,null,null,null,null,null,20180817,"11:00:00",null,"xxx",null,null,null,null,null,null,null,null,"","X"]
[null,null,null,null,null,null,null,null,null,null,null,null,null,null,null,null,null,null,null,20180828,"05:00:00",null,"xxx",null,null,null,null,null,null,null,null,null,null,null,null,null,null,null,null,null,null,null,20180828,"05:00:00",null,"xxx",null,null,null,null,null,null,null,null,"","X"]
[null,null,null,null,null,null,null,null,null,null,null,null,null,null,null,null,null,null,null,20180902,"04:00:00",null,"xxx",null,null,null,null,null,null,null,null,null,null,null,null,null,null,null,null,null,null,null,20180902,"04:00:00",null,"xxx",null,null,null,null,null,null,null,null,"","X"]
[null,null,null,null,null,null,null,null,null,null,null,null,null,null,null,null,null,null,null,20180908,"20:00:00",null,"xxx",null,null,null,null,null,null,null,null,null,null,null,null,null,null,null,null,null,null,null,20180908,"20:00:00",null,"xxx",null,null,null,null,null,null,null,null,"","X"]
[null,null,null,null,null,null,null,null,null,null,null,null,null,null,null,null,null,null,null,20180913,"19:00:00",null,"xxx",null,null,null,null,null,null,null,null,null,null,null,null,null,null,null,null,null,null,null,20180913,"19:00:00",null,"xxx",null,null,null,null,null,null,null,null,"","X"]
[null,null,null,null,null,null,null,null,null,null,null,null,null,null,null,null,null,null,null,20180918,"18:00:00",null,"xxx",null,null,null,null,null,null,null,null,null,null,null,null,null,null,null,null,null,null,null,20180918,"18:00:00",null,"xxx",null,null,null,null,null,null,null,null,"","X"]
[null,null,null,null,null,null,null,null,null,null,null,null,null,null,null,null,null,null,null,20180925,"10:00:00",null,"xxx",null,null,null,null,null,null,null,null,null,null,null,null,null,null,null,null,null,null,null,20180925,"10:00:00",null,"xxx",null,null,null,null,null,null,null,null,"","X"]
[null,null,null,null,null,null,null,null,null,null,null,null,null,null,null,null,null,null,null,20180930,"09:00:00",null,"xxx",null,null,null,null,null,null,null,null,null,null,null,null,null,null,null,null,null,null,null,20180930,"09:00:00",null,"xxx",null,null,null,null,null,null,null,null,"","X"]
[null,null,null,null,null,null,null,null,null,null,null,null,null,null,null,null,null,null,null,20181007,"01:00:00",null,"xxx",null,null,null,null,null,null,null,null,null,null,null,null,null,null,null,null,null,null,null,20181007,"01:00:00",null,"xxx",null,null,null,null,null,null,null,null,"","X"]
[null,null,null,null,null,null,null,null,null,null,null,null,null,null,null,null,null,null,null,20181012,"00:00:00",null,"xxx",null,null,null,null,null,null,null,null,null,null,null,null,null,null,null,null,null,null,null,20181012,"00:00:00",null,"xxx",null,null,null,null,null,null,null,null,"","X"]
[null,null,null,null,null,null,null,null,null,null,null,null,null,null,null,null,null,null,null,20181016,"23:00:00",null,"xxx",null,null,null,null,null,null,null,null,null,null,null,null,null,null,null,null,null,null,null,20181016,"23:00:00",null,"xxx",null,null,null,null,null,null,null,null,"","X"]
[null,null,null,null,null,null,null,null,null,null,null,null,null,null,null,null,null,null,null,20181023,"15:00:00",null,"xxx",null,null,null,null,null,null,null,null,null,null,null,null,null,null,null,null,null,null,null,20181023,"15:00:00",null,"xxx",null,null,null,null,null,null,null,null,"","X"]
[null,null,null,null,null,null,null,null,null,null,null,null,null,null,null,null,null,null,null,20181028,"14:00:00",null,"xxx",null,null,null,null,null,null,null,null,null,null,null,null,null,null,null,null,null,null,null,20181028,"14:00:00",null,"xxx",null,null,null,null,null,null,null,null,"","X"]
[null,null,null,null,null,null,null,null,null,null,null,null,null,null,null,null,null,null,null,20181102,"13:00:00",null,"xxx",null,null,null,null,null,null,null,null,null,null,null,null,null,null,null,null,null,null,null,20181102,"13:00:00",null,"xxx",null,null,null,null,null,null,null,null,"","X"]
[null,null,null,null,null,null,null,null,null,null,null,null,null,null,null,null,null,null,null,20181109,"05:00:00",null,"xxx",null,null,null,null,null,null,null,null,null,null,null,null,null,null,null,null,null,null,null,20181109,"05:00:00",null,"xxx",null,null,null,null,null,null,null,null,"","X"]
[null,null,null,null,null,null,null,null,null,null,null,null,null,null,null,null,null,null,null,20181114,"04:00:00",null,"xxx",null,null,null,null,null,null,null,null,null,null,null,null,null,null,null,null,null,null,null,20181114,"04:00:00",null,"xxx",null,null,null,null,null,null,null,null,"","X"]
[null,null,null,null,null,null,null,null,null,null,null,null,null,null,null,null,null,null,null,20181120,"20:00:00",null,"xxx",null,null,null,null,null,null,null,null,null,null,null,null,null,null,null,null,null,null,null,20181120,"20:00:00",null,"xxx",null,null,null,null,null,null,null,null,"","X"]
[null,null,null,null,null,null,null,null,null,null,null,null,null,null,null,null,null,null,null,20181125,"19:00:00",null,"xxx",null,null,null,null,null,null,null,null,null,null,null,null,null,null,null,null,null,null,null,20181125,"19:00:00",null,"xxx",null,null,null,null,null,null,null,null,"","X"]
[null,null,null,null,null,null,null,null,null,null,null,null,null,null,null,null,null,null,null,20181130,"18:00:00",null,"xxx",null,null,null,null,null,null,null,null,null,null,null,null,null,null,null,null,null,null,null,20181130,"18:00:00",null,"xxx",null,null,null,null,null,null,null,null,"",{"$f":"IF(AR43080=\"\",\"\",IF(AR43080=AR43079,IF(AS43080=AS43079,\"\",\"X\"),\"X\"))","v":"X"}]
[null,null,null,null,null,null,null,null,null,null,null,null,null,null,null,null,null,null,null,20181207,"10:00:00",null,"xxx",null,null,null,null,null,null,null,null,null,null,null,null,null,null,null,null,null,null,null,20181207,"10:00:00",null,"xxx",null,null,null,null,null,null,null,null,"","X"]
[null,null,null,null,null,null,null,null,null,null,null,null,null,null,null,null,null,null,null,20181212,"09:00:00",null,"xxx",null,null,null,null,null,null,null,null,null,null,null,null,null,null,null,null,null,null,null,20181212,"09:00:00",null,"xxx",null,null,null,null,null,null,null,null,"","X"]
[null,null,null,null,null,null,null,null,null,null,null,null,null,null,null,null,null,null,null,20181219,"01:00:00",null,"xxx",null,null,null,null,null,null,null,null,null,null,null,null,null,null,null,null,null,null,null,20181219,"01:00:00",null,"xxx",null,null,null,null,null,null,null,null,"","X"]
[null,null,null,null,null,null,null,null,null,null,null,null,null,null,null,null,null,null,null,20181224,"00:00:00",null,"xxx",null,null,null,null,null,null,null,null,null,null,null,null,null,null,null,null,null,null,null,20181224,"00:00:00",null,"xxx",null,null,null,null,null,null,null,null,"","X"]
[null,null,null,null,null,null,null,null,null,null,null,null,null,null,null,null,null,null,null,20181228,"23:00:00",null,"xxx",null,null,null,null,null,null,null,null,null,null,null,null,null,null,null,null,null,null,null,20181228,"23:00:00",null,"xxx",null,null,null,null,null,null,null,null,"","X"]
[null,null,null,null,null,null,null,null,null,null,null,null,null,null,null,null,null,null,null,20190103,"00:00:00",null,"xxx",null,null,null,null,null,null,null,null,null,null,null,null,null,null,null,null,null,null,null,20190103,"00:00:00",null,"xxx",null,null,null,null,null,null,null,null,"","X"]
[null,null,null,null,null,null,null,null,null,null,null,null,null,null,null,null,null,null,null,20190109,"15:00:00",null,"xxx",null,null,null,null,null,null,null,null,null,null,null,null,null,null,null,null,null,null,null,20190109,"15:00:00",null,"xxx",null,null,null,null,null,null,null,null,"","X"]
[null,null,null,null,null,null,null,null,null,null,null,null,null,null,null,null,null,null,null,20190114,"14:00:00",null,"xxx",null,null,null,null,null,null,null,null,null,null,null,null,null,null,null,null,null,null,null,20190114,"14:00:00",null,"xxx",null,null,null,null,null,null,null,null,"","X"]
[null,null,null,null,null,null,null,null,null,null,null,null,null,null,null,null,null,null,null,20190121,"06:00:00",null,"xxx",null,null,null,null,null,null,null,null,null,null,null,null,null,null,null,null,null,null,null,20190121,"06:00:00",null,"xxx",null,null,null,null,null,null,null,null,"","X"]
[null,null,null,null,null,null,null,null,null,null,null,null,null,null,null,null,null,null,null,20190126,"05:00:00",null,"xxx",null,null,null,null,null,null,null,null,null,null,null,null,null,null,null,null,null,null,null,20190126,"05:00:00",null,"xxx",null,null,null,null,null,null,null,null,"","X"]
[null,null,null,null,null,null,null,null,null,null,null,null,null,null,null,null,null,null,null,20190201,"21:00:00",null,"xxx",null,null,null,null,null,null,null,null,null,null,null,null,null,null,null,null,null,null,null,20190201,"21:00:00",null,"xxx",null,null,null,null,null,null,null,null,"","X"]
[null,null,null,null,null,null,null,null,null,null,null,null,null,null,null,null,null,null,null,20190206,"20:00:00",null,"xxx",null,null,null,null,null,null,null,null,null,null,null,null,null,null,null,null,null,null,null,20190206,"20:00:00",null,"xxx",null,null,null,null,null,null,null,null,"","X"]
[null,null,null,null,null,null,null,null,null,null,null,null,null,null,null,null,null,null,null,20190217,"14:00:00",null,"xxx",null,null,null,null,null,null,null,null,null,null,null,null,null,null,null,null,null,null,null,20190217,"14:00:00",null,"xxx",null,null,null,null,null,null,null,null,"","X"]
[null,null,null,null,null,null,null,null,null,null,null,null,null,null,null,null,null,null,null,20190218,"11:00:00",null,"xxx",null,null,null,null,null,null,null,null,null,null,null,null,null,null,null,null,null,null,null,20190218,"11:00:00",null,"xxx",null,null,null,null,null,null,null,null,"","X"]
[null,null,null,null,null,null,null,null,null,null,null,null,null,null,null,null,null,null,null,20190301,"05:00:00",null,"xxx",null,null,null,null,null,null,null,null,null,null,null,null,null,null,null,null,null,null,null,20190301,"05:00:00",null,"xxx",null,null,null,null,null,null,null,null,"","X"]
[null,null,null,null,null,null,null,null,null,null,null,null,null,null,null,null,null,null,null,20190306,"04:00:00",null,"xxx",null,null,null,null,null,null,null,null,null,null,null,null,null,null,null,null,null,null,null,20190306,"04:00:00",null,"xxx",null,null,null,null,null,null,null,null,"","X"]
[null,null,null,null,null,null,null,null,null,null,null,null,null,null,null,null,null,null,null,20190312,"20:00:00",null,"xxx",null,null,null,null,null,null,null,null,null,null,null,null,null,null,null,null,null,null,null,20190312,"20:00:00",null,"xxx",null,null,null,null,null,null,null,null,"","X"]
[null,null,null,null,null,null,null,null,null,null,null,null,null,null,null,null,null,null,null,20190317,"19:00:00",null,"xxx",null,null,null,null,null,null,null,null,null,null,null,null,null,null,null,null,null,null,null,20190317,"19:00:00",null,"xxx",null,null,null,null,null,null,null,null,"","X"]
[null,null,null,null,null,null,null,null,null,null,null,null,null,null,null,null,null,null,null,20190324,"11:00:00",null,"xxx",null,null,null,null,null,null,null,null,null,null,null,null,null,null,null,null,null,null,null,20190324,"11:00:00",null,"xxx",null,null,null,null,null,null,null,null,"","X"]
[null,null,null,null,null,null,null,null,null,null,null,null,null,null,null,null,null,null,null,20190329,"10:00:00",null,"xxx",null,null,null,null,null,null,null,null,null,null,null,null,null,null,null,null,null,null,null,20190329,"10:00:00",null,"xxx",null,null,null,null,null,null,null,null,"","X"]
[null,null,null,null,null,null,null,null,null,null,null,null,null,null,null,null,null,null,null,20190403,"09:00:00",null,"xxx",null,null,null,null,null,null,null,null,null,null,null,null,null,null,null,null,null,null,null,20190403,"09:00:00",null,"xxx",null,null,null,null,null,null,null,null,"","X"]
[null,null,null,null,null,null,null,null,null,null,null,null,null,null,null,null,null,null,null,20190410,"01:00:00",null,"xxx",null,null,null,null,null,null,null,null,null,null,null,null,null,null,null,null,null,null,null,20190410,"01:00:00",null,"xxx",null,null,null,null,null,null,null,null,"","X"]
[null,null,null,null,null,null,null,null,null,null,null,null,null,null,null,null,null,null,null,20190415,"00:00:00",null,"xxx",null,null,null,null,null,null,null,null,null,null,null,null,null,null,null,null,null,null,null,20190415,"00:00:00",null,"xxx",null,null,null,null,null,null,null,null,"","X"]
[null,null,null,null,null,null,null,null,null,null,null,null,null,null,null,null,null,null,null,20190421,"16:00:00",null,"xxx",null,null,null,null,null,null,null,null,null,null,null,null,null,null,null,null,null,null,null,20190421,"16:00:00",null,"xxx",null,null,null,null,null,null,null,null,"","X"]
[null,null,null,null,null,null,null,null,null,null,null,null,null,null,null,null,null,null,null,20190426,"15:00:00",null,"xxx",null,null,null,null,null,null,null,null,null,null,null,null,null,null,null,null,null,null,null,20190426,"15:00:00",null,"xxx",null,null,null,null,null,null,null,null,"","X"]
[null,null,null,null,null,null,null,null,null,null,null,null,null,null,null,null,null,null,null,20190501,"14:00:00",null,"xxx",null,null,null,null,null,null,null,null,null,null,null,null,null,null,null,null,null,null,null,20190501,"14:00:00",null,"xxx",null,null,null,null,null,null,null,null,"","X"]
[null,null,null,null,null,null,null,null,null,null,null,null,null,null,null,null,null,null,null,20190508,"06:00:00",null,"xxx",null,null,null,null,null,null,null,null,null,null,null,null,null,null,null,null,null,null,null,20190508,"06:00:00",null,"xxx",null,null,null,null,null,null,null,null,"","X"]
[null,null,null,null,null,null,null,null,null,null,null,null,null,null,null,null,null,null,null,20190513,"05:00:00",null,"xxx",null,null,null,null,null,null,null,null,null,null,null,null,null,null,null,null,null,null,null,20190513,"05:00:00",null,"xxx",null,null,null,null,null,null,null,null,"","X"]
[null,null,null,null,null,null,null,null,null,null,null,null,null,null,null,null,null,null,null,20190518,"04:00:00",null,"xxx",null,null,null,null,null,null,null,null,null,null,null,null,null,null,null,null,null,null,null,20190518,"04:00:00",null,"xxx",null,null,null,null,null,null,null,null,"","X"]
[null,null,null,null,null,null,null,null,null,null,null,null,null,null,null,null,null,null,null,20190524,"20:00:00",null,"xxx",null,null,null,null,null,null,null,null,null,null,null,null,null,null,null,null,null,null,null,20190524,"20:00:00",null,"xxx",null,null,null,null,null,null,null,null,"","X"]
[null,null,null,null,null,null,null,null,null,null,null,null,null,null,null,null,null,null,null,20190529,"19:00:00",null,"xxx",null,null,null,null,null,null,null,null,null,null,null,null,null,null,null,null,null,null,null,20190529,"19:00:00",null,"xxx",null,null,null,null,null,null,null,null,"","X"]
[null,null,null,null,null,null,null,null,null,null,null,null,null,null,null,null,null,null,null,20190605,"11:00:00",null,"xxx",null,null,null,null,null,null,null,null,null,null,null,null,null,null,null,null,null,null,null,20190605,"11:00:00",null,"xxx",null,null,null,null,null,null,null,null,"","X"]
[null,null,null,null,null,null,null,null,null,null,null,null,null,null,null,null,null,null,null,20190610,"10:00:00",null,"xxx",null,null,null,null,null,null,null,null,null,null,null,null,null,null,null,null,null,null,null,20190610,"10:00:00",null,"xxx",null,null,null,null,null,null,null,null,"","X"]
[null,null,null,null,null,null,null,null,null,null,null,null,null,null,null,null,null,null,null,20190615,"09:00:00",null,"xxx",null,null,null,null,null,null,null,null,null,null,null,null,null,null,null,null,null,null,null,20190615,"09:00:00",null,"xxx",null,null,null,null,null,null,null,null,"","X"]
[null,null,null,null,null,null,null,null,null,null,null,null,null,null,null,null,null,null,null,20190622,"01:00:00",null,"xxx",null,null,null,null,null,null,null,null,null,null,null,null,null,null,null,null,null,null,null,20190622,"01:00:00",null,"xxx",null,null,null,null,null,null,null,null,"","X"]
[null,null,null,null,null,null,null,null,null,null,null,null,null,null,null,null,null,null,null,20190627,"00:00:00",null,"xxx",null,null,null,null,null,null,null,null,null,null,null,null,null,null,null,null,null,null,null,20190627,"00:00:00",null,"xxx",null,null,null,null,null,null,null,null,"","X"]
[null,null,null,null,null,null,null,null,null,null,null,null,null,null,null,null,null,null,null,20190703,"16:00:00",null,"xxx",null,null,null,null,null,null,null,null,null,null,null,null,null,null,null,null,null,null,null,20190703,"16:00:00",null,"xxx",null,null,null,null,null,null,null,null,"","X"]
[null,null,null,null,null,null,null,null,null,null,null,null,null,null,null,null,null,null,null,20190708,"15:00:00",null,"xxx",null,null,null,null,null,null,null,null,null,null,null,null,null,null,null,null,null,null,null,20190708,"15:00:00",null,"xxx",null,null,null,null,null,null,null,null,"","X"]
[null,null,null,null,null,null,null,null,null,null,null,null,null,null,null,null,null,null,null,20190713,"14:00:00",null,"xxx",null,null,null,null,null,null,null,null,null,null,null,null,null,null,null,null,null,null,null,20190713,"14:00:00",null,"xxx",null,null,null,null,null,null,null,null,"","X"]
[null,null,null,null,null,null,null,null,null,null,null,null,null,null,null,null,null,null,null,20190720,"06:00:00",null,"xxx",null,null,null,null,null,null,null,null,null,null,null,null,null,null,null,null,null,null,null,20190720,"06:00:00",null,"xxx",null,null,null,null,null,null,null,null,"","X"]
[null,null,null,null,null,null,null,null,null,null,null,null,null,null,null,null,null,null,null,20190725,"05:00:00",null,"xxx",null,null,null,null,null,null,null,null,null,null,null,null,null,null,null,null,null,null,null,20190725,"05:00:00",null,"xxx",null,null,null,null,null,null,null,null,"","X"]
[null,null,null,null,null,null,null,null,null,null,null,null,null,null,null,null,null,null,null,20190804,"23:00:00",null,"xxx",null,null,null,null,null,null,null,null,null,null,null,null,null,null,null,null,null,null,null,20190804,"23:00:00",null,"xxx",null,null,null,null,null,null,null,null,"","X"]
[null,null,null,null,null,null,null,null,null,null,null,null,null,null,null,null,null,null,null,20190805,"20:00:00",null,"xxx",null,null,null,null,null,null,null,null,null,null,null,null,null,null,null,null,null,null,null,20190805,"20:00:00",null,"xxx",null,null,null,null,null,null,null,null,"","X"]
[null,null,null,null,null,null,null,null,null,null,null,null,null,null,null,null,null,null,null,20190816,"14:00:00",null,"xxx",null,null,null,null,null,null,null,null,null,null,null,null,null,null,null,null,null,null,null,20190816,"14:00:00",null,"xxx",null,null,null,null,null,null,null,null,"","X"]
[null,null,null,null,null,null,null,null,null,null,null,null,null,null,null,null,null,null,null,20190817,"11:00:00",null,"xxx",null,null,null,null,null,null,null,null,null,null,null,null,null,null,null,null,null,null,null,20190817,"11:00:00",null,"xxx",null,null,null,null,null,null,null,null,"","X"]
[null,null,null,null,null,null,null,null,null,null,null,null,null,null,null,null,null,null,null,20190828,"05:00:00",null,"xxx",null,null,null,null,null,null,null,null,null,null,null,null,null,null,null,null,null,null,null,20190828,"05:00:00",null,"xxx",null,null,null,null,null,null,null,null,"","X"]
[null,null,null,null,null,null,null,null,null,null,null,null,null,null,null,null,null,null,null,20190902,"04:00:00",null,"xxx",null,null,null,null,null,null,null,null,null,null,null,null,null,null,null,null,null,null,null,20190902,"04:00:00",null,"xxx",null,null,null,null,null,null,null,null,"","X"]
[null,null,null,null,null,null,null,null,null,null,null,null,null,null,null,null,null,null,null,20190908,"20:00:00",null,"xxx",null,null,null,null,null,null,null,null,null,null,null,null,null,null,null,null,null,null,null,20190908,"20:00:00",null,"xxx",null,null,null,null,null,null,null,null,"","X"]
[null,null,null,null,null,null,null,null,null,null,null,null,null,null,null,null,null,null,null,20190913,"19:00:00",null,"xxx",null,null,null,null,null,null,null,null,null,null,null,null,null,null,null,null,null,null,null,20190913,"19:00:00",null,"xxx",null,null,null,null,null,null,null,null,"","X"]
[null,null,null,null,null,null,null,null,null,null,null,null,null,null,null,null,null,null,null,20190918,"18:00:00",null,"xxx",null,null,null,null,null,null,null,null,null,null,null,null,null,null,null,null,null,null,null,20190918,"18:00:00",null,"xxx",null,null,null,null,null,null,null,null,"","X"]
[null,null,null,null,null,null,null,null,null,null,null,null,null,null,null,null,null,null,null,20190925,"10:00:00",null,"xxx",null,null,null,null,null,null,null,null,null,null,null,null,null,null,null,null,null,null,null,20190925,"10:00:00",null,"xxx",null,null,null,null,null,null,null,null,"",{"$f":"IF(AR50248=\"\",\"\",IF(AR50248=AR50247,IF(AS50248=AS50247,\"\",\"X\"),\"X\"))","v":"X"}]
[null,null,null,null,null,null,null,null,null,null,null,null,null,null,null,null,null,null,null,20190930,"09:00:00",null,"xxx",null,null,null,null,null,null,null,null,null,null,null,null,null,null,null,null,null,null,null,20190930,"09:00:00",null,"xxx",null,null,null,null,null,null,null,null,"","X"]
[null,null,null,null,null,null,null,null,null,null,null,null,null,null,null,null,null,null,null,20191007,"01:00:00",null,"xxx",null,null,null,null,null,null,null,null,null,null,null,null,null,null,null,null,null,null,null,20191007,"01:00:00",null,"xxx",null,null,null,null,null,null,null,null,"","X"]
[null,null,null,null,null,null,null,null,null,null,null,null,null,null,null,null,null,null,null,20191012,"00:00:00",null,"xxx",null,null,null,null,null,null,null,null,null,null,null,null,null,null,null,null,null,null,null,20191012,"00:00:00",null,"xxx",null,null,null,null,null,null,null,null,"","X"]
[null,null,null,null,null,null,null,null,null,null,null,null,null,null,null,null,null,null,null,20191016,"23:00:00",null,"xxx",null,null,null,null,null,null,null,null,null,null,null,null,null,null,null,null,null,null,null,20191016,"23:00:00",null,"xxx",null,null,null,null,null,null,null,null,"","X"]
[null,null,null,null,null,null,null,null,null,null,null,null,null,null,null,null,null,null,null,20191023,"15:00:00",null,"xxx",null,null,null,null,null,null,null,null,null,null,null,null,null,null,null,null,null,null,null,20191023,"15:00:00",null,"xxx",null,null,null,null,null,null,null,null,"","X"]
[null,null,null,null,null,null,null,null,null,null,null,null,null,null,null,null,null,null,null,20191028,"14:00:00",null,"xxx",null,null,null,null,null,null,null,null,null,null,null,null,null,null,null,null,null,null,null,20191028,"14:00:00",null,"xxx",null,null,null,null,null,null,null,null,"","X"]
[null,null,null,null,null,null,null,null,null,null,null,null,null,null,null,null,null,null,null,20191104,"06:00:00",null,"xxx",null,null,null,null,null,null,null,null,null,null,null,null,null,null,null,null,null,null,null,20191104,"06:00:00",null,"xxx",null,null,null,null,null,null,null,null,"","X"]
[null,null,null,null,null,null,null,null,null,null,null,null,null,null,null,null,null,null,null,20191109,"05:00:00",null,"xxx",null,null,null,null,null,null,null,null,null,null,null,null,null,null,null,null,null,null,null,20191109,"05:00:00",null,"xxx",null,null,null,null,null,null,null,null,"","X"]
[null,null,null,null,null,null,null,null,null,null,null,null,null,null,null,null,null,null,null,20191114,"04:00:00",null,"xxx",null,null,null,null,null,null,null,null,null,null,null,null,null,null,null,null,null,null,null,20191114,"04:00:00",null,"xxx",null,null,null,null,null,null,null,null,"","X"]
[null,null,null,null,null,null,null,null,null,null,null,null,null,null,null,null,null,null,null,20191120,"20:00:00",null,"xxx",null,null,null,null,null,null,null,null,null,null,null,null,null,null,null,null,null,null,null,20191120,"20:00:00",null,"xxx",null,null,null,null,null,null,null,null,"","X"]
[null,null,null,null,null,null,null,null,null,null,null,null,null,null,null,null,null,null,null,20191125,"19:00:00",null,"xxx",null,null,null,null,null,null,null,null,null,null,null,null,null,null,null,null,null,null,null,20191125,"19:00:00",null,"xxx",null,null,null,null,null,null,null,null,"","X"]
[null,null,null,null,null,null,null,null,null,null,null,null,null,null,null,null,null,null,null,20191130,"18:00:00",null,"xxx",null,null,null,null,null,null,null,null,null,null,null,null,null,null,null,null,null,null,null,20191130,"18:00:00",null,"xxx",null,null,null,null,null,null,null,null,"","X"]
[null,null,null,null,null,null,null,null,null,null,null,null,null,null,null,null,null,null,null,20191207,"10:00:00",null,"xxx",null,null,null,null,null,null,null,null,null,null,null,null,null,null,null,null,null,null,null,20191207,"10:00:00",null,"xxx",null,null,null,null,null,null,null,null,"","X"]
[null,null,null,null,null,null,null,null,null,null,null,null,null,null,null,null,null,null,null,20191212,"09:00:00",null,"xxx",null,null,null,null,null,null,null,null,null,null,null,null,null,null,null,null,null,null,null,20191212,"09:00:00",null,"xxx",null,null,null,null,null,null,null,null,"","X"]
[null,null,null,null,null,null,null,null,null,null,null,null,null,null,null,null,null,null,null,20191219,"01:00:00",null,"xxx",null,null,null,null,null,null,null,null,null,null,null,null,null,null,null,null,null,null,null,20191219,"01:00:00",null,"xxx",null,null,null,null,null,null,null,null,"","X"]
[null,null,null,null,null,null,null,null,null,null,null,null,null,null,null,null,null,null,null,20191224,"00:00:00",null,"xxx",null,null,null,null,null,null,null,null,null,null,null,null,null,null,null,null,null,null,null,20191224,"00:00:00",null,"xxx",null,null,null,null,null,null,null,null,"","X"]
[null,null,null,null,null,null,null,null,null,null,null,null,null,null,null,null,null,null,null,20200101,"05:00:00",null,"xxx",null,null,null,null,null,null,null,null,null,null,null,null,null,null,null,null,null,null,null,20200101,"05:00:00",null,"xxx",null,null,null,null,null,null,null,null,"","X"]
[null,null,null,null,null,null,null,null,null,null,null,null,null,null,null,null,null,null,null,20200104,"16:00:00",null,"xxx",null,null,null,null,null,null,null,null,null,null,null,null,null,null,null,null,null,null,null,20200104,"16:00:00",null,"xxx",null,null,null,null,null,null,null,null,"","X"]
[null,null,null,null,null,null,null,null,null,null,null,null,null,null,null,null,null,null,null,20200109,"15:00:00",null,"xxx",null,null,null,null,null,null,null,null,null,null,null,null,null,null,null,null,null,null,null,20200109,"15:00:00",null,"xxx",null,null,null,null,null,null,null,null,"","X"]
[null,null,null,null,null,null,null,null,null,null,null,null,null,null,null,null,null,null,null,20200116,"07:00:00",null,"xxx",null,null,null,null,null,null,null,null,null,null,null,null,null,null,null,null,null,null,null,20200116,"07:00:00",null,"xxx",null,null,null,null,null,null,null,null,"","X"]
[null,null,null,null,null,null,null,null,null,null,null,null,null,null,null,null,null,null,null,20200121,"06:00:00",null,"xxx",null,null,null,null,null,null,null,null,null,null,null,null,null,null,null,null,null,null,null,20200121,"06:00:00",null,"xxx",null,null,null,null,null,null,null,null,"","X"]
[null,null,null,null,null,null,null,null,null,null,null,null,null,null,null,null,null,null,null,20200126,"05:00:00",null,"xxx",null,null,null,null,null,null,null,null,null,null,null,null,null,null,null,null,null,null,null,20200126,"05:00:00",null,"xxx",null,null,null,null,null,null,null,null,"","X"]
[null,null,null,null,null,null,null,null,null,null,null,null,null,null,null,null,null,null,null,20200201,"21:00:00",null,"xxx",null,null,null,null,null,null,null,null,null,null,null,null,null,null,null,null,null,null,null,20200201,"21:00:00",null,"xxx",null,null,null,null,null,null,null,null,"","X"]
[null,null,null,null,null,null,null,null,null,null,null,null,null,null,null,null,null,null,null,20200206,"20:00:00",null,"xxx",null,null,null,null,null,null,null,null,null,null,null,null,null,null,null,null,null,null,null,20200206,"20:00:00",null,"xxx",null,null,null,null,null,null,null,null,"","X"]
[null,null,null,null,null,null,null,null,null,null,null,null,null,null,null,null,null,null,null,20200217,"14:00:00",null,"xxx",null,null,null,null,null,null,null,null,null,null,null,null,null,null,null,null,null,null,null,20200217,"14:00:00",null,"xxx",null,null,null,null,null,null,null,null,"","X"]
[null,null,null,null,null,null,null,null,null,null,null,null,null,null,null,null,null,null,null,20200218,"11:00:00",null,"xxx",null,null,null,null,null,null,null,null,null,null,null,null,null,null,null,null,null,null,null,20200218,"11:00:00",null,"xxx",null,null,null,null,null,null,null,null,"","X"]
[null,null,null,null,null,null,null,null,null,null,null,null,null,null,null,null,null,null,null,20200229,"05:00:00",null,"xxx",null,null,null,null,null,null,null,null,null,null,null,null,null,null,null,null,null,null,null,20200229,"05:00:00",null,"xxx",null,null,null,null,null,null,null,null,"","X"]
[null,null,null,null,null,null,null,null,null,null,null,null,null,null,null,null,null,null,null,20200301,"02:00:00",null,"xxx",null,null,null,null,null,null,null,null,null,null,null,null,null,null,null,null,null,null,null,20200301,"02:00:00",null,"xxx",null,null,null,null,null,null,null,null,"","X"]
[null,null,null,null,null,null,null,null,null,null,null,null,null,null,null,null,null,null,null,20200311,"20:00:00",null,"xxx",null,null,null,null,null,null,null,null,null,null,null,null,null,null,null,null,null,null,null,20200311,"20:00:00",null,"xxx",null,null,null,null,null,null,null,null,"","X"]
[null,null,null,null,null,null,null,null,null,null,null,null,null,null,null,null,null,null,null,20200316,"19:00:00",null,"xxx",null,null,null,null,null,null,null,null,null,null,null,null,null,null,null,null,null,null,null,20200316,"19:00:00",null,"xxx",null,null,null,null,null,null,null,null,"","X"]
[null,null,null,null,null,null,null,null,null,null,null,null,null,null,null,null,null,null,null,20200323,"11:00:00",null,"xxx",null,null,null,null,null,null,null,null,null,null,null,null,null,null,null,null,null,null,null,20200323,"11:00:00",null,"xxx",null,null,null,null,null,null,null,null,"","X"]
[null,null,null,null,null,null,null,null,null,null,null,null,null,null,null,null,null,null,null,20200328,"10:00:00",null,"xxx",null,null,null,null,null,null,null,null,null,null,null,null,null,null,null,null,null,null,null,20200328,"10:00:00",null,"xxx",null,null,null,null,null,null,null,null,"","X"]
[null,null,null,null,null,null,null,null,null,null,null,null,null,null,null,null,null,null,null,20200402,"09:00:00",null,"xxx",null,null,null,null,null,null,null,null,null,null,null,null,null,null,null,null,null,null,null,20200402,"09:00:00",null,"xxx",null,null,null,null,null,null,null,null,"","X"]
[null,null,null,null,null,null,null,null,null,null,null,null,null,null,null,null,null,null,null,20200409,"01:00:00",null,"xxx",null,null,null,null,null,null,null,null,null,null,null,null,null,null,null,null,null,null,null,20200409,"01:00:00",null,"xxx",null,null,null,null,null,null,null,null,"","X"]
[null,null,null,null,null,null,null,null,null,null,null,null,null,null,null,null,null,null,null,20200414,"00:00:00",null,"xxx",null,null,null,null,null,null,null,null,null,null,null,null,null,null,null,null,null,null,null,20200414,"00:00:00",null,"xxx",null,null,null,null,null,null,null,null,"","X"]
[null,null,null,null,null,null,null,null,null,null,null,null,null,null,null,null,null,null,null,20200420,"16:00:00",null,"xxx",null,null,null,null,null,null,null,null,null,null,null,null,null,null,null,null,null,null,null,20200420,"16:00:00",null,"xxx",null,null,null,null,null,null,null,null,"","X"]
[null,null,null,null,null,null,null,null,null,null,null,null,null,null,null,null,null,null,null,20200425,"15:00:00",null,"xxx",null,null,null,null,null,null,null,null,null,null,null,null,null,null,null,null,null,null,null,20200425,"15:00:00",null,"xxx",null,null,null,null,null,null,null,null,"","X"]
[null,null,null,null,null,null,null,null,null,null,null,null,null,null,null,null,null,null,null,20200430,"14:00:00",null,"xxx",null,null,null,null,null,null,null,null,null,null,null,null,null,null,null,null,null,null,null,20200430,"14:00:00",null,"xxx",null,null,null,null,null,null,null,null,"","X"]
[null,null,null,null,null,null,null,null,null,null,null,null,null,null,null,null,null,null,null,20200507,"06:00:00",null,"xxx",null,null,null,null,null,null,null,null,null,null,null,null,null,null,null,null,null,null,null,20200507,"06:00:00",null,"xxx",null,null,null,null,null,null,null,null,"","X"]
[null,null,null,null,null,null,null,null,null,null,null,null,null,null,null,null,null,null,null,20200512,"05:00:00",null,"xxx",null,null,null,null,null,null,null,null,null,null,null,null,null,null,null,null,null,null,null,20200512,"05:00:00",null,"xxx",null,null,null,null,null,null,null,null,"","X"]
[null,null,null,null,null,null,null,null,null,null,null,null,null,null,null,null,null,null,null,20200518,"21:00:00",null,"xxx",null,null,null,null,null,null,null,null,null,null,null,null,null,null,null,null,null,null,null,20200518,"21:00:00",null,"xxx",null,null,null,null,null,null,null,null,"","X"]
[null,null,null,null,null,null,null,null,null,null,null,null,null,null,null,null,null,null,null,20200523,"20:00:00",null,"xxx",null,null,null,null,null,null,null,null,null,null,null,null,null,null,null,null,null,null,null,20200523,"20:00:00",null,"xxx",null,null,null,null,null,null,null,null,"","X"]
[null,null,null,null,null,null,null,null,null,null,null,null,null,null,null,null,null,null,null,20200528,"19:00:00",null,"xxx",null,null,null,null,null,null,null,null,null,null,null,null,null,null,null,null,null,null,null,20200528,"19:00:00",null,"xxx",null,null,null,null,null,null,null,null,"","X"]
[null,null,null,null,null,null,null,null,null,null,null,null,null,null,null,null,null,null,null,20200604,"11:00:00",null,"xxx",null,null,null,null,null,null,null,null,null,null,null,null,null,null,null,null,null,null,null,20200604,"11:00:00",null,"xxx",null,null,null,null,null,null,null,null,"","X"]
[null,null,null,null,null,null,null,null,null,null,null,null,null,null,null,null,null,null,null,20200609,"10:00:00",null,"xxx",null,null,null,null,null,null,null,null,null,null,null,null,null,null,null,null,null,null,null,20200609,"10:00:00",null,"xxx",null,null,null,null,null,null,null,null,"","X"]
[null,null,null,null,null,null,null,null,null,null,null,null,null,null,null,null,null,null,null,20200614,"09:00:00",null,"xxx",null,null,null,null,null,null,null,null,null,null,null,null,null,null,null,null,null,null,null,20200614,"09:00:00",null,"xxx",null,null,null,null,null,null,null,null,"","X"]
[null,null,null,null,null,null,null,null,null,null,null,null,null,null,null,null,null,null,null,20200621,"01:00:00",null,"xxx",null,null,null,null,null,null,null,null,null,null,null,null,null,null,null,null,null,null,null,20200621,"01:00:00",null,"xxx",null,null,null,null,null,null,null,null,"","X"]
[null,null,null,null,null,null,null,null,null,null,null,null,null,null,null,null,null,null,null,20200626,"00:00:00",null,"xxx",null,null,null,null,null,null,null,null,null,null,null,null,null,null,null,null,null,null,null,20200626,"00:00:00",null,"xxx",null,null,null,null,null,null,null,null,"","X"]
[null,null,null,null,null,null,null,null,null,null,null,null,null,null,null,null,null,null,null,20200702,"16:00:00",null,"xxx",null,null,null,null,null,null,null,null,null,null,null,null,null,null,null,null,null,null,null,20200702,"16:00:00",null,"xxx",null,null,null,null,null,null,null,null,"","X"]
[null,null,null,null,null,null,null,null,null,null,null,null,null,null,null,null,null,null,null,20200707,"15:00:00",null,"xxx",null,null,null,null,null,null,null,null,null,null,null,null,null,null,null,null,null,null,null,20200707,"15:00:00",null,"xxx",null,null,null,null,null,null,null,null,"","X"]
[null,null,null,null,null,null,null,null,null,null,null,null,null,null,null,null,null,null,null,20200712,"14:00:00",null,"xxx",null,null,null,null,null,null,null,null,null,null,null,null,null,null,null,null,null,null,null,20200712,"14:00:00",null,"xxx",null,null,null,null,null,null,null,null,"","X"]
[null,null,null,null,null,null,null,null,null,null,null,null,null,null,null,null,null,null,null,20200719,"06:00:00",null,"xxx",null,null,null,null,null,null,null,null,null,null,null,null,null,null,null,null,null,null,null,20200719,"06:00:00",null,"xxx",null,null,null,null,null,null,null,null,"","X"]
[null,null,null,null,null,null,null,null,null,null,null,null,null,null,null,null,null,null,null,20200724,"05:00:00",null,"xxx",null,null,null,null,null,null,null,null,null,null,null,null,null,null,null,null,null,null,null,20200724,"05:00:00",null,"xxx",null,null,null,null,null,null,null,null,"","X"]
[null,null,null,null,null,null,null,null,null,null,null,null,null,null,null,null,null,null,null,20200803,"23:00:00",null,"xxx",null,null,null,null,null,null,null,null,null,null,null,null,null,null,null,null,null,null,null,20200803,"23:00:00",null,"xxx",null,null,null,null,null,null,null,null,"","X"]
[null,null,null,null,null,null,null,null,null,null,null,null,null,null,null,null,null,null,null,20200804,"20:00:00",null,"xxx",null,null,null,null,null,null,null,null,null,null,null,null,null,null,null,null,null,null,null,20200804,"20:00:00",null,"xxx",null,null,null,null,null,null,null,null,"","X"]
[null,null,null,null,null,null,null,null,null,null,null,null,null,null,null,null,null,null,null,20200815,"14:00:00",null,"xxx",null,null,null,null,null,null,null,null,null,null,null,null,null,null,null,null,null,null,null,20200815,"14:00:00",null,"xxx",null,null,null,null,null,null,null,null,"","X"]
[null,null,null,null,null,null,null,null,null,null,null,null,null,null,null,null,null,null,null,20200816,"11:00:00",null,"xxx",null,null,null,null,null,null,null,null,null,null,null,null,null,null,null,null,null,null,null,20200816,"11:00:00",null,"xxx",null,null,null,null,null,null,null,null,"","X"]
[null,null,null,null,null,null,null,null,null,null,null,null,null,null,null,null,null,null,null,20200821,"10:00:00",null,"xxx",null,null,null,null,null,null,null,null,null,null,null,null,null,null,null,null,null,null,null,20200821,"10:00:00",null,"xxx",null,null,null,null,null,null,null,null,"","X"]
[null,null,null,null,null,null,null,null,null,null,null,null,null,null,null,null,null,null,null,20200901,"04:00:00",null,"xxx",null,null,null,null,null,null,null,null,null,null,null,null,null,null,null,null,null,null,null,20200901,"04:00:00",null,"xxx",null,null,null,null,null,null,null,null,"","X"]
[null,null,null,null,null,null,null,null,null,null,null,null,null,null,null,null,null,null,null,20200902,"01:00:00",null,"xxx",null,null,null,null,null,null,null,null,null,null,null,null,null,null,null,null,null,null,null,20200902,"01:00:00",null,"xxx",null,null,null,null,null,null,null,null,"","X"]
[null,null,null,null,null,null,null,null,null,null,null,null,null,null,null,null,null,null,null,20200912,"19:00:00",null,"xxx",null,null,null,null,null,null,null,null,null,null,null,null,null,null,null,null,null,null,null,20200912,"19:00:00",null,"xxx",null,null,null,null,null,null,null,null,"","X"]
[null,null,null,null,null,null,null,null,null,null,null,null,null,null,null,null,null,null,null,20200913,"16:00:00",null,"xxx",null,null,null,null,null,null,null,null,null,null,null,null,null,null,null,null,null,null,null,20200913,"16:00:00",null,"xxx",null,null,null,null,null,null,null,null,"","X"]
[null,null,null,null,null,null,null,null,null,null,null,null,null,null,null,null,null,null,null,20200924,"10:00:00",null,"xxx",null,null,null,null,null,null,null,null,null,null,null,null,null,null,null,null,null,null,null,20200924,"10:00:00",null,"xxx",null,null,null,null,null,null,null,null,"","X"]
[null,null,null,null,null,null,null,null,null,null,null,null,null,null,null,null,null,null,null,20200929,"09:00:00",null,"xxx",null,null,null,null,null,null,null,null,null,null,null,null,null,null,null,null,null,null,null,20200929,"09:00:00",null,"xxx",null,null,null,null,null,null,null,null,"","X"]
[null,null,null,null,null,null,null,null,null,null,null,null,null,null,null,null,null,null,null,20201006,"01:00:00",null,"xxx",null,null,null,null,null,null,null,null,null,null,null,null,null,null,null,null,null,null,null,20201006,"01:00:00",null,"xxx",null,null,null,null,null,null,null,null,"","X"]
[null,null,null,null,null,null,null,null,null,null,null,null,null,null,null,null,null,null,null,20201011,"00:00:00",null,"xxx",null,null,null,null,null,null,null,null,null,null,null,null,null,null,null,null,null,null,null,20201011,"00:00:00",null,"xxx",null,null,null,null,null,null,null,null,"","X"]
[null,null,null,null,null,null,null,null,null,null,null,null,null,null,null,null,null,null,null,20201015,"23:00:00",null,"xxx",null,null,null,null,null,null,null,null,null,null,null,null,null,null,null,null,null,null,null,20201015,"23:00:00",null,"xxx",null,null,null,null,null,null,null,null,"","X"]
[null,null,null,null,null,null,null,null,null,null,null,null,null,null,null,null,null,null,null,20201022,"15:00:00",null,"xxx",null,null,null,null,null,null,null,null,null,null,null,null,null,null,null,null,null,null,null,20201022,"15:00:00",null,"xxx",null,null,null,null,null,null,null,null,"","X"]
[null,null,null,null,null,null,null,null,null,null,null,null,null,null,null,null,null,null,null,20201027,"14:00:00",null,"xxx",null,null,null,null,null,null,null,null,null,null,null,null,null,null,null,null,null,null,null,20201027,"14:00:00",null,"xxx",null,null,null,null,null,null,null,null,"","X"]
[null,null,null,null,null,null,null,null,null,null,null,null,null,null,null,null,null,null,null,20201103,"06:00:00",null,"xxx",null,null,null,null,null,null,null,null,null,null,null,null,null,null,null,null,null,null,null,20201103,"06:00:00",null,"xxx",null,null,null,null,null,null,null,null,"","X"]
[null,null,null,null,null,null,null,null,null,null,null,null,null,null,null,null,null,null,null,20201108,"05:00:00",null,"xxx",null,null,null,null,null,null,null,null,null,null,null,null,null,null,null,null,null,null,null,20201108,"05:00:00",null,"xxx",null,null,null,null,null,null,null,null,"","X"]
[null,null,null,null,null,null,null,null,null,null,null,null,null,null,null,null,null,null,null,20201113,"04:00:00",null,"xxx",null,null,null,null,null,null,null,null,null,null,null,null,null,null,null,null,null,null,null,20201113,"04:00:00",null,"xxx",null,null,null,null,null,null,null,null,"","X"]
[null,null,null,null,null,null,null,null,null,null,null,null,null,null,null,null,null,null,null,20201119,"20:00:00",null,"xxx",null,null,null,null,null,null,null,null,null,null,null,null,null,null,null,null,null,null,null,20201119,"20:00:00",null,"xxx",null,null,null,null,null,null,null,null,"","X"]
[null,null,null,null,null,null,null,null,null,null,null,null,null,null,null,null,null,null,null,20201124,"19:00:00",null,"xxx",null,null,null,null,null,null,null,null,null,null,null,null,null,null,null,null,null,null,null,20201124,"19:00:00",null,"xxx",null,null,null,null,null,null,null,null,"","X"]
[null,null,null,null,null,null,null,null,null,null,null,null,null,null,null,null,null,null,null,20201201,"11:00:00",null,"xxx",null,null,null,null,null,null,null,null,null,null,null,null,null,null,null,null,null,null,null,20201201,"11:00:00",null,"xxx",null,null,null,null,null,null,null,null,"","X"]
[null,null,null,null,null,null,null,null,null,null,null,null,null,null,null,null,null,null,null,20201206,"10:00:00",null,"xxx",null,null,null,null,null,null,null,null,null,null,null,null,null,null,null,null,null,null,null,20201206,"10:00:00",null,"xxx",null,null,null,null,null,null,null,null,"","X"]
[null,null,null,null,null,null,null,null,null,null,null,null,null,null,null,null,null,null,null,20201211,"09:00:00",null,"xxx",null,null,null,null,null,null,null,null,null,null,null,null,null,null,null,null,null,null,null,20201211,"09:00:00",null,"xxx",null,null,null,null,null,null,null,null,"","X"]
[null,null,null,null,null,null,null,null,null,null,null,null,null,null,null,null,null,null,null,20201218,"01:00:00",null,"xxx",null,null,null,null,null,null,null,null,null,null,null,null,null,null,null,null,null,null,null,20201218,"01:00:00",null,"xxx",null,null,null,null,null,null,null,null,"","X"]
[null,null,null,null,null,null,null,null,null,null,null,null,null,null,null,null,null,null,null,20201223,"00:00:00",null,"xxx",null,null,null,null,null,null,null,null,null,null,null,null,null,null,null,null,null,null,null,20201223,"00:00:00",null,"xxx",null,null,null,null,null,null,null,null,"","X"]
[null,null,null,null,null,null,null,null,null,null,null,null,null,null,null,null,null,null,null,20201231,"22:00:00",null,"xxx",null,null,null,null,null,null,null,null,null,null,null,null,null,null,null,null,null,null,null,20201231,"22:00:00",null,"xxx",null,null,null,null,null,null,null,null,"","X"]
[null,null,null,null,null,null,null,null,null,null,null,null,null,null,null,null,null,null,null,20210103,"16:00:00",null,"xxx",null,null,null,null,null,null,null,null,null,null,null,null,null,null,null,null,null,null,null,20210103,"16:00:00",null,"xxx",null,null,null,null,null,null,null,null,"","X"]
[null,null,null,null,null,null,null,null,null,null,null,null,null,null,null,null,null,null,null,20210108,"15:00:00",null,"xxx",null,null,null,null,null,null,null,null,null,null,null,null,null,null,null,null,null,null,null,20210108,"15:00:00",null,"xxx",null,null,null,null,null,null,null,null,"","X"]
[null,null,null,null,null,null,null,null,null,null,null,null,null,null,null,null,null,null,null,20210115,"07:00:00",null,"xxx",null,null,null,null,null,null,null,null,null,null,null,null,null,null,null,null,null,null,null,20210115,"07:00:00",null,"xxx",null,null,null,null,null,null,null,null,"","X"]
[null,null,null,null,null,null,null,null,null,null,null,null,null,null,null,null,null,null,null,20210120,"06:00:00",null,"xxx",null,null,null,null,null,null,null,null,null,null,null,null,null,null,null,null,null,null,null,20210120,"06:00:00",null,"xxx",null,null,null,null,null,null,null,null,"","X"]
[null,null,null,null,null,null,null,null,null,null,null,null,null,null,null,null,null,null,null,20210125,"05:00:00",null,"xxx",null,null,null,null,null,null,null,null,null,null,null,null,null,null,null,null,null,null,null,20210125,"05:00:00",null,"xxx",null,null,null,null,null,null,null,null,"","X"]
[null,null,null,null,null,null,null,null,null,null,null,null,null,null,null,null,null,null,null,20210131,"21:00:00",null,"xxx",null,null,null,null,null,null,null,null,null,null,null,null,null,null,null,null,null,null,null,20210131,"21:00:00",null,"xxx",null,null,null,null,null,null,null,null,"","X"]
[null,null,null,null,null,null,null,null,null,null,null,null,null,null,null,null,null,null,null,20210205,"20:00:00",null,"xxx",null,null,null,null,null,null,null,null,null,null,null,null,null,null,null,null,null,null,null,null,null,null,null,null,null,null,null,null,null,null,null,"",""]
[null,null,null,null,null,null,null,null,null,null,null,null,null,null,null,null,null,null,null,20210216,"14:00:00",null,"xxx",null,null,null,null,null,null,null,null,null,null,null,null,null,null,null,null,null,null,null,null,null,null,null,null,null,null,null,null,null,null,null,"",""]
[null,null,null,null,null,null,null,null,null,null,null,null,null,null,null,null,null,null,null,20210217,"11:00:00",null,"xxx",null,null,null,null,null,null,null,null,null,null,null,null,null,null,null,null,null,null,null,null,null,null,null,null,null,null,null,null,null,null,null,"",""]
[null,null,null,null,null,null,null,null,null,null,null,null,null,null,null,null,null,null,null,20210228,"05:00:00",null,"xxx",null,null,null,null,null,null,null,null,null,null,null,null,null,null,null,null,null,null,null,null,null,null,null,null,null,null,null,null,null,null,null,"",""]
[null,null,null,null,null,null,null,null,null,null,null,null,null,null,null,null,null,null,null,20210301,"02:00:00",null,"xxx",null,null,null,null,null,null,null,null,null,null,null,null,null,null,null,null,null,null,null,null,null,null,null,null,null,null,null,null,null,null,null,"",{"$f":"IF(AR62792=\"\",\"\",IF(AR62792=AR62791,IF(AS62792=AS62791,\"\",\"X\"),\"X\"))","v":""}]
[null,null,null,null,null,null,null,null,null,null,null,null,null,null,null,null,null,null,null,20210311,"20:00:00",null,"xxx",null,null,null,null,null,null,null,null,null,null,null,null,null,null,null,null,null,null,null,null,null,null,null,null,null,null,null,null,null,null,null,"",""]
[null,null,null,null,null,null,null,null,null,null,null,null,null,null,null,null,null,null,null,20210316,"19:00:00",null,"xxx",null,null,null,null,null,null,null,null,null,null,null,null,null,null,null,null,null,null,null,null,null,null,null,null,null,null,null,null,null,null,null,"",""]
[null,null,null,null,null,null,null,null,null,null,null,null,null,null,null,null,null,null,null,20210323,"11:00:00",null,"xxx",null,null,null,null,null,null,null,null,null,null,null,null,null,null,null,null,null,null,null,null,null,null,null,null,null,null,null,null,null,null,null,"",""]
[null,null,null,null,null,null,null,null,null,null,null,null,null,null,null,null,null,null,null,20210328,"10:00:00",null,"xxx",null,null,null,null,null,null,null,null,null,null,null,null,null,null,null,null,null,null,null,null,null,null,null,null,null,null,null,null,null,null,null,"",""]
[null,null,null,null,null,null,null,null,null,null,null,null,null,null,null,null,null,null,null,20210404,"02:00:00",null,"xxx",null,null,null,null,null,null,null,null,null,null,null,null,null,null,null,null,null,null,null,null,null,null,null,null,null,null,null,null,null,null,null,"",""]
[null,null,null,null,null,null,null,null,null,null,null,null,null,null,null,null,null,null,null,20210409,"01:00:00",null,"xxx",null,null,null,null,null,null,null,null,null,null,null,null,null,null,null,null,null,null,null,null,null,null,null,null,null,null,null,null,null,null,null,"",""]
[null,null,null,null,null,null,null,null,null,null,null,null,null,null,null,null,null,null,null,20210414,"00:00:00",null,"xxx",null,null,null,null,null,null,null,null,null,null,null,null,null,null,null,null,null,null,null,null,null,null,null,null,null,null,null,null,null,null,null,"",""]
[null,null,null,null,null,null,null,null,null,null,null,null,null,null,null,null,null,null,null,20210420,"16:00:00",null,"xxx",null,null,null,null,null,null,null,null,null,null,null,null,null,null,null,null,null,null,null,null,null,null,null,null,null,null,null,null,null,null,null,"",""]
[null,null,null,null,null,null,null,null,null,null,null,null,null,null,null,null,null,null,null,20210425,"15:00:00",null,"xxx",null,null,null,null,null,null,null,null,null,null,null,null,null,null,null,null,null,null,null,null,null,null,null,null,null,null,null,null,null,null,null,"",""]
[null,null,null,null,null,null,null,null,null,null,null,null,null,null,null,null,null,null,null,20210430,"14:00:00",null,"xxx",null,null,null,null,null,null,null,null,null,null,null,null,null,null,null,null,null,null,null,null,null,null,null,null,null,null,null,null,null,null,null,"",""]
[null,null,null,null,null,null,null,null,null,null,null,null,null,null,null,null,null,null,null,20210507,"06:00:00",null,"xxx",null,null,null,null,null,null,null,null,null,null,null,null,null,null,null,null,null,null,null,null,null,null,null,null,null,null,null,null,null,null,null,"",""]
[null,null,null,null,null,null,null,null,null,null,null,null,null,null,null,null,null,null,null,20210512,"05:00:00",null,"xxx",null,null,null,null,null,null,null,null,null,null,null,null,null,null,null,null,null,null,null,null,null,null,null,null,null,null,null,null,null,null,null,"",""]
[null,null,null,null,null,null,null,null,null,null,null,null,null,null,null,null,null,null,null,20210518,"21:00:00",null,"xxx",null,null,null,null,null,null,null,null,null,null,null,null,null,null,null,null,null,null,null,null,null,null,null,null,null,null,null,null,null,null,null,"",""]
[null,null,null,null,null,null,null,null,null,null,null,null,null,null,null,null,null,null,null,20210523,"20:00:00",null,"xxx",null,null,null,null,null,null,null,null,null,null,null,null,null,null,null,null,null,null,null,null,null,null,null,null,null,null,null,null,null,null,null,"",""]
[null,null,null,null,null,null,null,null,null,null,null,null,null,null,null,null,null,null,null,20210528,"19:00:00",null,"xxx",null,null,null,null,null,null,null,null,null,null,null,null,null,null,null,null,null,null,null,null,null,null,null,null,null,null,null,null,null,null,null,"",""]
[null,null,null,null,null,null,null,null,null,null,null,null,null,null,null,null,null,null,null,20210604,"11:00:00",null,"xxx",null,null,null,null,null,null,null,null,null,null,null,null,null,null,null,null,null,null,null,null,null,null,null,null,null,null,null,null,null,null,null,"",""]
[null,null,null,null,null,null,null,null,null,null,null,null,null,null,null,null,null,null,null,20210609,"10:00:00",null,"xxx",null,null,null,null,null,null,null,null,null,null,null,null,null,null,null,null,null,null,null,null,null,null,null,null,null,null,null,null,null,null,null,"",""]
[null,null,null,null,null,null,null,null,null,null,null,null,null,null,null,null,null,null,null,20210614,"09:00:00",null,"xxx",null,null,null,null,null,null,null,null,null,null,null,null,null,null,null,null,null,null,null,null,null,null,null,null,null,null,null,null,null,null,null,"",""]
[null,null,null,null,null,null,null,null,null,null,null,null,null,null,null,null,null,null,null,20210621,"01:00:00",null,"xxx",null,null,null,null,null,null,null,null,null,null,null,null,null,null,null,null,null,null,null,null,null,null,null,null,null,null,null,null,null,null,null,"",""]
[null,null,null,null,null,null,null,null,null,null,null,null,null,null,null,null,null,null,null,20210626,"00:00:00",null,"xxx",null,null,null,null,null,null,null,null,null,null,null,null,null,null,null,null,null,null,null,null,null,null,null,null,null,null,null,null,null,null,null,"",""]
[null,null,null,null,null,null,null,null,null,null,null,null,null,null,null,null,null,null,null,20210702,"16:00:00",null,"xxx",null,null,null,null,null,null,null,null,null,null,null,null,null,null,null,null,null,null,null,null,null,null,null,null,null,null,null,null,null,null,null,"",""]
[null,null,null,null,null,null,null,null,null,null,null,null,null,null,null,null,null,null,null,20210707,"15:00:00",null,"xxx",null,null,null,null,null,null,null,null,null,null,null,null,null,null,null,null,null,null,null,null,null,null,null,null,null,null,null,null,null,null,null,"",""]
[null,null,null,null,null,null,null,null,null,null,null,null,null,null,null,null,null,null,null,20210712,"14:00:00",null,"xxx",null,null,null,null,null,null,null,null,null,null,null,null,null,null,null,null,null,null,null,null,null,null,null,null,null,null,null,null,null,null,null,"",""]
[null,null,null,null,null,null,null,null,null,null,null,null,null,null,null,null,null,null,null,20210719,"06:00:00",null,"xxx",null,null,null,null,null,null,null,null,null,null,null,null,null,null,null,null,null,null,null,null,null,null,null,null,null,null,null,null,null,null,null,"",""]
[null,null,null,null,null,null,null,null,null,null,null,null,null,null,null,null,null,null,null,20210724,"05:00:00",null,"xxx",null,null,null,null,null,null,null,null,null,null,null,null,null,null,null,null,null,null,null,null,null,null,null,null,null,null,null,null,null,null,null,"",""]
[null,null,null,null,null,null,null,null,null,null,null,null,null,null,null,null,null,null,null,20210730,"21:00:00",null,"xxx",null,null,null,null,null,null,null,null,null,null,null,null,null,null,null,null,null,null,null,null,null,null,null,null,null,null,null,null,null,null,null,"",""]
[null,null,null,null,null,null,null,null,null,null,null,null,null,null,null,null,null,null,null,20210804,"20:00:00",null,"xxx",null,null,null,null,null,null,null,null,null,null,null,null,null,null,null,null,null,null,null,null,null,null,null,null,null,null,null,null,null,null,null,"",""]
[null,null,null,null,null,null,null,null,null,null,null,null,null,null,null,null,null,null,null,20210809,"19:00:00",null,"xxx",null,null,null,null,null,null,null,null,null,null,null,null,null,null,null,null,null,null,null,null,null,null,null,null,null,null,null,null,null,null,null,"",""]
[null,null,null,null,null,null,null,null,null,null,null,null,null,null,null,null,null,null,null,20210816,"11:00:00",null,"xxx",null,null,null,null,null,null,null,null,null,null,null,null,null,null,null,null,null,null,null,null,null,null,null,null,null,null,null,null,null,null,null,"",""]
[null,null,null,null,null,null,null,null,null,null,null,null,null,null,null,null,null,null,null,20210821,"10:00:00",null,"xxx",null,null,null,null,null,null,null,null,null,null,null,null,null,null,null,null,null,null,null,null,null,null,null,null,null,null,null,null,null,null,null,"",{"$f":"IF(AR66952=\"\",\"\",IF(AR66952=AR66951,IF(AS66952=AS66951,\"\",\"X\"),\"X\"))","v":""}]
[null,null,null,null,null,null,null,null,null,null,null,null,null,null,null,null,null,null,null,20210901,"04:00:00",null,"xxx",null,null,null,null,null,null,null,null,null,null,null,null,null,null,null,null,null,null,null,null,null,null,null,null,null,null,null,null,null,null,null,"",""]
[null,null,null,null,null,null,null,null,null,null,null,null,null,null,null,null,null,null,null,20210902,"01:00:00",null,"xxx",null,null,null,null,null,null,null,null,null,null,null,null,null,null,null,null,null,null,null,null,null,null,null,null,null,null,null,null,null,null,null,"",""]
[null,null,null,null,null,null,null,null,null,null,null,null,null,null,null,null,null,null,null,20210912,"19:00:00",null,"xxx",null,null,null,null,null,null,null,null,null,null,null,null,null,null,null,null,null,null,null,null,null,null,null,null,null,null,null,null,null,null,null,"",""]
[null,null,null,null,null,null,null,null,null,null,null,null,null,null,null,null,null,null,null,20210913,"16:00:00",null,"xxx",null,null,null,null,null,null,null,null,null,null,null,null,null,null,null,null,null,null,null,null,null,null,null,null,null,null,null,null,null,null,null,"",""]
[null,null,null,null,null,null,null,null,null,null,null,null,null,null,null,null,null,null,null,20210924,"10:00:00",null,"xxx",null,null,null,null,null,null,null,null,null,null,null,null,null,null,null,null,null,null,null,null,null,null,null,null,null,null,null,null,null,null,null,"",""]
[null,null,null,null,null,null,null,null,null,null,null,null,null,null,null,null,null,null,null,20210929,"09:00:00",null,"xxx",null,null,null,null,null,null,null,null,null,null,null,null,null,null,null,null,null,null,null,null,null,null,null,null,null,null,null,null,null,null,null,"",""]
[null,null,null,null,null,null,null,null,null,null,null,null,null,null,null,null,null,null,null,20211006,"01:00:00",null,"xxx",null,null,null,null,null,null,null,null,null,null,null,null,null,null,null,null,null,null,null,null,null,null,null,null,null,null,null,null,null,null,null,"",""]
[null,null,null,null,null,null,null,null,null,null,null,null,null,null,null,null,null,null,null,20211011,"00:00:00",null,"xxx",null,null,null,null,null,null,null,null,null,null,null,null,null,null,null,null,null,null,null,null,null,null,null,null,null,null,null,null,null,null,null,"",""]
[null,null,null,null,null,null,null,null,null,null,null,null,null,null,null,null,null,null,null,20211017,"16:00:00",null,"xxx",null,null,null,null,null,null,null,null,null,null,null,null,null,null,null,null,null,null,null,null,null,null,null,null,null,null,null,null,null,null,null,"",""]
[null,null,null,null,null,null,null,null,null,null,null,null,null,null,null,null,null,null,null,20211022,"15:00:00",null,"xxx",null,null,null,null,null,null,null,null,null,null,null,null,null,null,null,null,null,null,null,null,null,null,null,null,null,null,null,null,null,null,null,"",""]
[null,null,null,null,null,null,null,null,null,null,null,null,null,null,null,null,null,null,null,20211027,"14:00:00",null,"xxx",null,null,null,null,null,null,null,null,null,null,null,null,null,null,null,null,null,null,null,null,null,null,null,null,null,null,null,null,null,null,null,"",""]
[null,null,null,null,null,null,null,null,null,null,null,null,null,null,null,null,null,null,null,20211103,"06:00:00",null,"xxx",null,null,null,null,null,null,null,null,null,null,null,null,null,null,null,null,null,null,null,null,null,null,null,null,null,null,null,null,null,null,null,"",""]
[null,null,null,null,null,null,null,null,null,null,null,null,null,null,null,null,null,null,null,20211108,"05:00:00",null,"xxx",null,null,null,null,null,null,null,null,null,null,null,null,null,null,null,null,null,null,null,null,null,null,null,null,null,null,null,null,null,null,null,"",""]
[null,null,null,null,null,null,null,null,null,null,null,null,null,null,null,null,null,null,null,20211113,"04:00:00",null,"xxx",null,null,null,null,null,null,null,null,null,null,null,null,null,null,null,null,null,null,null,null,null,null,null,null,null,null,null,null,null,null,null,"",""]
[null,null,null,null,null,null,null,null,null,null,null,null,null,null,null,null,null,null,null,20211119,"20:00:00",null,"xxx",null,null,null,null,null,null,null,null,null,null,null,null,null,null,null,null,null,null,null,null,null,null,null,null,null,null,null,null,null,null,null,"",""]
[null,null,null,null,null,null,null,null,null,null,null,null,null,null,null,null,null,null,null,20211124,"19:00:00",null,"xxx",null,null,null,null,null,null,null,null,null,null,null,null,null,null,null,null,null,null,null,null,null,null,null,null,null,null,null,null,null,null,null,"",""]
[null,null,null,null,null,null,null,null,null,null,null,null,null,null,null,null,null,null,null,20211201,"11:00:00",null,"xxx",null,null,null,null,null,null,null,null,null,null,null,null,null,null,null,null,null,null,null,null,null,null,null,null,null,null,null,null,null,null,null,"",""]
[null,null,null,null,null,null,null,null,null,null,null,null,null,null,null,null,null,null,null,20211206,"10:00:00",null,"xxx",null,null,null,null,null,null,null,null,null,null,null,null,null,null,null,null,null,null,null,null,null,null,null,null,null,null,null,null,null,null,null,"",""]
[null,null,null,null,null,null,null,null,null,null,null,null,null,null,null,null,null,null,null,20211211,"09:00:00",null,"xxx",null,null,null,null,null,null,null,null,null,null,null,null,null,null,null,null,null,null,null,null,null,null,null,null,null,null,null,null,null,null,null,"",""]
[null,null,null,null,null,null,null,null,null,null,null,null,null,null,null,null,null,null,null,20211218,"01:00:00",null,"xxx",null,null,null,null,null,null,null,null,null,null,null,null,null,null,null,null,null,null,null,null,null,null,null,null,null,null,null,null,null,null,null,"",""]
[null,null,null,null,null,null,null,null,null,null,null,null,null,null,null,null,null,null,null,20211223,"07:00:00",null,"xxx",null,null,null,null,null,null,null,null,null,null,null,null,null,null,null,null,null,null,null,null,null,null,null,null,null,null,null,null,null,null,null,"",""]
[null,null,null,null,null,null,null,null,null,null,null,null,null,null,null,null,null,null,null,20211226,"19:00:00",null,"xxx",null,null,null,null,null,null,null,null,null,null,null,null,null,null,null,null,null,null,null,null,null,null,null,null,null,null,null,null,null,null,null,"",""]
[null,null,null,null,null,null,null,null,null,null,null,null,null,null,null,null,null,null,null,20211226,"20:00:00",null,"xxx",null,null,null,null,null,null,null,null,null,null,null,null,null,null,null,null,null,null,null,null,null,null,null,null,null,null,null,null,null,null,null,"",""]
[null,null,null,null,null,null,null,null,null,null,null,null,null,null,null,null,null,null,null,20211226,"21:00:00",null,"xxx",null,null,null,null,null,null,null,null,null,null,null,null,null,null,null,null,null,null,null,null,null,null,null,null,null,null,null,null,null,null,null,"",""]
[null,null,null,null,null,null,null,null,null,null,null,null,null,null,null,null,null,null,null,20211226,"22:00:00",null,"xxx",null,null,null,null,null,null,null,null,null,null,null,null,null,null,null,null,null,null,null,null,null,null,null,null,null,null,null,null,null,null,null,"",""]
[null,null,null,null,null,null,null,null,null,null,null,null,null,null,null,null,null,null,null,20211226,"23:00:00",null,"xxx",null,null,null,null,null,null,null,null,null,null,null,null,null,null,null,null,null,null,null,null,null,null,null,null,null,null,null,null,null,null,null,"",""]
[null,null,null,null,null,null,null,null,null,null,null,null,null,null,null,null,null,null,null,20211227,"00:00:00",null,"xxx",null,null,null,null,null,null,null,null,null,null,null,null,null,null,null,null,null,null,null,null,null,null,null,null,null,null,null,null,null,null,null,"",""]
[null,null,null,null,null,null,null,null,null,null,null,null,null,null,null,null,null,null,null,20211227,"01:00:00",null,"xxx",null,null,null,null,null,null,null,null,null,null,null,null,null,null,null,null,null,null,null,null,null,null,null,null,null,null,null,null,null,null,null,"",""]
[null,null,null,null,null,null,null,null,null,null,null,null,null,null,null,null,null,null,null,20211227,"02:00:00",null,"xxx",null,null,null,null,null,null,null,null,null,null,null,null,null,null,null,null,null,null,null,null,null,null,null,null,null,null,null,null,null,null,null,"",""]
[null,null,null,null,null,null,null,null,null,null,null,null,null,null,null,null,null,null,null,20211227,"03:00:00",null,"xxx",null,null,null,null,null,null,null,null,null,null,null,null,null,null,null,null,null,null,null,null,null,null,null,null,null,null,null,null,null,null,null,"",""]
[null,null,null,null,null,null,null,null,null,null,null,null,null,null,null,null,null,null,null,20211227,"04:00:00",null,"xxx",null,null,null,null,null,null,null,null,null,null,null,null,null,null,null,null,null,null,null,null,null,null,null,null,null,null,null,null,null,null,null,"",""]
[null,null,null,null,null,null,null,null,null,null,null,null,null,null,null,null,null,null,null,20211227,"05:00:00",null,"xxx",null,null,null,null,null,null,null,null,null,null,null,null,null,null,null,null,null,null,null,null,null,null,null,null,null,null,null,null,null,null,null,"",""]
[null,null,null,null,null,null,null,null,null,null,null,null,null,null,null,null,null,null,null,20211227,"06:00:00",null,"xxx",null,null,null,null,null,null,null,null,null,null,null,null,null,null,null,null,null,null,null,null,null,null,null,null,null,null,null,null,null,null,null,"",""]
[null,null,null,null,null,null,null,null,null,null,null,null,null,null,null,null,null,null,null,20211227,"07:00:00",null,"xxx",null,null,null,null,null,null,null,null,null,null,null,null,null,null,null,null,null,null,null,null,null,null,null,null,null,null,null,null,null,null,null,"",""]
[null,null,null,null,null,null,null,null,null,null,null,null,null,null,null,null,null,null,null,20211227,"08:00:00",null,"xxx",null,null,null,null,null,null,null,null,null,null,null,null,null,null,null,null,null,null,null,null,null,null,null,null,null,null,null,null,null,null,null,"",""]
[null,null,null,null,null,null,null,null,null,null,null,null,null,null,null,null,null,null,null,20211227,"09:00:00",null,"xxx",null,null,null,null,null,null,null,null,null,null,null,null,null,null,null,null,null,null,null,null,null,null,null,null,null,null,null,null,null,null,null,"",""]
[null,null,null,null,null,null,null,null,null,null,null,null,null,null,null,null,null,null,null,20211227,"10:00:00",null,"xxx",null,null,null,null,null,null,null,null,null,null,null,null,null,null,null,null,null,null,null,null,null,null,null,null,null,null,null,null,null,null,null,"",{"$f":"IF(AR70024=\"\",\"\",IF(AR70024=AR70023,IF(AS70024=AS70023,\"\",\"X\"),\"X\"))","v":""}]
[null,null,null,null,null,null,null,null,null,null,null,null,null,null,null,null,null,null,null,20211227,"11:00:00",null,"xxx",null,null,null,null,null,null,null,null,null,null,null,null,null,null,null,null,null,null,null,null,null,null,null,null,null,null,null,null,null,null,null,"",""]
[null,null,null,null,null,null,null,null,null,null,null,null,null,null,null,null,null,null,null,20211227,"12:00:00",null,"xxx",null,null,null,null,null,null,null,null,null,null,null,null,null,null,null,null,null,null,null,null,null,null,null,null,null,null,null,null,null,null,null,"",""]
[null,null,null,null,null,null,null,null,null,null,null,null,null,null,null,null,null,null,null,20211227,"13:00:00",null,"xxx",null,null,null,null,null,null,null,null,null,null,null,null,null,null,null,null,null,null,null,null,null,null,null,null,null,null,null,null,null,null,null,"",""]
[null,null,null,null,null,null,null,null,null,null,null,null,null,null,null,null,null,null,null,20211227,"14:00:00",null,"xxx",null,null,null,null,null,null,null,null,null,null,null,null,null,null,null,null,null,null,null,null,null,null,null,null,null,null,null,null,null,null,null,"",""]
[null,null,null,null,null,null,null,null,null,null,null,null,null,null,null,null,null,null,null,20211227,"15:00:00",null,"xxx",null,null,null,null,null,null,null,null,null,null,null,null,null,null,null,null,null,null,null,null,null,null,null,null,null,null,null,null,null,null,null,"",""]
[null,null,null,null,null,null,null,null,null,null,null,null,null,null,null,null,null,null,null,20211227,"16:00:00",null,"xxx",null,null,null,null,null,null,null,null,null,null,null,null,null,null,null,null,null,null,null,null,null,null,null,null,null,null,null,null,null,null,null,"",""]
[null,null,null,null,null,null,null,null,null,null,null,null,null,null,null,null,null,null,null,20211227,"17:00:00",null,"xxx",null,null,null,null,null,null,null,null,null,null,null,null,null,null,null,null,null,null,null,null,null,null,null,null,null,null,null,null,null,null,null,"",""]
[null,null,null,null,null,null,null,null,null,null,null,null,null,null,null,null,null,null,null,20211227,"18:00:00",null,"xxx",null,null,null,null,null,null,null,null,null,null,null,null,null,null,null,null,null,null,null,null,null,null,null,null,null,null,null,null,null,null,null,"",""]
[null,null,null,null,null,null,null,null,null,null,null,null,null,null,null,null,null,null,null,20211227,"19:00:00",null,"xxx",null,null,null,null,null,null,null,null,null,null,null,null,null,null,null,null,null,null,null,null,null,null,null,null,null,null,null,null,null,null,null,"",""]
[null,null,null,null,null,null,null,null,null,null,null,null,null,null,null,null,null,null,null,20211227,"20:00:00",null,"xxx",null,null,null,null,null,null,null,null,null,null,null,null,null,null,null,null,null,null,null,null,null,null,null,null,null,null,null,null,null,null,null,"",""]
[null,null,null,null,null,null,null,null,null,null,null,null,null,null,null,null,null,null,null,20211227,"21:00:00",null,"xxx",null,null,null,null,null,null,null,null,null,null,null,null,null,null,null,null,null,null,null,null,null,null,null,null,null,null,null,null,null,null,null,"",""]
[null,null,null,null,null,null,null,null,null,null,null,null,null,null,null,null,null,null,null,20211227,"22:00:00",null,"xxx",null,null,null,null,null,null,null,null,null,null,null,null,null,null,null,null,null,null,null,null,null,null,null,null,null,null,null,null,null,null,null,"",""]
[null,null,null,null,null,null,null,null,null,null,null,null,null,null,null,null,null,null,null,20211227,"23:00:00",null,"xxx",null,null,null,null,null,null,null,null,null,null,null,null,null,null,null,null,null,null,null,null,null,null,null,null,null,null,null,null,null,null,null,"",""]
[null,null,null,null,null,null,null,null,null,null,null,null,null,null,null,null,null,null,null,20211228,"00:00:00",null,"xxx",null,null,null,null,null,null,null,null,null,null,null,null,null,null,null,null,null,null,null,null,null,null,null,null,null,null,null,null,null,null,null,"",""]
[null,null,null,null,null,null,null,null,null,null,null,null,null,null,null,null,null,null,null,20211228,"01:00:00",null,"xxx",null,null,null,null,null,null,null,null,null,null,null,null,null,null,null,null,null,null,null,null,null,null,null,null,null,null,null,null,null,null,null,"",""]
[null,null,null,null,null,null,null,null,null,null,null,null,null,null,null,null,null,null,null,20211228,"02:00:00",null,"xxx",null,null,null,null,null,null,null,null,null,null,null,null,null,null,null,null,null,null,null,null,null,null,null,null,null,null,null,null,null,null,null,"",""]
[null,null,null,null,null,null,null,null,null,null,null,null,null,null,null,null,null,null,null,20211228,"03:00:00",null,"xxx",null,null,null,null,null,null,null,null,null,null,null,null,null,null,null,null,null,null,null,null,null,null,null,null,null,null,null,null,null,null,null,"",""]
[null,null,null,null,null,null,null,null,null,null,null,null,null,null,null,null,null,null,null,20211228,"04:00:00",null,"xxx",null,null,null,null,null,null,null,null,null,null,null,null,null,null,null,null,null,null,null,null,null,null,null,null,null,null,null,null,null,null,null,"",""]
[null,null,null,null,null,null,null,null,null,null,null,null,null,null,null,null,null,null,null,20211228,"05:00:00",null,"xxx",null,null,null,null,null,null,null,null,null,null,null,null,null,null,null,null,null,null,null,null,null,null,null,null,null,null,null,null,null,null,null,"",""]
[null,null,null,null,null,null,null,null,null,null,null,null,null,null,null,null,null,null,null,20211228,"06:00:00",null,"xxx",null,null,null,null,null,null,null,null,null,null,null,null,null,null,null,null,null,null,null,null,null,null,null,null,null,null,null,null,null,null,null,"",""]
[null,null,null,null,null,null,null,null,null,null,null,null,null,null,null,null,null,null,null,20211228,"07:00:00",null,"xxx",null,null,null,null,null,null,null,null,null,null,null,null,null,null,null,null,null,null,null,null,null,null,null,null,null,null,null,null,null,null,null,"",""]
[null,null,null,null,null,null,null,null,null,null,null,null,null,null,null,null,null,null,null,20211228,"08:00:00",null,"xxx",null,null,null,null,null,null,null,null,null,null,null,null,null,null,null,null,null,null,null,null,null,null,null,null,null,null,null,null,null,null,null,"",""]
[null,null,null,null,null,null,null,null,null,null,null,null,null,null,null,null,null,null,null,20211228,"09:00:00",null,"xxx",null,null,null,null,null,null,null,null,null,null,null,null,null,null,null,null,null,null,null,null,null,null,null,null,null,null,null,null,null,null,null,"",""]
[null,null,null,null,null,null,null,null,null,null,null,null,null,null,null,null,null,null,null,20211228,"10:00:00",null,"xxx",null,null,null,null,null,null,null,null,null,null,null,null,null,null,null,null,null,null,null,null,null,null,null,null,null,null,null,null,null,null,null,"",""]
[null,null,null,null,null,null,null,null,null,null,null,null,null,null,null,null,null,null,null,20211228,"11:00:00",null,"xxx",null,null,null,null,null,null,null,null,null,null,null,null,null,null,null,null,null,null,null,null,null,null,null,null,null,null,null,null,null,null,null,"",""]
[null,null,null,null,null,null,null,null,null,null,null,null,null,null,null,null,null,null,null,20211228,"12:00:00",null,"xxx",null,null,null,null,null,null,null,null,null,null,null,null,null,null,null,null,null,null,null,null,null,null,null,null,null,null,null,null,null,null,null,"",""]
[null,null,null,null,null,null,null,null,null,null,null,null,null,null,null,null,null,null,null,20211228,"13:00:00",null,"xxx",null,null,null,null,null,null,null,null,null,null,null,null,null,null,null,null,null,null,null,null,null,null,null,null,null,null,null,null,null,null,null,"",""]
[null,null,null,null,null,null,null,null,null,null,null,null,null,null,null,null,null,null,null,20211228,"14:00:00",null,"xxx",null,null,null,null,null,null,null,null,null,null,null,null,null,null,null,null,null,null,null,null,null,null,null,null,null,null,null,null,null,null,null,"",""]
[null,null,null,null,null,null,null,null,null,null,null,null,null,null,null,null,null,null,null,20211228,"15:00:00",null,"xxx",null,null,null,null,null,null,null,null,null,null,null,null,null,null,null,null,null,null,null,null,null,null,null,null,null,null,null,null,null,null,null,"",""]
[null,null,null,null,null,null,null,null,null,null,null,null,null,null,null,null,null,null,null,20211228,"16:00:00",null,"xxx",null,null,null,null,null,null,null,null,null,null,null,null,null,null,null,null,null,null,null,null,null,null,null,null,null,null,null,null,null,null,null,"",""]
[null,null,null,null,null,null,null,null,null,null,null,null,null,null,null,null,null,null,null,20211228,"17:00:00",null,"xxx",null,null,null,null,null,null,null,null,null,null,null,null,null,null,null,null,null,null,null,null,null,null,null,null,null,null,null,null,null,null,null,"",""]
[null,null,null,null,null,null,null,null,null,null,null,null,null,null,null,null,null,null,null,20211228,"18:00:00",null,"xxx",null,null,null,null,null,null,null,null,null,null,null,null,null,null,null,null,null,null,null,null,null,null,null,null,null,null,null,null,null,null,null,"",""]
[null,null,null,null,null,null,null,null,null,null,null,null,null,null,null,null,null,null,null,20211228,"19:00:00",null,"xxx",null,null,null,null,null,null,null,null,null,null,null,null,null,null,null,null,null,null,null,null,null,null,null,null,null,null,null,null,null,null,null,"",""]
[null,null,null,null,null,null,null,null,null,null,null,null,null,null,null,null,null,null,null,20211228,"20:00:00",null,"xxx",null,null,null,null,null,null,null,null,null,null,null,null,null,null,null,null,null,null,null,null,null,null,null,null,null,null,null,null,null,null,null,"",""]
[null,null,null,null,null,null,null,null,null,null,null,null,null,null,null,null,null,null,null,20211228,"21:00:00",null,"xxx",null,null,null,null,null,null,null,null,null,null,null,null,null,null,null,null,null,null,null,null,null,null,null,null,null,null,null,null,null,null,null,"",""]
[null,null,null,null,null,null,null,null,null,null,null,null,null,null,null,null,null,null,null,20211228,"22:00:00",null,"xxx",null,null,null,null,null,null,null,null,null,null,null,null,null,null,null,null,null,null,null,null,null,null,null,null,null,null,null,null,null,null,null,"",""]
[null,null,null,null,null,null,null,null,null,null,null,null,null,null,null,null,null,null,null,20211228,"23:00:00",null,"xxx",null,null,null,null,null,null,null,null,null,null,null,null,null,null,null,null,null,null,null,null,null,null,null,null,null,null,null,null,null,null,null,"",""]
[null,null,null,null,null,null,null,null,null,null,null,null,null,null,null,null,null,null,null,20211229,"00:00:00",null,"xxx",null,null,null,null,null,null,null,null,null,null,null,null,null,null,null,null,null,null,null,null,null,null,null,null,null,null,null,null,null,null,null,"",""]
[null,null,null,null,null,null,null,null,null,null,null,null,null,null,null,null,null,null,null,20211229,"01:00:00",null,"xxx",null,null,null,null,null,null,null,null,null,null,null,null,null,null,null,null,null,null,null,null,null,null,null,null,null,null,null,null,null,null,null,"",""]
[null,null,null,null,null,null,null,null,null,null,null,null,null,null,null,null,null,null,null,20211229,"02:00:00",null,"xxx",null,null,null,null,null,null,null,null,null,null,null,null,null,null,null,null,null,null,null,null,null,null,null,null,null,null,null,null,null,null,null,"",""]
[null,null,null,null,null,null,null,null,null,null,null,null,null,null,null,null,null,null,null,20211229,"03:00:00",null,"xxx",null,null,null,null,null,null,null,null,null,null,null,null,null,null,null,null,null,null,null,null,null,null,null,null,null,null,null,null,null,null,null,"",""]
[null,null,null,null,null,null,null,null,null,null,null,null,null,null,null,null,null,null,null,20211229,"04:00:00",null,"xxx",null,null,null,null,null,null,null,null,null,null,null,null,null,null,null,null,null,null,null,null,null,null,null,null,null,null,null,null,null,null,null,"",""]
[null,null,null,null,null,null,null,null,null,null,null,null,null,null,null,null,null,null,null,20211229,"05:00:00",null,"xxx",null,null,null,null,null,null,null,null,null,null,null,null,null,null,null,null,null,null,null,null,null,null,null,null,null,null,null,null,null,null,null,"",""]
[null,null,null,null,null,null,null,null,null,null,null,null,null,null,null,null,null,null,null,20211229,"06:00:00",null,"xxx",null,null,null,null,null,null,null,null,null,null,null,null,null,null,null,null,null,null,null,null,null,null,null,null,null,null,null,null,null,null,null,"",""]
[null,null,null,null,null,null,null,null,null,null,null,null,null,null,null,null,null,null,null,20211229,"07:00:00",null,"xxx",null,null,null,null,null,null,null,null,null,null,null,null,null,null,null,null,null,null,null,null,null,null,null,null,null,null,null,null,null,null,null,"",""]
[null,null,null,null,null,null,null,null,null,null,null,null,null,null,null,null,null,null,null,20211229,"08:00:00",null,"xxx",null,null,null,null,null,null,null,null,null,null,null,null,null,null,null,null,null,null,null,null,null,null,null,null,null,null,null,null,null,null,null,"",""]
[null,null,null,null,null,null,null,null,null,null,null,null,null,null,null,null,null,null,null,20211229,"09:00:00",null,"xxx",null,null,null,null,null,null,null,null,null,null,null,null,null,null,null,null,null,null,null,null,null,null,null,null,null,null,null,null,null,null,null,"",""]
[null,null,null,null,null,null,null,null,null,null,null,null,null,null,null,null,null,null,null,20211229,"10:00:00",null,"xxx",null,null,null,null,null,null,null,null,null,null,null,null,null,null,null,null,null,null,null,null,null,null,null,null,null,null,null,null,null,null,null,"",""]
[null,null,null,null,null,null,null,null,null,null,null,null,null,null,null,null,null,null,null,20211229,"11:00:00",null,"xxx",null,null,null,null,null,null,null,null,null,null,null,null,null,null,null,null,null,null,null,null,null,null,null,null,null,null,null,null,null,null,null,"",""]
[null,null,null,null,null,null,null,null,null,null,null,null,null,null,null,null,null,null,null,20211229,"12:00:00",null,"xxx",null,null,null,null,null,null,null,null,null,null,null,null,null,null,null,null,null,null,null,null,null,null,null,null,null,null,null,null,null,null,null,"",""]
[null,null,null,null,null,null,null,null,null,null,null,null,null,null,null,null,null,null,null,20211229,"13:00:00",null,"xxx",null,null,null,null,null,null,null,null,null,null,null,null,null,null,null,null,null,null,null,null,null,null,null,null,null,null,null,null,null,null,null,"",""]
[null,null,null,null,null,null,null,null,null,null,null,null,null,null,null,null,null,null,null,20211229,"14:00:00",null,"xxx",null,null,null,null,null,null,null,null,null,null,null,null,null,null,null,null,null,null,null,null,null,null,null,null,null,null,null,null,null,null,null,"",""]
[null,null,null,null,null,null,null,null,null,null,null,null,null,null,null,null,null,null,null,20211229,"15:00:00",null,"xxx",null,null,null,null,null,null,null,null,null,null,null,null,null,null,null,null,null,null,null,null,null,null,null,null,null,null,null,null,null,null,null,"",""]
[null,null,null,null,null,null,null,null,null,null,null,null,null,null,null,null,null,null,null,20211229,"16:00:00",null,"xxx",null,null,null,null,null,null,null,null,null,null,null,null,null,null,null,null,null,null,null,null,null,null,null,null,null,null,null,null,null,null,null,"",""]
[null,null,null,null,null,null,null,null,null,null,null,null,null,null,null,null,null,null,null,20211229,"17:00:00",null,"xxx",null,null,null,null,null,null,null,null,null,null,null,null,null,null,null,null,null,null,null,null,null,null,null,null,null,null,null,null,null,null,null,"",""]
[null,null,null,null,null,null,null,null,null,null,null,null,null,null,null,null,null,null,null,20211229,"18:00:00",null,"xxx",null,null,null,null,null,null,null,null,null,null,null,null,null,null,null,null,null,null,null,null,null,null,null,null,null,null,null,null,null,null,null,"",""]
[null,null,null,null,null,null,null,null,null,null,null,null,null,null,null,null,null,null,null,20211229,"19:00:00",null,"xxx",null,null,null,null,null,null,null,null,null,null,null,null,null,null,null,null,null,null,null,null,null,null,null,null,null,null,null,null,null,null,null,"",""]
[null,null,null,null,null,null,null,null,null,null,null,null,null,null,null,null,null,null,null,20211229,"20:00:00",null,"xxx",null,null,null,null,null,null,null,null,null,null,null,null,null,null,null,null,null,null,null,null,null,null,null,null,null,null,null,null,null,null,null,"",""]
[null,null,null,null,null,null,null,null,null,null,null,null,null,null,null,null,null,null,null,20211229,"21:00:00",null,"xxx",null,null,null,null,null,null,null,null,null,null,null,null,null,null,null,null,null,null,null,null,null,null,null,null,null,null,null,null,null,null,null,"",""]
[null,null,null,null,null,null,null,null,null,null,null,null,null,null,null,null,null,null,null,20211229,"22:00:00",null,"xxx",null,null,null,null,null,null,null,null,null,null,null,null,null,null,null,null,null,null,null,null,null,null,null,null,null,null,null,null,null,null,null,"",""]
[null,null,null,null,null,null,null,null,null,null,null,null,null,null,null,null,null,null,null,20211229,"23:00:00",null,"xxx",null,null,null,null,null,null,null,null,null,null,null,null,null,null,null,null,null,null,null,null,null,null,null,null,null,null,null,null,null,null,null,"",""]
[null,null,null,null,null,null,null,null,null,null,null,null,null,null,null,null,null,null,null,20211230,"00:00:00",null,"xxx",null,null,null,null,null,null,null,null,null,null,null,null,null,null,null,null,null,null,null,null,null,null,null,null,null,null,null,null,null,null,null,"",""]
[null,null,null,null,null,null,null,null,null,null,null,null,null,null,null,null,null,null,null,20211230,"01:00:00",null,"xxx",null,null,null,null,null,null,null,null,null,null,null,null,null,null,null,null,null,null,null,null,null,null,null,null,null,null,null,null,null,null,null,"",""]
[null,null,null,null,null,null,null,null,null,null,null,null,null,null,null,null,null,null,null,20211230,"02:00:00",null,"xxx",null,null,null,null,null,null,null,null,null,null,null,null,null,null,null,null,null,null,null,null,null,null,null,null,null,null,null,null,null,null,null,"",{"$f":"IF(AR70088=\"\",\"\",IF(AR70088=AR70087,IF(AS70088=AS70087,\"\",\"X\"),\"X\"))","v":""}]
[null,null,null,null,null,null,null,null,null,null,null,null,null,null,null,null,null,null,null,20211230,"03:00:00",null,"xxx",null,null,null,null,null,null,null,null,null,null,null,null,null,null,null,null,null,null,null,null,null,null,null,null,null,null,null,null,null,null,null,"",""]
[null,null,null,null,null,null,null,null,null,null,null,null,null,null,null,null,null,null,null,20211230,"04:00:00",null,"xxx",null,null,null,null,null,null,null,null,null,null,null,null,null,null,null,null,null,null,null,null,null,null,null,null,null,null,null,null,null,null,null,"",""]
[null,null,null,null,null,null,null,null,null,null,null,null,null,null,null,null,null,null,null,20211230,"05:00:00",null,"xxx",null,null,null,null,null,null,null,null,null,null,null,null,null,null,null,null,null,null,null,null,null,null,null,null,null,null,null,null,null,null,null,"",""]
[null,null,null,null,null,null,null,null,null,null,null,null,null,null,null,null,null,null,null,20211230,"06:00:00",null,"xxx",null,null,null,null,null,null,null,null,null,null,null,null,null,null,null,null,null,null,null,null,null,null,null,null,null,null,null,null,null,null,null,"",""]
[null,null,null,null,null,null,null,null,null,null,null,null,null,null,null,null,null,null,null,20211230,"07:00:00",null,"xxx",null,null,null,null,null,null,null,null,null,null,null,null,null,null,null,null,null,null,null,null,null,null,null,null,null,null,null,null,null,null,null,"",""]
[null,null,null,null,null,null,null,null,null,null,null,null,null,null,null,null,null,null,null,20211230,"08:00:00",null,"xxx",null,null,null,null,null,null,null,null,null,null,null,null,null,null,null,null,null,null,null,null,null,null,null,null,null,null,null,null,null,null,null,"",""]
[null,null,null,null,null,null,null,null,null,null,null,null,null,null,null,null,null,null,null,20211230,"09:00:00",null,"xxx",null,null,null,null,null,null,null,null,null,null,null,null,null,null,null,null,null,null,null,null,null,null,null,null,null,null,null,null,null,null,null,"",""]
[null,null,null,null,null,null,null,null,null,null,null,null,null,null,null,null,null,null,null,20211230,"10:00:00",null,"xxx",null,null,null,null,null,null,null,null,null,null,null,null,null,null,null,null,null,null,null,null,null,null,null,null,null,null,null,null,null,null,null,"",""]
[null,null,null,null,null,null,null,null,null,null,null,null,null,null,null,null,null,null,null,20211230,"11:00:00",null,"xxx",null,null,null,null,null,null,null,null,null,null,null,null,null,null,null,null,null,null,null,null,null,null,null,null,null,null,null,null,null,null,null,"",""]
[null,null,null,null,null,null,null,null,null,null,null,null,null,null,null,null,null,null,null,20211230,"12:00:00",null,"xxx",null,null,null,null,null,null,null,null,null,null,null,null,null,null,null,null,null,null,null,null,null,null,null,null,null,null,null,null,null,null,null,"",""]
[null,null,null,null,null,null,null,null,null,null,null,null,null,null,null,null,null,null,null,20211230,"13:00:00",null,"xxx",null,null,null,null,null,null,null,null,null,null,null,null,null,null,null,null,null,null,null,null,null,null,null,null,null,null,null,null,null,null,null,"",""]
[null,null,null,null,null,null,null,null,null,null,null,null,null,null,null,null,null,null,null,20211230,"14:00:00",null,"xxx",null,null,null,null,null,null,null,null,null,null,null,null,null,null,null,null,null,null,null,null,null,null,null,null,null,null,null,null,null,null,null,"",""]
[null,null,null,null,null,null,null,null,null,null,null,null,null,null,null,null,null,null,null,20211230,"15:00:00",null,"xxx",null,null,null,null,null,null,null,null,null,null,null,null,null,null,null,null,null,null,null,null,null,null,null,null,null,null,null,null,null,null,null,"",""]
[null,null,null,null,null,null,null,null,null,null,null,null,null,null,null,null,null,null,null,20211230,"16:00:00",null,"xxx",null,null,null,null,null,null,null,null,null,null,null,null,null,null,null,null,null,null,null,null,null,null,null,null,null,null,null,null,null,null,null,"",""]
[null,null,null,null,null,null,null,null,null,null,null,null,null,null,null,null,null,null,null,20211230,"17:00:00",null,"xxx",null,null,null,null,null,null,null,null,null,null,null,null,null,null,null,null,null,null,null,null,null,null,null,null,null,null,null,null,null,null,null,"",""]
[null,null,null,null,null,null,null,null,null,null,null,null,null,null,null,null,null,null,null,20211230,"18:00:00",null,"xxx",null,null,null,null,null,null,null,null,null,null,null,null,null,null,null,null,null,null,null,null,null,null,null,null,null,null,null,null,null,null,null,"",""]
[null,null,null,null,null,null,null,null,null,null,null,null,null,null,null,null,null,null,null,20211230,"19:00:00",null,"xxx",null,null,null,null,null,null,null,null,null,null,null,null,null,null,null,null,null,null,null,null,null,null,null,null,null,null,null,null,null,null,null,"",""]
[null,null,null,null,null,null,null,null,null,null,null,null,null,null,null,null,null,null,null,20211230,"20:00:00",null,"xxx",null,null,null,null,null,null,null,null,null,null,null,null,null,null,null,null,null,null,null,null,null,null,null,null,null,null,null,null,null,null,null,"",""]
[null,null,null,null,null,null,null,null,null,null,null,null,null,null,null,null,null,null,null,20211230,"21:00:00",null,"xxx",null,null,null,null,null,null,null,null,null,null,null,null,null,null,null,null,null,null,null,null,null,null,null,null,null,null,null,null,null,null,null,"",""]
[null,null,null,null,null,null,null,null,null,null,null,null,null,null,null,null,null,null,null,20211230,"22:00:00",null,"xxx",null,null,null,null,null,null,null,null,null,null,null,null,null,null,null,null,null,null,null,null,null,null,null,null,null,null,null,null,null,null,null,"",""]
[null,null,null,null,null,null,null,null,null,null,null,null,null,null,null,null,null,null,null,20211230,"23:00:00",null,"xxx",null,null,null,null,null,null,null,null,null,null,null,null,null,null,null,null,null,null,null,null,null,null,null,null,null,null,null,null,null,null,null,"",""]
[null,null,null,null,null,null,null,null,null,null,null,null,null,null,null,null,null,null,null,20211231,"00:00:00",null,"xxx",null,null,null,null,null,null,null,null,null,null,null,null,null,null,null,null,null,null,null,null,null,null,null,null,null,null,null,null,null,null,null,"",""]
[null,null,null,null,null,null,null,null,null,null,null,null,null,null,null,null,null,null,null,20211231,"01:00:00",null,"xxx",null,null,null,null,null,null,null,null,null,null,null,null,null,null,null,null,null,null,null,null,null,null,null,null,null,null,null,null,null,null,null,"",""]
[null,null,null,null,null,null,null,null,null,null,null,null,null,null,null,null,null,null,null,20211231,"02:00:00",null,"xxx",null,null,null,null,null,null,null,null,null,null,null,null,null,null,null,null,null,null,null,null,null,null,null,null,null,null,null,null,null,null,null,"",""]
[null,null,null,null,null,null,null,null,null,null,null,null,null,null,null,null,null,null,null,20211231,"03:00:00",null,"xxx",null,null,null,null,null,null,null,null,null,null,null,null,null,null,null,null,null,null,null,null,null,null,null,null,null,null,null,null,null,null,null,"",""]
[null,null,null,null,null,null,null,null,null,null,null,null,null,null,null,null,null,null,null,20211231,"04:00:00",null,"xxx",null,null,null,null,null,null,null,null,null,null,null,null,null,null,null,null,null,null,null,null,null,null,null,null,null,null,null,null,null,null,null,"",""]
[null,null,null,null,null,null,null,null,null,null,null,null,null,null,null,null,null,null,null,20211231,"05:00:00",null,"xxx",null,null,null,null,null,null,null,null,null,null,null,null,null,null,null,null,null,null,null,null,null,null,null,null,null,null,null,null,null,null,null,"",""]
[null,null,null,null,null,null,null,null,null,null,null,null,null,null,null,null,null,null,null,20211231,"06:00:00",null,"xxx",null,null,null,null,null,null,null,null,null,null,null,null,null,null,null,null,null,null,null,null,null,null,null,null,null,null,null,null,null,null,null,"",""]
[null,null,null,null,null,null,null,null,null,null,null,null,null,null,null,null,null,null,null,20211231,"07:00:00",null,"xxx",null,null,null,null,null,null,null,null,null,null,null,null,null,null,null,null,null,null,null,null,null,null,null,null,null,null,null,null,null,null,null,"",""]
[null,null,null,null,null,null,null,null,null,null,null,null,null,null,null,null,null,null,null,20211231,"08:00:00",null,"xxx",null,null,null,null,null,null,null,null,null,null,null,null,null,null,null,null,null,null,null,null,null,null,null,null,null,null,null,null,null,null,null,"",""]
[null,null,null,null,null,null,null,null,null,null,null,null,null,null,null,null,null,null,null,20211231,"09:00:00",null,"xxx",null,null,null,null,null,null,null,null,null,null,null,null,null,null,null,null,null,null,null,null,null,null,null,null,null,null,null,null,null,null,null,"",""]
[null,null,null,null,null,null,null,null,null,null,null,null,null,null,null,null,null,null,null,20211231,"10:00:00",null,"xxx",null,null,null,null,null,null,null,null,null,null,null,null,null,null,null,null,null,null,null,null,null,null,null,null,null,null,null,null,null,null,null,"",""]
[null,null,null,null,null,null,null,null,null,null,null,null,null,null,null,null,null,null,null,20211231,"11:00:00",null,"xxx",null,null,null,null,null,null,null,null,null,null,null,null,null,null,null,null,null,null,null,null,null,null,null,null,null,null,null,null,null,null,null,"",""]
[null,null,null,null,null,null,null,null,null,null,null,null,null,null,null,null,null,null,null,20211231,"12:00:00",null,"xxx",null,null,null,null,null,null,null,null,null,null,null,null,null,null,null,null,null,null,null,null,null,null,null,null,null,null,null,null,null,null,null,"",""]
[null,null,null,null,null,null,null,null,null,null,null,null,null,null,null,null,null,null,null,20211231,"13:00:00",null,"xxx",null,null,null,null,null,null,null,null,null,null,null,null,null,null,null,null,null,null,null,null,null,null,null,null,null,null,null,null,null,null,null,"",""]
[null,null,null,null,null,null,null,null,null,null,null,null,null,null,null,null,null,null,null,20211231,"14:00:00",null,"xxx",null,null,null,null,null,null,null,null,null,null,null,null,null,null,null,null,null,null,null,null,null,null,null,null,null,null,null,null,null,null,null,"",""]
[null,null,null,null,null,null,null,null,null,null,null,null,null,null,null,null,null,null,null,20211231,"15:00:00",null,"xxx",null,null,null,null,null,null,null,null,null,null,null,null,null,null,null,null,null,null,null,null,null,null,null,null,null,null,null,null,null,null,null,"",""]
[null,null,null,null,null,null,null,null,null,null,null,null,null,null,null,null,null,null,null,20211231,"16:00:00",null,"xxx",null,null,null,null,null,null,null,null,null,null,null,null,null,null,null,null,null,null,null,null,null,null,null,null,null,null,null,null,null,null,null,"",""]
[null,null,null,null,null,null,null,null,null,null,null,null,null,null,null,null,null,null,null,20211231,"17:00:00",null,"xxx",null,null,null,null,null,null,null,null,null,null,null,null,null,null,null,null,null,null,null,null,null,null,null,null,null,null,null,null,null,null,null,"",""]
[null,null,null,null,null,null,null,null,null,null,null,null,null,null,null,null,null,null,null,20211231,"18:00:00",null,"xxx",null,null,null,null,null,null,null,null,null,null,null,null,null,null,null,null,null,null,null,null,null,null,null,null,null,null,null,null,null,null,null,"",""]
[null,null,null,null,null,null,null,null,null,null,null,null,null,null,null,null,null,null,null,20211231,"19:00:00",null,"xxx",null,null,null,null,null,null,null,null,null,null,null,null,null,null,null,null,null,null,null,null,null,null,null,null,null,null,null,null,null,null,null,"",""]
[null,null,null,null,null,null,null,null,null,null,null,null,null,null,null,null,null,null,null,20211231,"20:00:00",null,"xxx",null,null,null,null,null,null,null,null,null,null,null,null,null,null,null,null,null,null,null,null,null,null,null,null,null,null,null,null,null,null,null,"",""]
[null,null,null,null,null,null,null,null,null,null,null,null,null,null,null,null,null,null,null,20211231,"21:00:00",null,"xxx",null,null,null,null,null,null,null,null,null,null,null,null,null,null,null,null,null,null,null,null,null,null,null,null,null,null,null,null,null,null,null,"",""]
[null,null,null,null,null,null,null,null,null,null,null,null,null,null,null,null,null,null,null,20211231,"22:00:00",null,"xxx",null,null,null,null,null,null,null,null,null,null,null,null,null,null,null,null,null,null,null,null,null,null,null,null,null,null,null,null,null,null,null,"",""]
[null,null,null,null,null,null,null,null,null,null,null,null,null,null,null,null,null,null,null,20211231,"23:00:00",null,"xxx",null,null,null,null,null,null,null,null,null,null,null,null,null,null,null,null,null,null,null,null,null,null,null,null,null,null,null,null,null,null,null,"",""]